Local authority department which incurred the expenditure,Service Division,Cost Centre,Summary of the Purpose of Expenditure,Expense Type,Expense Code,Detailed Expense Type,Date of Transaction,Transaction Number,Beneficiary,Merchant Category Number,Merchant Category,Gross Amount,VAT,Net Amount
Children and Young Peoples Services,Education,71801,Selby Cottage Childcare Centre,Supplies and Services,324117,Provisions,01-Mar-17,5809402249,TESCO STORES 2278,5411,Catering costs - provisions,21.3,0,21.3
Children and Young Peoples Services,Education,71801,Selby Cottage Childcare Centre,Supplies and Services,324117,Provisions,01-Mar-17,5809402251,TESCO STORES 2278,5411,Catering costs - provisions,13.2,0,13.2
Children and Young Peoples Services,Childrens Services,85957,Secure Management,Supplies and Services,384999,Miscellaneous Expenses,01-Mar-17,5809402301,Amazon UK Marketplace,5942,Other expenses,9.04,0,9.04
Children and Young Peoples Services,Childrens Services,85957,Secure Management,Supplies and Services,312011,Newspapers Books and Periodicals,01-Mar-17,5809402303,Amazon UK Marketplace,5942,Books-school library,12.99,0,12.99
Children and Young Peoples Services,Childrens Services,85957,Secure Management,Supplies and Services,328041,Clothing Uniforms and Laundry,01-Mar-17,5809402305,WWW.BOOHOO.COM,5691,Clothing uniforms and laundry,26.5,4.42,22.08
Children and Young Peoples Services,Childrens Services,85957,Secure Management,Supplies and Services,328041,Clothing Uniforms and Laundry,01-Mar-17,5809402307,VERY.CO.UK,5964,Clothing uniforms and laundry,33,0,33
Children and Young Peoples Services,Childrens Services,85957,Secure Management,Supplies and Services,342033,Computers and Communications,01-Mar-17,5809402309,VERY.CO.UK,5964,Computer hardware,3.99,0,3.99
Children and Young Peoples Services,Childrens Services,85957,Secure Management,Supplies and Services,304403,Equipment and Materials,01-Mar-17,5809402317,AMAZON UK RETAIL AMAZO,5999,Other consumables,3.99,0,3.99
Regeneration and Local Services,Spatial Policy Planning Assets & Environment,36000,Asset Management,Employees,40149,Recruitment Instruction and Training,01-Mar-17,5809402361,RICS COM GBP CYBS,8699,Training-all costs,180,30,150
Regeneration and Local Services,Spatial Policy Planning Assets & Environment,36000,Asset Management,Employees,40149,Recruitment Instruction and Training,01-Mar-17,5809402363,RICS COM GBP CYBS,8699,Training-all costs,180,0,180
Regeneration and Local Services,Direct Services,21242,Catering - County Hall,Supplies and Services,324117,Provisions,01-Mar-17,5809402421,JR HOLLAND FOODSERVICE,5422,Catering costs - provisions,114.04,0,114.04
Regeneration and Local Services,Direct Services,21242,Catering - County Hall,Supplies and Services,324117,Provisions,01-Mar-17,5809402429,JR HOLLAND FOODSERVICE,5422,Catering costs - provisions,103.02,0,103.02
Regeneration and Local Services,Direct Services,21242,Catering - County Hall,Supplies and Services,324117,Provisions,01-Mar-17,5809402441,JR HOLLAND FOODSERVICE,5422,Catering costs - provisions,31.35,0,31.35
Regeneration and Local Services,Spatial Policy Planning Assets & Environment,31200,North Pennines Core,Supplies and Services,304403,Equipment and Materials,01-Mar-17,5809402483,W E & J ROWLE,5947,Other consumables,11.94,1.99,9.95
Regeneration and Local Services,Culture & Sport,11219,Office Services,Supplies and Services,304999,Equipment and Materials,01-Mar-17,5809402497,GOOGLE ADWS2420292471,5968,Misc equipment tools and materials,14.61,0,14.61
Children and Young Peoples Services,Education,71732,Dean Bank Childcare,Supplies and Services,328041,Clothing Uniforms and Laundry,01-Mar-17,5809402567,B&M RETAIL LTD,5310,Clothing uniforms and laundry,20.97,0,20.97
Regeneration and Local Services,Economic Development and Housing,30737,Durham Works Flexible Fund,Transport,230031,Contract Hire,01-Mar-17,5809402605,WWW.SIMPLYGO.COM,4131,Pupils-transport to play fields etc,6.4,0,6.4
Children and Young Peoples Services,Childrens Services,85958,Support Services,Supplies and Services,324117,Provisions,01-Mar-17,5809402623,TESCO STORES 6329,5411,Catering costs - provisions,42.07,0,42.07
Regeneration and Local Services,Culture & Sport,11060,Hardwick Park Catering,Supplies and Services,324117,Provisions,01-Mar-17,5809402653,JR HOLLAND FOODSERVICE,5422,Catering costs - provisions,90.51,0,90.51
Regeneration and Local Services,Culture & Sport,11060,Hardwick Park Catering,Supplies and Services,324117,Provisions,01-Mar-17,5809402657,BRAKE BROS LTD,5811,Catering costs - provisions,51.06,8.51,42.55
Regeneration and Local Services,Culture & Sport,11060,Hardwick Park Catering,Supplies and Services,324117,Provisions,01-Mar-17,000005809402657 - 1,BRAKE BROS LTD,5811,Catering costs - provisions,95.44,,95.44
Regeneration and Local Services,Culture & Sport,54815,Gala Theatre Stage School,Supplies and Services,328041,Clothing Uniforms and Laundry,01-Mar-17,5809402661,WWWMISSGUIDEDCOUK,5691,Clothing uniforms and laundry,13.99,0,13.99
Regeneration and Local Services,Culture & Sport,54815,Gala Theatre Stage School,Supplies and Services,328041,Clothing Uniforms and Laundry,01-Mar-17,5809402665,WWW.TOPSHOP.COM,5691,Clothing uniforms and laundry,97.8,0,97.8
Regeneration and Local Services,Economic Development and Housing,30762,Organisational Training & Development,Employees,40149,Recruitment Instruction and Training,01-Mar-17,5809402679,CITB,8220,Training-all costs,30,0,30
Regeneration and Local Services,Economic Development and Housing,30762,Organisational Training & Development,Employees,40149,Recruitment Instruction and Training,01-Mar-17,5809402683,CITB,8220,Training-all costs,30,0,30
Regeneration and Local Services,Direct Services,21234,Catering - Locomotion,Supplies and Services,324117,Provisions,01-Mar-17,5809402695,BRAKE BROS LTD,5811,Catering costs - provisions,112.74,18.79,93.95
Regeneration and Local Services,Direct Services,21234,Catering - Locomotion,Supplies and Services,324117,Provisions,01-Mar-17,000005809402695 - 1,BRAKE BROS LTD,5811,Catering costs - provisions,137.09,,137.09
Regeneration and Local Services,Direct Services,10525,Catering - Green Lane,Supplies and Services,324117,Provisions,01-Mar-17,5809402709,JR HOLLAND FOODSERVICE,5422,Catering costs - provisions,43.26,0,43.26
Regeneration and Local Services,Direct Services,10525,Catering - Green Lane,Supplies and Services,324117,Provisions,01-Mar-17,5809402711,BRAKE BROS LTD,5811,Catering costs - provisions,64.05,0,64.05
Children and Young Peoples Services,Childrens Services,85352,Tow Law CU,Supplies and Services,324117,Provisions,01-Mar-17,5809402747,TESCO STORES 2371,5411,Catering costs - provisions,249.22,0,249.22
Children and Young Peoples Services,Childrens Services,88063,Bishop Auckland 0 - 5,Supplies and Services,384999,Miscellaneous Expenses,01-Mar-17,5809402757,SEWN AT PAMS,5949,Other expenses,119.25,0,119.25
Children and Young Peoples Services,Childrens Services,88063,Bishop Auckland 0 - 5,Supplies and Services,324117,Provisions,01-Mar-17,5809402761,ASDA STORES,5411,Catering costs - provisions,14.55,0,14.55
Resources,I.C.T. Services,65305,Design & Print - Digital,Supplies and Services,304999,Equipment and Materials,01-Mar-17,5809402767,BIGDUG LIMITED,5072,Misc equipment tools and materials,516,86,430
Regeneration and Local Services,Economic Development and Housing,30749,Employability - Youth Contract,Supplies and Services,384956,Miscellaneous Expenses,01-Mar-17,5809402833,DVLA DRIVER ONLINE,9399,Licences,20,0,20
Children and Young Peoples Services,Childrens Services,85333,Coxhoe Satelite Home,Supplies and Services,324117,Provisions,01-Mar-17,5809402853,TESCO STORES 2371,5411,Catering costs - provisions,55.46,0,55.46
Children and Young Peoples Services,Childrens Services,85333,Coxhoe Satelite Home,Supplies and Services,324117,Provisions,01-Mar-17,5809402855,TESCO STORES 2371,5411,Catering costs - provisions,18.35,0,18.35
Regeneration and Local Services,Culture & Sport,54235,Bp Auckland Town Hall Cafe,Supplies and Services,324117,Provisions,01-Mar-17,5809402959,JR HOLLAND FOODSERVICE,5422,Catering costs - provisions,37.11,0,37.11
Regeneration and Local Services,Direct Services,21324,Catering - Meadowfield,Supplies and Services,324117,Provisions,01-Mar-17,5809402971,JR HOLLAND FOODSERVICE,5422,Catering costs - provisions,63.18,0,63.18
Regeneration and Local Services,Direct Services,21324,Catering - Meadowfield,Supplies and Services,324117,Provisions,01-Mar-17,5809402977,JR HOLLAND FOODSERVICE,5422,Catering costs - provisions,7.29,0,7.29
Regeneration and Local Services,Direct Services,21324,Catering - Meadowfield,Supplies and Services,324117,Provisions,01-Mar-17,5809402979,BRAKE BROS LTD,5811,Catering costs - provisions,189.84,31.64,158.2
Regeneration and Local Services,Direct Services,21324,Catering - Meadowfield,Supplies and Services,324117,Provisions,01-Mar-17,000005809402979 - 1,BRAKE BROS LTD,5811,Catering costs - provisions,98.85,,98.85
Regeneration and Local Services,Culture & Sport,11086,Positive Futures,Supplies and Services,324117,Provisions,01-Mar-17,5809403031,ASDA STORES LTD,5411,Catering costs - provisions,19.52,0,19.52
Children and Young Peoples Services,Childrens Services,85331,New Lea Childrens Home,Supplies and Services,328041,Clothing Uniforms and Laundry,01-Mar-17,5809403087,ARGOS RETAIL GROUP,5310,Clothing uniforms and laundry,93.92,0,93.92
Children and Young Peoples Services,Childrens Services,74000,TTF-Attachment and Results,Supplies and Services,304259,Equipment and Materials,01-Mar-17,5809403109,WILKO.COM,5722,Equipment-purchase and rental,128,0,128
Children and Young Peoples Services,Childrens Services,74000,TTF-Attachment and Results,Supplies and Services,304259,Equipment and Materials,01-Mar-17,5809403113,WILKO.COM,5722,Equipment-purchase and rental,15,0,15
Children and Young Peoples Services,Childrens Services,74000,TTF-Attachment and Results,Supplies and Services,304259,Equipment and Materials,01-Mar-17,5809403115,WILKO.COM,5722,Equipment-purchase and rental,81,0,81
Children and Young Peoples Services,Childrens Services,74000,TTF-Attachment and Results,Supplies and Services,304259,Equipment and Materials,01-Mar-17,5809403119,CURRYS ONLINE,5732,Equipment-purchase and rental,149.99,25,124.99
Regeneration and Local Services,Direct Services,21235,Catering - Wharton Park,Supplies and Services,324117,Provisions,01-Mar-17,5809403139,JR HOLLAND FOODSERVICE,5422,Catering costs - provisions,24.98,0,24.98
Regeneration and Local Services,Direct Services,21235,Catering - Wharton Park,Supplies and Services,324117,Provisions,01-Mar-17,5809403143,JR HOLLAND FOODSERVICE,5422,Catering costs - provisions,6.84,0,6.84
Regeneration and Local Services,Culture & Sport,10605,Woodhouse Close Leisure Complex,Supplies and Services,324117,Provisions,01-Mar-17,5809403155,JR HOLLAND FOODSERVICE,5422,Catering costs - provisions,43.83,0,43.83
Regeneration and Local Services,Culture & Sport,10605,Woodhouse Close Leisure Complex,Supplies and Services,324117,Provisions,01-Mar-17,5809403157,BRAKE BROS LTD,5811,Catering costs - provisions,124.73,0,124.73
Regeneration and Local Services,Spatial Policy Planning Assets & Environment,31200,North Pennines Core,Supplies and Services,340001,Postages,01-Mar-17,5809403195,THE POST OFFICE,9402,Postages,14.28,0,14.28
Children and Young Peoples Services,Childrens Services,88003,Peterlee 0 - 5,Supplies and Services,304259,Equipment and Materials,01-Mar-17,5809403211,WILKO.COM,5722,Equipment-purchase and rental,22,3.67,18.33
Regeneration and Local Services,Culture & Sport,11232,Locality 3 Team Management,Supplies and Services,352001,Conference Expenses,01-Mar-17,5814510361,TV LICENSING,7392,Conferencesseminars fees etc,145.5,0,145.5
Children and Young Peoples Services,Childrens Services,71443,Stanley One Point Hub,Supplies and Services,352001,Conference Expenses,01-Mar-17,5819979141,SOUTH CAUSEY INN,7011,Conferencesseminars fees etc,100,0,100
Regeneration and Local Services,Direct Services,10367,C&G - South Grounds Maintenance,Transport,215995,Running Costs of Vehicles,01-Mar-17,5819979167,SNOWBALLS (RAILWAY,5533,Vehicle running expenses,20,3.33,16.67
Children and Young Peoples Services,Childrens Services,71440,Barnard Castle One Point Hub,Supplies and Services,312011,Newspapers Books and Periodicals,02-Mar-17,5809402413,Amazon UK Marketplace,5942,Books-school library,2.39,0,2.39
Children and Young Peoples Services,Education,71801,Selby Cottage Childcare Centre,Supplies and Services,324117,Provisions,02-Mar-17,5814509925,TESCO STORES 2278,5411,Catering costs - provisions,62.38,0,62.38
Children and Young Peoples Services,Childrens Services,85957,Secure Management,Supplies and Services,312011,Newspapers Books and Periodicals,02-Mar-17,5814509993,Amazon EU,5969,Books-school library,13.78,0,13.78
Children and Young Peoples Services,Childrens Services,85957,Secure Management,Supplies and Services,328041,Clothing Uniforms and Laundry,02-Mar-17,5814509999,YACHAOSHANGMAO,5311,Clothing uniforms and laundry,59.02,0,59.02
Children and Young Peoples Services,Childrens Services,85957,Secure Management,Supplies and Services,328041,Clothing Uniforms and Laundry,02-Mar-17,5814510005,SPORTSDIRECT.COM,5941,Clothing uniforms and laundry,54.99,9.17,45.82
Children and Young Peoples Services,Childrens Services,85957,Secure Management,Supplies and Services,324117,Provisions,02-Mar-17,5814510011,TESCO STORES 6329,5411,Catering costs - provisions,78.54,0,78.54
Regeneration and Local Services,Economic Development and Housing,30699,Business Growth and Innovation General,Supplies and Services,336005,Advertising,02-Mar-17,5814510037,ADROLL,7311,Advertising other than for staff,1.2,0,1.2
Regeneration and Local Services,Economic Development and Housing,30699,Business Growth and Innovation General,Supplies and Services,304403,Equipment and Materials,02-Mar-17,5814510043,ADOBE CREATIVE CLOUD,5734,Other consumables,45.73,7.62,38.11
Regeneration and Local Services,Economic Development and Housing,30699,Business Growth and Innovation General,Supplies and Services,312011,Newspapers Books and Periodicals,02-Mar-17,5814510049,FASTHOSTS INTERNET,4816,Books-school library,59.99,10,49.99
Regeneration and Local Services,Economic Development and Housing,30699,Business Growth and Innovation General,Supplies and Services,312011,Newspapers Books and Periodicals,02-Mar-17,5814510055,FASTHOSTS INTERNET,4816,Books-school library,11.39,1.9,9.49
Children and Young Peoples Services,Childrens Services,71440,Barnard Castle One Point Hub,Supplies and Services,304403,Equipment and Materials,02-Mar-17,5814510189,AMAZON UK RETAIL AMAZO,5999,Other consumables,4.75,0,4.75
Adult and Health Services,EnvironmentHealth & Consumer Protection,11035,Consumer Protection,Supplies and Services,384956,Miscellaneous Expenses,02-Mar-17,5814510197,DURHAM COUNTY COUNCIL,9399,Licences,0.5,0,0.5
Regeneration and Local Services,Direct Services,21242,Catering - County Hall,Supplies and Services,324117,Provisions,02-Mar-17,5814510203,JR HOLLAND FOODSERVICE,5422,Catering costs - provisions,105.26,0,105.26
Regeneration and Local Services,Direct Services,21242,Catering - County Hall,Supplies and Services,324117,Provisions,02-Mar-17,5814510215,JR HOLLAND FOODSERVICE,5422,Catering costs - provisions,54.26,0,54.26
Regeneration and Local Services,Direct Services,21242,Catering - County Hall,Supplies and Services,324117,Provisions,02-Mar-17,5814510221,JR HOLLAND FOODSERVICE,5422,Catering costs - provisions,31.35,0,31.35
Regeneration and Local Services,Direct Services,21242,Catering - County Hall,Supplies and Services,324117,Provisions,02-Mar-17,5814510225,BRAKE BROS LTD,5811,Catering costs - provisions,212.47,0,212.47
Resources,I.C.T. Services,65464,Domains,Supplies and Services,372009,Subscriptions,02-Mar-17,5814510237,WEB NETWORKSOLUTIONS,5968,Subscriptions,170.16,0,170.16
Resources,I.C.T. Services,65464,Domains,Supplies and Services,372009,Subscriptions,02-Mar-17,5814510243,WEB NETWORKSOLUTIONS,5968,Subscriptions,64.55,0,64.55
Regeneration and Local Services,Direct Services,10367,C&G - South Grounds Maintenance,Supplies and Services,304259,Equipment and Materials,02-Mar-17,5814510257,BTL TIMBER AND HARDWAR,5099,Equipment-purchase and rental,163.62,0,163.62
Regeneration and Local Services,Culture & Sport,54812,Gala Theatre - Catering etc,Supplies and Services,324117,Provisions,02-Mar-17,5814510265,BRAKE BROS LTD,5811,Catering costs - provisions,54.99,0,54.99
Regeneration and Local Services,Culture & Sport,11219,Office Services,Third Party Payments,430100,Rendered by Private Contractors,02-Mar-17,5814510337,MAILCHIMP,7399,Payments to sub-contractors,41.13,0,41.13
Children and Young Peoples Services,Childrens Services,88063,Bishop Auckland 0 - 5,Supplies and Services,324117,Provisions,02-Mar-17,5814510369,TESCO STORES 6329,5411,Catering costs - provisions,29.65,0,29.65
Children and Young Peoples Services,Childrens Services,85341,High Etherley Satelite Home,Supplies and Services,324117,Provisions,02-Mar-17,5814510379,TESCO STORES 6329,5411,Catering costs - provisions,17.13,0,17.13
Regeneration and Local Services,Economic Development and Housing,30737,Durham Works Flexible Fund,Transport,230031,Contract Hire,02-Mar-17,5814510447,WWW.SIMPLYGO.COM,4131,Pupils-transport to play fields etc,6.4,0,6.4
Regeneration and Local Services,Economic Development and Housing,30737,Durham Works Flexible Fund,Supplies and Services,328041,Clothing Uniforms and Laundry,02-Mar-17,5814510457,NEW LOOK INTERNET,5621,Clothing uniforms and laundry,102.94,0,102.94
Regeneration and Local Services,Direct Services,10301,C&G - North Grounds Maintenance,Supplies and Services,304259,Equipment and Materials,02-Mar-17,5814510513,WWW.JTDOVE.CO.UK,5211,Equipment-purchase and rental,229.73,38.29,191.44
Regeneration and Local Services,Direct Services,10301,C&G - North Grounds Maintenance,Supplies and Services,304403,Equipment and Materials,02-Mar-17,5814510519,BESCOL,5231,Other consumables,188.09,31.35,156.74
Regeneration and Local Services,Direct Services,10301,C&G - North Grounds Maintenance,Supplies and Services,304259,Equipment and Materials,02-Mar-17,5814510525,SCREWFIX,5211,Equipment-purchase and rental,17.2,2.87,14.33
Regeneration and Local Services,Culture & Sport,11060,Hardwick Park Catering,Supplies and Services,324117,Provisions,02-Mar-17,5814510533,JR HOLLAND FOODSERVICE,5422,Catering costs - provisions,132.63,0,132.63
Regeneration and Local Services,Culture & Sport,11060,Hardwick Park Catering,Supplies and Services,324117,Provisions,02-Mar-17,5814510547,JR HOLLAND FOODSERVICE,5422,Catering costs - provisions,30.7,0,30.7
Regeneration and Local Services,Culture & Sport,11060,Hardwick Park Catering,Supplies and Services,324117,Provisions,02-Mar-17,5814510557,JR HOLLAND FOODSERVICE,5422,Catering costs - provisions,25.68,0,25.68
Resources,I.C.T. Services,65335,Operations - System & Repairs Trading,Supplies and Services,304639,Equipment and Materials,02-Mar-17,5814510587,Amazon UK Marketplace,5942,Technicians-supplies,34.88,0,34.88
Regeneration and Local Services,Direct Services,21234,Catering - Locomotion,Supplies and Services,324117,Provisions,02-Mar-17,5814510607,JR HOLLAND FOODSERVICE,5422,Catering costs - provisions,40.11,0,40.11
Regeneration and Local Services,Direct Services,10525,Catering - Green Lane,Supplies and Services,324117,Provisions,02-Mar-17,5814510629,JR HOLLAND FOODSERVICE,5422,Catering costs - provisions,48.61,0,48.61
Regeneration and Local Services,Direct Services,10367,C&G - South Grounds Maintenance,Supplies and Services,304259,Equipment and Materials,02-Mar-17,5814510705,JEWSON LTD,5211,Equipment-purchase and rental,81.91,13.65,68.26
Regeneration and Local Services,Economic Development and Housing,30749,Employability - Youth Contract,Transport,230031,Contract Hire,02-Mar-17,5814510735,ARRIVA NORTH EAST,4131,Pupils-transport to play fields etc,85.5,0,85.5
Regeneration and Local Services,Culture & Sport,54604,Seven Hills Spennymoor,Supplies and Services,312011,Newspapers Books and Periodicals,02-Mar-17,5814510837,Amazon UK Marketplace,5942,Books-school library,10.87,0,10.87
Regeneration and Local Services,Culture & Sport,54235,Bp Auckland Town Hall Cafe,Supplies and Services,324117,Provisions,02-Mar-17,5814510887,JR HOLLAND FOODSERVICE,5422,Catering costs - provisions,31.8,0,31.8
Regeneration and Local Services,Direct Services,21324,Catering - Meadowfield,Supplies and Services,324117,Provisions,02-Mar-17,5814510901,JR HOLLAND FOODSERVICE,5422,Catering costs - provisions,38.65,0,38.65
Regeneration and Local Services,Direct Services,21324,Catering - Meadowfield,Supplies and Services,324117,Provisions,02-Mar-17,5814510905,JR HOLLAND FOODSERVICE,5422,Catering costs - provisions,13.87,0,13.87
Children and Young Peoples Services,Childrens Services,85333,Coxhoe Satelite Home,Supplies and Services,328041,Clothing Uniforms and Laundry,02-Mar-17,5814510909,MATALAN,5691,Clothing uniforms and laundry,24.05,0,24.05
Regeneration and Local Services,Culture & Sport,11086,Positive Futures,Supplies and Services,324117,Provisions,02-Mar-17,5814510923,ASDA STORES LTD,5411,Catering costs - provisions,4.1,0,4.1
Regeneration and Local Services,RED Departmental Support Costs,30020,Centrally Managed Costs,Supplies and Services,384199,Miscellaneous Expenses,02-Mar-17,5814510931,FACEBK 98PECBA4B2,7311,Other hired and contracted services,281.84,0,281.84
Regeneration and Local Services,Strategy Programmes and Performance,30001,Corporate Director RED,Supplies and Services,344033,Telephones,02-Mar-17,5814510933,Amazon UK Marketplace,5942,Telephones general-all costs,7.99,0,7.99
Children and Young Peoples Services,Childrens Services,71404,Laurel Avenue Childrens Centre,Supplies and Services,324117,Provisions,02-Mar-17,5814510937,CO-OP GROUP 310016,5411,Catering costs - provisions,3.53,0,3.53
Regeneration and Local Services,Direct Services,21235,Catering - Wharton Park,Supplies and Services,324117,Provisions,02-Mar-17,5814510941,JR HOLLAND FOODSERVICE,5422,Catering costs - provisions,36.57,0,36.57
Regeneration and Local Services,Culture & Sport,10605,Woodhouse Close Leisure Complex,Supplies and Services,324117,Provisions,02-Mar-17,5814510949,JR HOLLAND FOODSERVICE,5422,Catering costs - provisions,33.06,0,33.06
Regeneration and Local Services,Culture & Sport,10605,Woodhouse Close Leisure Complex,Supplies and Services,324117,Provisions,02-Mar-17,5814510953,BRAKE BROS LTD,5811,Catering costs - provisions,94.26,15.71,78.55
Regeneration and Local Services,Culture & Sport,10605,Woodhouse Close Leisure Complex,Supplies and Services,324117,Provisions,02-Mar-17,000005814510953 - 1,BRAKE BROS LTD,5811,Catering costs - provisions,122.88,,122.88
Regeneration and Local Services,Culture & Sport,11230,Operations Locality 2,Supplies and Services,304259,Equipment and Materials,02-Mar-17,5814510957,WILKO RETAIL LIMIT,5722,Equipment-purchase and rental,31.94,0,31.94
Children and Young Peoples Services,Childrens Services,71693,Brandon Childrens Centre,Supplies and Services,312011,Newspapers Books and Periodicals,02-Mar-17,5814510963,THE BOOK PEOPLE,5942,Books-school library,21.98,0,21.98
Children and Young Peoples Services,Childrens Services,71693,Brandon Childrens Centre,Supplies and Services,312011,Newspapers Books and Periodicals,02-Mar-17,5814510965,THE BOOK PEOPLE,5942,Books-school library,14.92,0,14.92
Children and Young Peoples Services,Childrens Services,71693,Brandon Childrens Centre,Supplies and Services,312011,Newspapers Books and Periodicals,02-Mar-17,5814510967,THE BOOK PEOPLE,5942,Books-school library,9.99,0,9.99
Regeneration and Local Services,Economic Development and Housing,30737,Durham Works Flexible Fund,Supplies and Services,340001,Postages,02-Mar-17,5814510971,POST OFFICE COUNTER,9402,Postages,220,0,220
Children and Young Peoples Services,Childrens Services,85957,Secure Management,Supplies and Services,304403,Equipment and Materials,02-Mar-17,5819978843,AMAZON UK RETAIL AMAZO,5999,Other consumables,79.65,0,79.65
Children and Young Peoples Services,Childrens Services,71440,Barnard Castle One Point Hub,Supplies and Services,304403,Equipment and Materials,02-Mar-17,5819978893,AMAZON UK RETAIL AMAZO,5999,Other consumables,20.95,0,20.95
Regeneration and Local Services,Economic Development and Housing,30737,Durham Works Flexible Fund,Supplies and Services,328041,Clothing Uniforms and Laundry,02-Mar-17,5819978907,NEW LOOK INTERNET,5621,Clothing uniforms and laundry,86.97,0,86.97
Children and Young Peoples Services,Education,78100,Curric and Professional Development,Supplies and Services,352001,Conference Expenses,02-Mar-17,5819979127,HOLIDAYINN E MIDDLESBR,7011,Conferencesseminars fees etc,76,0,76
Children and Young Peoples Services,Childrens Services,71746,Newton Aycliffe Childrens Centre,Supplies and Services,340001,Postages,02-Mar-17,5819979137,POST OFFICE SHOP,9402,Postages,39.23,0,39.23
Regeneration and Local Services,Direct Services,10367,C&G - South Grounds Maintenance,Transport,215995,Running Costs of Vehicles,02-Mar-17,5819979217,SNOWBALLS (RAILWAY,5533,Vehicle running expenses,38.67,0,38.67
Regeneration and Local Services,Economic Development and Housing,30699,Business Growth and Innovation General,Supplies and Services,336005,Advertising,03-Mar-17,5814510057,ADROLL,7311,Advertising other than for staff,0.03,0,0.03
Resources,I.C.T. Services,65464,Domains,Supplies and Services,372009,Subscriptions,03-Mar-17,5814510247,WEB NETWORKSOLUTIONS,5968,Subscriptions,4.68,0,4.68
Resources,I.C.T. Services,65464,Domains,Supplies and Services,372009,Subscriptions,03-Mar-17,5814510251,WEB NETWORKSOLUTIONS,5968,Subscriptions,1.78,0,1.78
Children and Young Peoples Services,Education,71801,Selby Cottage Childcare Centre,Supplies and Services,324117,Provisions,03-Mar-17,5819978781,TESCO STORES 2278,5411,Catering costs - provisions,2.81,0,2.81
Regeneration and Local Services,Direct Services,10301,C&G - North Grounds Maintenance,Supplies and Services,304403,Equipment and Materials,03-Mar-17,5819978787,BESCOL,5231,Other consumables,7.14,1.19,5.95
Children and Young Peoples Services,Childrens Services,85957,Secure Management,Supplies and Services,312011,Newspapers Books and Periodicals,03-Mar-17,5819978839,Amazon UK Marketplace,5942,Books-school library,6.99,0,6.99
Children and Young Peoples Services,Childrens Services,85957,Secure Management,Supplies and Services,324117,Provisions,03-Mar-17,5819978841,TESCO STORES 6329,5411,Catering costs - provisions,92.04,0,92.04
Adult and Health Services,Head of Adults,55302,Durham Pathways,Supplies and Services,304649,Equipment and Materials,03-Mar-17,5819978865,AMAZON UK RETAIL AMAZO,5999,Toys,36.23,0,36.23
Regeneration and Local Services,Direct Services,21242,Catering - County Hall,Supplies and Services,324117,Provisions,03-Mar-17,5819978911,WWW.ADELIEFOODS.CO.UK,5499,Catering costs - provisions,93.37,0,93.37
Regeneration and Local Services,Direct Services,21242,Catering - County Hall,Supplies and Services,324117,Provisions,03-Mar-17,5819978915,JR HOLLAND FOODSERVICE,5422,Catering costs - provisions,64.55,0,64.55
Regeneration and Local Services,Direct Services,21242,Catering - County Hall,Supplies and Services,324117,Provisions,03-Mar-17,5819978919,JR HOLLAND FOODSERVICE,5422,Catering costs - provisions,39.4,0,39.4
Regeneration and Local Services,Direct Services,21242,Catering - County Hall,Supplies and Services,324117,Provisions,03-Mar-17,5819978931,JR HOLLAND FOODSERVICE,5422,Catering costs - provisions,13.16,0,13.16
Regeneration and Local Services,Direct Services,21242,Catering - County Hall,Supplies and Services,324117,Provisions,03-Mar-17,5819978935,JR HOLLAND FOODSERVICE,5422,Catering costs - provisions,13.16,0,13.16
Regeneration and Local Services,Direct Services,21242,Catering - County Hall,Supplies and Services,324117,Provisions,03-Mar-17,5819978937,BRAKE BROS LTD,5811,Catering costs - provisions,119.58,0,119.58
Regeneration and Local Services,Direct Services,21242,Catering - County Hall,Supplies and Services,324117,Provisions,03-Mar-17,5819978939,JR HOLLAND FOODSERVICE,5422,Catering costs - provisions,-21.4,0,-21.4
Regeneration and Local Services,Culture & Sport,54812,Gala Theatre - Catering etc,Supplies and Services,324117,Provisions,03-Mar-17,5819978949,JR HOLLAND FOODSERVICE,5422,Catering costs - provisions,77.71,0,77.71
Regeneration and Local Services,Spatial Policy Planning Assets & Environment,31200,North Pennines Core,Supplies and Services,384999,Miscellaneous Expenses,03-Mar-17,5819978975,HOBBYCRAFT,5970,Other expenses,28,4.67,23.33
Children and Young Peoples Services,Childrens Services,85351,Framwellgate Moor CU,Supplies and Services,312011,Newspapers Books and Periodicals,03-Mar-17,5819978979,Amazon UK Marketplace,5942,Books-school library,26.99,0,26.99
Regeneration and Local Services,Culture & Sport,11223,Operations Locality 1,Supplies and Services,324117,Provisions,03-Mar-17,5819978989,TESCO STORES 5970,5411,Catering costs - provisions,7.03,0,7.03
Children and Young Peoples Services,Childrens Services,85341,High Etherley Satelite Home,Supplies and Services,324117,Provisions,03-Mar-17,5819978991,TESCO STORES 6329,5411,Catering costs - provisions,185.56,0,185.56
Regeneration and Local Services,Culture & Sport,11060,Hardwick Park Catering,Supplies and Services,324117,Provisions,03-Mar-17,5819979019,JR HOLLAND FOODSERVICE,5422,Catering costs - provisions,27.79,0,27.79
Regeneration and Local Services,Culture & Sport,11060,Hardwick Park Catering,Supplies and Services,324117,Provisions,03-Mar-17,5819979025,JR HOLLAND FOODSERVICE,5422,Catering costs - provisions,15.61,0,15.61
Regeneration and Local Services,Culture & Sport,11060,Hardwick Park Catering,Supplies and Services,324117,Provisions,03-Mar-17,5819979027,BRAKE BROS LTD,5811,Catering costs - provisions,329.7,54.95,274.75
Regeneration and Local Services,Culture & Sport,11060,Hardwick Park Catering,Supplies and Services,324117,Provisions,03-Mar-17,000005819979027 - 1,BRAKE BROS LTD,5811,Catering costs - provisions,280.28,,280.28
Regeneration and Local Services,Culture & Sport,11060,Hardwick Park Catering,Supplies and Services,324117,Provisions,03-Mar-17,5819979033,BRAKE BROS LTD,5811,Catering costs - provisions,69.36,11.56,57.8
Regeneration and Local Services,Culture & Sport,11060,Hardwick Park Catering,Supplies and Services,324117,Provisions,03-Mar-17,000005819979033 - 1,BRAKE BROS LTD,5811,Catering costs - provisions,84.92,,84.92
Regeneration and Local Services,Economic Development and Housing,30762,Organisational Training & Development,Employees,40149,Recruitment Instruction and Training,03-Mar-17,5819979043,CITB,8220,Training-all costs,30,0,30
Regeneration and Local Services,Economic Development and Housing,30750,Durham Employment & Skills - General,Employees,40149,Recruitment Instruction and Training,03-Mar-17,5819979047,CITB,8220,Training-all costs,30,0,30
Regeneration and Local Services,Economic Development and Housing,30762,Organisational Training & Development,Employees,40149,Recruitment Instruction and Training,03-Mar-17,5819979051,CITB,8220,Training-all costs,30,0,30
Regeneration and Local Services,Economic Development and Housing,30762,Organisational Training & Development,Employees,40149,Recruitment Instruction and Training,03-Mar-17,5819979055,CITB,8220,Training-all costs,30,0,30
Regeneration and Local Services,Direct Services,21234,Catering - Locomotion,Supplies and Services,324117,Provisions,03-Mar-17,5819979073,JR HOLLAND FOODSERVICE,5422,Catering costs - provisions,45.35,0,45.35
Regeneration and Local Services,Direct Services,21234,Catering - Locomotion,Supplies and Services,324117,Provisions,03-Mar-17,5819979077,BRAKE BROS LTD,5811,Catering costs - provisions,39.54,6.59,32.95
Regeneration and Local Services,Direct Services,21234,Catering - Locomotion,Supplies and Services,324117,Provisions,03-Mar-17,000005819979077 - 1,BRAKE BROS LTD,5811,Catering costs - provisions,93.98,,93.98
Regeneration and Local Services,Direct Services,21234,Catering - Locomotion,Supplies and Services,324117,Provisions,03-Mar-17,5819979079,BRAKE BROS LTD,5811,Catering costs - provisions,54.81,0,54.81
Regeneration and Local Services,Direct Services,10525,Catering - Green Lane,Supplies and Services,324117,Provisions,03-Mar-17,5819979131,JR HOLLAND FOODSERVICE,5422,Catering costs - provisions,42.07,0,42.07
Resources,I.C.T. Services,65329,Operations - Primary Support,Supplies and Services,372009,Subscriptions,03-Mar-17,5819979145,WPY ITProTV,7392,Subscriptions,"3,495.22",0,3495.22
Children and Young Peoples Services,Childrens Services,85556,Child Protection Team Stanley,Supplies and Services,308011,Furniture,03-Mar-17,5819979183,EDS BEDS LTD,5712,Furniture repair and replacement,74,0,74
Regeneration and Local Services,Economic Development and Housing,30749,Employability - Youth Contract,Transport,230031,Contract Hire,03-Mar-17,5819979187,ARRIVA NORTH EAST,4131,Pupils-transport to play fields etc,17.7,0,17.7
Children and Young Peoples Services,Childrens Services,85333,Coxhoe Satelite Home,Supplies and Services,324117,Provisions,03-Mar-17,5819979201,TESCO STORES 2916,5411,Catering costs - provisions,64.87,0,64.87
Resources,Financial Services,65180,Collections,Supplies and Services,338048,Services,03-Mar-17,5819979231,HMCOURTS-SERVICE.G,9222,Court Costs,"8,118.00",0,8118
Regeneration and Local Services,Direct Services,21324,Catering - Meadowfield,Supplies and Services,324117,Provisions,03-Mar-17,5819979269,JR HOLLAND FOODSERVICE,5422,Catering costs - provisions,29.74,0,29.74
Regeneration and Local Services,Direct Services,21324,Catering - Meadowfield,Supplies and Services,324117,Provisions,03-Mar-17,5819979273,JR HOLLAND FOODSERVICE,5422,Catering costs - provisions,9.87,0,9.87
Regeneration and Local Services,Economic Development and Housing,30737,Durham Works Flexible Fund,Supplies and Services,324117,Provisions,03-Mar-17,5819979323,NEWS ON THE STREET,5411,Catering costs - provisions,92.5,0,92.5
Resources,I.C.T. Services,65487,ICT Telephony Recharges,Supplies and Services,344033,Telephones,03-Mar-17,5819979333,Amazon UK Marketplace,5942,Telephones general-all costs,68.8,0,68.8
Regeneration and Local Services,Economic Development and Housing,31500,Housing Solutions - Core Team,Supplies and Services,338064,Services,03-Mar-17,5819979349,DISCLOSURE SCOT,9399,Disclosure & Barring (DBS) Fees,25,0,25
Children and Young Peoples Services,Childrens Services,71693,Brandon Childrens Centre,Employees,40149,Recruitment Instruction and Training,03-Mar-17,5819979395,HTTP://SHOP.ICAN.ORG.U,8398,Training-all costs,25.98,0,25.98
Regeneration and Local Services,Spatial Policy Planning Assets & Environment,31115,Business Energy Efficiency Project (BEEP),Supplies and Services,332047,Printing Stationery and Gen Off Exps,03-Mar-17,5827188751,LIGHT/MINI IN THE BOX,5399,Stationery,36.56,0,36.56
Children and Young Peoples Services,Education,71801,Selby Cottage Childcare Centre,Supplies and Services,324117,Provisions,04-Mar-17,5819978785,ASDA HOME SHOPPING,5411,Catering costs - provisions,5,0,5
Children and Young Peoples Services,Childrens Services,85957,Secure Management,Supplies and Services,324117,Provisions,04-Mar-17,5819978847,TESCO STORES 6329,5411,Catering costs - provisions,91.22,0,91.22
Regeneration and Local Services,Economic Development and Housing,30699,Business Growth and Innovation General,Supplies and Services,304403,Equipment and Materials,04-Mar-17,5819978857,MEETEDGAR MONTHLY,5734,Other consumables,40.06,0,40.06
Regeneration and Local Services,Direct Services,21242,Catering - County Hall,Supplies and Services,324117,Provisions,04-Mar-17,5819978941,BRAKE BROS LTD,5811,Catering costs - provisions,-13.6,0,-13.6
Children and Young Peoples Services,Education,79599,Psychological-HQ,Supplies and Services,312011,Newspapers Books and Periodicals,04-Mar-17,5819978969,Amazon UK Marketplace,5942,Books-school library,49.6,0,49.6
Regeneration and Local Services,Direct Services,21234,Catering - Locomotion,Supplies and Services,324117,Provisions,04-Mar-17,5819979139,SAINSBURYS 2199,5411,Catering costs - provisions,7.1,0,7.1
Resources,I.C.T. Services,65487,ICT Telephony Recharges,Supplies and Services,344033,Telephones,04-Mar-17,5819979335,Amazon UK Marketplace,5942,Telephones general-all costs,105,0,105
Regeneration and Local Services,Spatial Policy Planning Assets & Environment,30999,Head of Spatial PolicyPlanning Assets & Environment,Supplies and Services,344033,Telephones,04-Mar-17,5819979337,Amazon UK Marketplace,5942,Telephones general-all costs,11.99,0,11.99
Adult and Health Services,Planning & Service Strategy,52904,Head of Planning and Performance,Supplies and Services,344033,Telephones,04-Mar-17,5819979339,Amazon UK Marketplace,5942,Telephones general-all costs,13.99,0,13.99
Regeneration and Local Services,Direct Services,21235,Catering - Wharton Park,Supplies and Services,324117,Provisions,04-Mar-17,5819979367,BRAKE BROS LTD,5811,Catering costs - provisions,106.38,17.73,88.65
Regeneration and Local Services,Direct Services,21235,Catering - Wharton Park,Supplies and Services,324117,Provisions,04-Mar-17,000005819979367 - 1,BRAKE BROS LTD,5811,Catering costs - provisions,36.36,,36.36
Regeneration and Local Services,Direct Services,21235,Catering - Wharton Park,Supplies and Services,324117,Provisions,04-Mar-17,5819979371,BRAKE BROS LTD,5811,Catering costs - provisions,95.4,15.9,79.5
Regeneration and Local Services,Direct Services,21235,Catering - Wharton Park,Supplies and Services,324117,Provisions,04-Mar-17,000005819979371 - 1,BRAKE BROS LTD,5811,Catering costs - provisions,4.58,,4.58
Children and Young Peoples Services,Childrens Services,71693,Brandon Childrens Centre,Supplies and Services,304403,Equipment and Materials,04-Mar-17,5819979397,AMAZON UK RETAIL AMAZO,5999,Other consumables,51.54,0,51.54
Children and Young Peoples Services,Childrens Services,88063,Bishop Auckland 0 - 5,Supplies and Services,324117,Provisions,05-Mar-17,5819978985,ASDA STORES,5411,Catering costs - provisions,29.92,0,29.92
Regeneration and Local Services,Economic Development and Housing,30554,International Relations,Transport,235057,Public Transport,05-Mar-17,5819979005,NEWCASTLE PARK AND FLY,7523,Staff travelling,4.5,0.75,3.75
Regeneration and Local Services,Economic Development and Housing,30554,International Relations,Supplies and Services,348037,Subsistence,05-Mar-17,5819979009,THE HARRY CLASPER,5812,Subsistence,31.61,5.27,26.34
Regeneration and Local Services,Economic Development and Housing,30554,International Relations,Supplies and Services,348037,Subsistence,05-Mar-17,5819979011,THE HARRY CLASPER,5812,Subsistence,10,1.67,8.33
Children and Young Peoples Services,Childrens Services,85551,Short Break Services-Park Hse Sher,Supplies and Services,324117,Provisions,05-Mar-17,5819979071,TESCO STORES 2371,5411,Catering costs - provisions,134,0,134
Children and Young Peoples Services,Childrens Services,85333,Coxhoe Satelite Home,Supplies and Services,324117,Provisions,05-Mar-17,5819979205,CO-OP GROUP 310016,5411,Catering costs - provisions,12.6,0,12.6
Resources,Resources Management,69000,Resources Management,Supplies and Services,324117,Provisions,05-Mar-17,5819979215,CO-OP GROUP 310016,5411,Catering costs - provisions,10.79,0,10.79
Children and Young Peoples Services,Childrens Services,88083,Ferryhill 0 - 5,Supplies and Services,328041,Clothing Uniforms and Laundry,05-Mar-17,5819979317,THE RANGE,5311,Clothing uniforms and laundry,6,0,6
Regeneration and Local Services,Economic Development and Housing,30700,Head of Economic Development Management & Admin,Supplies and Services,312011,Newspapers Books and Periodicals,05-Mar-17,5819979341,Amazon UK Marketplace,5942,Books-school library,126.08,0,126.08
Adult and Health Services,Planning & Service Strategy,52904,Head of Planning and Performance,Supplies and Services,344033,Telephones,05-Mar-17,5819979345,Amazon UK Marketplace,5942,Telephones general-all costs,20,0,20
Regeneration and Local Services,Spatial Policy Planning Assets & Environment,31071,Sustainability and Climate Change,Supplies and Services,332047,Printing Stationery and Gen Off Exps,05-Mar-17,5819979347,Amazon EU,5969,Stationery,17.35,0,17.35
Regeneration and Local Services,Economic Development and Housing,30699,Business Growth and Innovation General,Supplies and Services,304403,Equipment and Materials,06-Mar-17,5819978861,MEETEDGAR MONTHLY,5734,Other consumables,1.1,0,1.1
Resources,I.C.T. Services,65329,Operations - Primary Support,Supplies and Services,372009,Subscriptions,06-Mar-17,5819979149,WPY ITProTV,7392,Subscriptions,96.12,0,96.12
Regeneration and Local Services,Direct Services,21242,Catering - County Hall,Supplies and Services,324117,Provisions,06-Mar-17,5827188213,TESCO STORES 2916,5411,Catering costs - provisions,7.08,0,7.08
Children and Young Peoples Services,Education,71801,Selby Cottage Childcare Centre,Supplies and Services,304259,Equipment and Materials,06-Mar-17,5827188217,WILKO RETAIL LIMIT,5722,Equipment-purchase and rental,11.15,0,11.15
Children and Young Peoples Services,Education,71801,Selby Cottage Childcare Centre,Supplies and Services,324117,Provisions,06-Mar-17,5827188219,ASDA HOME SHOPPING,5411,Catering costs - provisions,117.04,0,117.04
Children and Young Peoples Services,Childrens Services,88093,Newton Aycliffe 0 - 5,Supplies and Services,304403,Equipment and Materials,06-Mar-17,5827188229,ASDA HOME SHOPPING,5411,Other consumables,30.51,0,30.51
Children and Young Peoples Services,Childrens Services,88093,Newton Aycliffe 0 - 5,Supplies and Services,304403,Equipment and Materials,06-Mar-17,5827188233,ASDA HOME SHOPPING,5411,Other consumables,-1,0,-1
Children and Young Peoples Services,Childrens Services,85342,9 Cedar Drive Aycliffe,Supplies and Services,324117,Provisions,06-Mar-17,5827188253,TESCO STORES 2916,5411,Catering costs - provisions,210.88,0,210.88
Children and Young Peoples Services,Childrens Services,85342,9 Cedar Drive Aycliffe,Supplies and Services,324117,Provisions,06-Mar-17,5827188257,TESCO STORES 2916,5411,Catering costs - provisions,7.5,0,7.5
Regeneration and Local Services,Economic Development and Housing,30737,Durham Works Flexible Fund,Supplies and Services,328041,Clothing Uniforms and Laundry,06-Mar-17,5827188301,ASDA STORES LTD,5411,Clothing uniforms and laundry,74,0,74
Regeneration and Local Services,Direct Services,21242,Catering - County Hall,Supplies and Services,324117,Provisions,06-Mar-17,5827188305,FREEMAN CATERING BUTCH,5422,Catering costs - provisions,154.26,0,154.26
Regeneration and Local Services,Direct Services,21242,Catering - County Hall,Supplies and Services,324117,Provisions,06-Mar-17,5827188309,BRAKE BROS LTD,5811,Catering costs - provisions,293.46,48.91,244.55
Regeneration and Local Services,Direct Services,21242,Catering - County Hall,Supplies and Services,324117,Provisions,06-Mar-17,000005827188309 - 1,BRAKE BROS LTD,5811,Catering costs - provisions,196.08,,196.08
Regeneration and Local Services,Direct Services,21242,Catering - County Hall,Supplies and Services,324117,Provisions,06-Mar-17,5827188315,BRAKE BROS LTD,5811,Catering costs - provisions,189.61,0,189.61
Regeneration and Local Services,Direct Services,10367,C&G - South Grounds Maintenance,Supplies and Services,304259,Equipment and Materials,06-Mar-17,5827188323,BTL TIMBER AND HARDWAR,5099,Equipment-purchase and rental,99,0,99
Regeneration and Local Services,Culture & Sport,54812,Gala Theatre - Catering etc,Supplies and Services,324117,Provisions,06-Mar-17,5827188327,FREEMAN CATERING BUTCH,5422,Catering costs - provisions,49.57,0,49.57
Regeneration and Local Services,Direct Services,10900,Fleet - Meadowfield Fleet,Transport,215013,Running Costs of Vehicles,06-Mar-17,5827188363,DVLA VEHICLE TAX,9399,Vehicle Excise Duty (VED),237.5,0,237.5
Children and Young Peoples Services,Childrens Services,88063,Bishop Auckland 0 - 5,Supplies and Services,324117,Provisions,06-Mar-17,5827188371,TESCO STORES 6329,5411,Catering costs - provisions,29.35,0,29.35
Children and Young Peoples Services,Education,71732,Dean Bank Childcare,Supplies and Services,324117,Provisions,06-Mar-17,5827188399,ASDA HOME SHOPPING,5411,Catering costs - provisions,55.46,0,55.46
Children and Young Peoples Services,Childrens Services,85341,High Etherley Satelite Home,Supplies and Services,304259,Equipment and Materials,06-Mar-17,5827188403,Amazon UK Marketplace,5942,Equipment-purchase and rental,3.6,0,3.6
Regeneration and Local Services,Economic Development and Housing,30554,International Relations,Supplies and Services,348037,Subsistence,06-Mar-17,5827188411,THE QUEENS ARMS,5813,Subsistence,50.1,0,50.1
Children and Young Peoples Services,Childrens Services,88037,One Point YEI,Supplies and Services,304403,Equipment and Materials,06-Mar-17,5827188429,GRO HM PASSPORT OFFICE,9399,Other consumables,9.25,0,9.25
Children and Young Peoples Services,Childrens Services,85958,Support Services,Supplies and Services,312011,Newspapers Books and Periodicals,06-Mar-17,5827188437,Amazon UK Marketplace,5942,Books-school library,15.6,0,15.6
Regeneration and Local Services,Direct Services,10367,C&G - South Grounds Maintenance,Supplies and Services,304259,Equipment and Materials,06-Mar-17,5827188475,SCREWFIX,5211,Equipment-purchase and rental,65.88,10.98,54.9
Regeneration and Local Services,Culture & Sport,11060,Hardwick Park Catering,Supplies and Services,324117,Provisions,06-Mar-17,5827188485,FREEMAN CATERING BUTCH,5422,Catering costs - provisions,33.94,0,33.94
Regeneration and Local Services,Culture & Sport,11060,Hardwick Park Catering,Supplies and Services,324117,Provisions,06-Mar-17,5827188489,FREEMAN CATERING BUTCH,5422,Catering costs - provisions,8.75,0,8.75
Regeneration and Local Services,Culture & Sport,11060,Hardwick Park Catering,Supplies and Services,324117,Provisions,06-Mar-17,5827188491,BRAKE BROS LTD,5811,Catering costs - provisions,242.82,40.47,202.35
Regeneration and Local Services,Culture & Sport,11060,Hardwick Park Catering,Supplies and Services,324117,Provisions,06-Mar-17,000005827188491 - 1,BRAKE BROS LTD,5811,Catering costs - provisions,64.29,,64.29
Regeneration and Local Services,Culture & Sport,11060,Hardwick Park Catering,Supplies and Services,324117,Provisions,06-Mar-17,5827188497,BRAKE BROS LTD,5811,Catering costs - provisions,112.26,18.71,93.55
Regeneration and Local Services,Culture & Sport,11060,Hardwick Park Catering,Supplies and Services,324117,Provisions,06-Mar-17,000005827188497 - 1,BRAKE BROS LTD,5811,Catering costs - provisions,174.35,,174.35
Resources,I.C.T. Services,65327,Operations - MSU,Supplies and Services,304639,Equipment and Materials,06-Mar-17,5827188509,Amazon UK Marketplace,5942,Technicians-supplies,14.98,0,14.98
Regeneration and Local Services,Culture & Sport,54815,Gala Theatre Stage School,Supplies and Services,328041,Clothing Uniforms and Laundry,06-Mar-17,5827188513,PAYPAL KAYE MILNE,5651,Clothing uniforms and laundry,38,0,38
Regeneration and Local Services,Economic Development and Housing,30762,Organisational Training & Development,Employees,40149,Recruitment Instruction and Training,06-Mar-17,5827188517,CITB,8220,Training-all costs,30,0,30
Children and Young Peoples Services,Childrens Services,85551,Short Break Services-Park Hse Sher,Supplies and Services,312011,Newspapers Books and Periodicals,06-Mar-17,5827188521,Amazon UK Marketplace,5942,Books-school library,8.78,0,8.78
Children and Young Peoples Services,Childrens Services,85551,Short Break Services-Park Hse Sher,Supplies and Services,304403,Equipment and Materials,06-Mar-17,5827188523,AMAZON.CO.UK,5999,Other consumables,4.5,0,4.5
Regeneration and Local Services,Direct Services,10525,Catering - Green Lane,Supplies and Services,324117,Provisions,06-Mar-17,5827188531,FREEMAN CATERING BUTCH,5422,Catering costs - provisions,82.91,0,82.91
Regeneration and Local Services,Direct Services,10525,Catering - Green Lane,Supplies and Services,324117,Provisions,06-Mar-17,5827188537,BRAKE BROS LTD,5811,Catering costs - provisions,62.72,0,62.72
Regeneration and Local Services,Economic Development and Housing,30749,Employability - Youth Contract,Employees,40149,Recruitment Instruction and Training,06-Mar-17,5827188579,ELECTRICAL CONTRACTORS,1731,Training-all costs,52.5,0,52.5
Children and Young Peoples Services,Childrens Services,88043,Consett 0 - 5,Supplies and Services,304403,Equipment and Materials,06-Mar-17,5827188587,AMAZON UK RETAIL AMAZO,5999,Other consumables,128.87,0,128.87
Resources,Financial Services,65180,Collections,Supplies and Services,338048,Services,06-Mar-17,5827188609,HMCOURTS-SERVICE.G,9222,Court Costs,565,0,565
Regeneration and Local Services,Direct Services,10301,C&G - North Grounds Maintenance,Supplies and Services,304259,Equipment and Materials,06-Mar-17,5827188629,HARELAW SAWMILL,5211,Equipment-purchase and rental,131.26,21.88,109.38
Regeneration and Local Services,Direct Services,10301,C&G - North Grounds Maintenance,Supplies and Services,304259,Equipment and Materials,06-Mar-17,5827188631,HARELAW SAWMILL,5211,Equipment-purchase and rental,344.07,0,344.07
Children and Young Peoples Services,Childrens Services,88001,Peterlee Locality,Supplies and Services,304259,Equipment and Materials,06-Mar-17,5827188643,WILKO RETAIL LIMIT,5722,Equipment-purchase and rental,11.5,0,11.5
Regeneration and Local Services,Direct Services,21324,Catering - Meadowfield,Supplies and Services,324117,Provisions,06-Mar-17,5827188651,FREEMAN CATERING BUTCH,5422,Catering costs - provisions,57.93,0,57.93
Regeneration and Local Services,Direct Services,21324,Catering - Meadowfield,Supplies and Services,324117,Provisions,06-Mar-17,5827188655,FREEMAN CATERING BUTCH,5422,Catering costs - provisions,41.93,0,41.93
Children and Young Peoples Services,Childrens Services,85331,New Lea Childrens Home,Transport,235057,Public Transport,06-Mar-17,5827188731,WWW.SIMPLYGO.COM,4131,Staff travelling,15.5,0,15.5
Transformation and Partnerships,Policy & Communications Division,60270,Communications and Marketing,Supplies and Services,332047,Printing Stationery and Gen Off Exps,06-Mar-17,5827188735,Amazon UK Marketplace,5942,Stationery,5.99,0,5.99
Regeneration and Local Services,Spatial Policy Planning Assets & Environment,31081,Heritage Coast,Supplies and Services,352001,Conference Expenses,06-Mar-17,5827188739,SUNDERLAND MARINA,4468,Conferencesseminars fees etc,20,0,20
Adult and Health Services,Head of Adults,51575,Reablement South,Supplies and Services,340001,Postages,06-Mar-17,5827188743,ROYAL MAIL ONLINE SHOP,9402,Postages,256,0,256
Adult and Health Services,Head of Adults,51622,OP/PD Dales,Supplies and Services,340001,Postages,06-Mar-17,5827188745,ROYAL MAIL ONLINE SHOP,9402,Postages,75,0,75
Resources,I.C.T. Services,69010,Administration,Supplies and Services,342033,Computers and Communications,06-Mar-17,5827188747,avangate advancedinsta,5734,Computer hardware,774.95,0,774.95
Regeneration and Local Services,Culture & Sport,10605,Woodhouse Close Leisure Complex,Supplies and Services,324117,Provisions,06-Mar-17,5827188761,FREEMAN CATERING BUTCH,5422,Catering costs - provisions,49.8,0,49.8
Regeneration and Local Services,Culture & Sport,10605,Woodhouse Close Leisure Complex,Supplies and Services,324117,Provisions,06-Mar-17,5827188763,BRAKE BROS LTD,5811,Catering costs - provisions,64.24,0,64.24
Regeneration and Local Services,Economic Development and Housing,30737,Durham Works Flexible Fund,Supplies and Services,324117,Provisions,06-Mar-17,5827188775,FAMILY SHOPPER 17189,5411,Catering costs - provisions,100,0,100
Transformation and Partnerships,Partnerships & Community Engagement Div.,60472,Syrian Vulnerable Persons Scheme,Supplies and Services,308011,Furniture,06-Mar-17,5827188779,Argos Durham Arnis,5310,Furniture repair and replacement,5.99,1,4.99
Transformation and Partnerships,Partnerships & Community Engagement Div.,60472,Syrian Vulnerable Persons Scheme,Supplies and Services,308011,Furniture,06-Mar-17,5827188783,WILKO DURHAM 426,5722,Furniture repair and replacement,41.15,0,41.15
Transformation and Partnerships,Partnerships & Community Engagement Div.,60472,Syrian Vulnerable Persons Scheme,Supplies and Services,308011,Furniture,06-Mar-17,5827188785,WILKO.COM,5722,Furniture repair and replacement,67,0,67
Transformation and Partnerships,Partnerships & Community Engagement Div.,60472,Syrian Vulnerable Persons Scheme,Supplies and Services,308011,Furniture,06-Mar-17,5827188787,VERTICAL BLINDS DIRECT,5719,Furniture repair and replacement,169.09,28.18,140.91
Transformation and Partnerships,Partnerships & Community Engagement Div.,60472,Syrian Vulnerable Persons Scheme,Supplies and Services,308011,Furniture,06-Mar-17,5827188791,TERRYS TEXTILES LT,5949,Furniture repair and replacement,174.91,29.15,145.76
Transformation and Partnerships,Partnerships & Community Engagement Div.,60472,Syrian Vulnerable Persons Scheme,Supplies and Services,308011,Furniture,06-Mar-17,5827188793,ASDA STORES LTD 4313,5411,Furniture repair and replacement,170.5,28.42,142.08
Transformation and Partnerships,Partnerships & Community Engagement Div.,60472,Syrian Vulnerable Persons Scheme,Supplies and Services,308011,Furniture,06-Mar-17,5827188797,ASDA GEORGE COM LEEDS,5411,Furniture repair and replacement,188.95,31.49,157.46
Regeneration and Local Services,Spatial Policy Planning Assets & Environment,31200,North Pennines Core,Supplies and Services,312011,Newspapers Books and Periodicals,06-Mar-17,5827188805,Amazon UK Marketplace,5942,Books-school library,4,0,4
Regeneration and Local Services,Spatial Policy Planning Assets & Environment,31200,North Pennines Core,Supplies and Services,312011,Newspapers Books and Periodicals,06-Mar-17,5827188809,Amazon UK Marketplace,5942,Books-school library,5.75,0,5.75
Regeneration and Local Services,Economic Development and Housing,30749,Employability - Youth Contract,Supplies and Services,324117,Provisions,06-Mar-17,5827188817,ONE STOP 2969,5411,Catering costs - provisions,85.5,0,85.5
Regeneration and Local Services,Economic Development and Housing,30749,Employability - Youth Contract,Supplies and Services,324117,Provisions,06-Mar-17,5827188821,ONE STOP 2969,5411,Catering costs - provisions,85.5,0,85.5
Children and Young Peoples Services,Childrens Services,85342,9 Cedar Drive Aycliffe,Employees,40149,Recruitment Instruction and Training,06-Mar-17,5830643373,PARENTPAY E-COM R,8220,Training-all costs,30,0,30
Regeneration and Local Services,Direct Services,21242,Catering - County Hall,Supplies and Services,324117,Provisions,06-Mar-17,5830643473,JR HOLLAND FOODSERVICE,5422,Catering costs - provisions,81.96,0,81.96
Regeneration and Local Services,Direct Services,21242,Catering - County Hall,Supplies and Services,324117,Provisions,06-Mar-17,5830643479,JR HOLLAND FOODSERVICE,5422,Catering costs - provisions,13.52,0,13.52
Regeneration and Local Services,Culture & Sport,54233,Bp Auckland Town Hall Library,Supplies and Services,304403,Equipment and Materials,06-Mar-17,5830643497,AMAZON UK RETAIL AMAZO,5999,Other consumables,52.97,0,52.97
Regeneration and Local Services,Culture & Sport,11060,Hardwick Park Catering,Supplies and Services,324117,Provisions,06-Mar-17,5830643759,JR HOLLAND FOODSERVICE,5422,Catering costs - provisions,22.11,0,22.11
Adult and Health Services,AWH Redundant Cost Centres,52974,Stanley Education Centre,Supplies and Services,340001,Postages,06-Mar-17,5830643921,POST OFFICE SHOP,9402,Postages,152.99,0,152.99
Regeneration and Local Services,Culture & Sport,54235,Bp Auckland Town Hall Cafe,Supplies and Services,324117,Provisions,06-Mar-17,5830644091,JR HOLLAND FOODSERVICE,5422,Catering costs - provisions,11.88,0,11.88
Regeneration and Local Services,Culture & Sport,10605,Woodhouse Close Leisure Complex,Supplies and Services,324117,Provisions,06-Mar-17,5830644303,JR HOLLAND FOODSERVICE,5422,Catering costs - provisions,35.69,0,35.69
Regeneration and Local Services,Economic Development and Housing,30737,Durham Works Flexible Fund,Supplies and Services,304245,Equipment and Materials,06-Mar-17,5839695081,HALFORDS ON LINE,5940,Materials,190.49,0,190.49
Resources,I.C.T. Services,65321,Operations,Supplies and Services,342033,Computers and Communications,07-Mar-17,5827188753,avangate advancedinsta,5734,Computer hardware,1.01,0,1.01
Regeneration and Local Services,Spatial Policy Planning Assets & Environment,31200,North Pennines Core,Supplies and Services,312011,Newspapers Books and Periodicals,07-Mar-17,5827188811,Amazon UK Marketplace,5942,Books-school library,25.56,0,25.56
Regeneration and Local Services,Spatial Policy Planning Assets & Environment,31200,North Pennines Core,Supplies and Services,312011,Newspapers Books and Periodicals,07-Mar-17,5827188813,Amazon UK Marketplace,5942,Books-school library,4.85,0,4.85
Children and Young Peoples Services,Education,71801,Selby Cottage Childcare Centre,Supplies and Services,304259,Equipment and Materials,07-Mar-17,5830643319,WILKO RETAIL LIMIT,5722,Equipment-purchase and rental,36.51,0,36.51
Children and Young Peoples Services,Childrens Services,85342,9 Cedar Drive Aycliffe,Supplies and Services,324117,Provisions,07-Mar-17,5830643377,G BOLAM FOODS,5499,Catering costs - provisions,188.8,0,188.8
Regeneration and Local Services,Economic Development and Housing,30699,Business Growth and Innovation General,Supplies and Services,312011,Newspapers Books and Periodicals,07-Mar-17,5830643389,FASTHOSTS INTERNET,4816,Books-school library,15.58,2.6,12.98
Children and Young Peoples Services,Childrens Services,71440,Barnard Castle One Point Hub,Supplies and Services,312011,Newspapers Books and Periodicals,07-Mar-17,5830643465,Amazon EU,5969,Books-school library,313.36,0,313.36
Regeneration and Local Services,Direct Services,21242,Catering - County Hall,Supplies and Services,324117,Provisions,07-Mar-17,5830643485,WWW.ADELIEFOODS.CO.UK,5499,Catering costs - provisions,156.14,0,156.14
Regeneration and Local Services,Direct Services,21242,Catering - County Hall,Supplies and Services,324117,Provisions,07-Mar-17,5830643487,WWW.ADELIEFOODS.CO.UK,5499,Catering costs - provisions,105.63,0,105.63
Regeneration and Local Services,Direct Services,21242,Catering - County Hall,Supplies and Services,324117,Provisions,07-Mar-17,5830643491,WWW.ADELIEFOODS.CO.UK,5499,Catering costs - provisions,46.99,0,46.99
Children and Young Peoples Services,Childrens Services,88037,One Point YEI,Supplies and Services,384999,Miscellaneous Expenses,07-Mar-17,5830643515,DURHAM COUNTY COUNCIL,9399,Other expenses,12,0,12
Resources,I.C.T. Services,65481,Technical Services,Supplies and Services,344033,Telephones,07-Mar-17,5830643521,BT REPAYMENT WORKS,4814,Telephones general-all costs,299,49.83,249.17
Regeneration and Local Services,Direct Services,10367,C&G - South Grounds Maintenance,Supplies and Services,304221,Equipment and Materials,07-Mar-17,5830643525,R DEFTY,5200,Direct materials,7.1,0,7.1
Regeneration and Local Services,Culture & Sport,54812,Gala Theatre - Catering etc,Supplies and Services,324117,Provisions,07-Mar-17,5830643535,BRAKE BROS LTD,5811,Catering costs - provisions,37.32,6.22,31.1
Regeneration and Local Services,Culture & Sport,54812,Gala Theatre - Catering etc,Supplies and Services,324117,Provisions,07-Mar-17,000005830643535 - 1,BRAKE BROS LTD,5811,Catering costs - provisions,133.83,,133.83
Children and Young Peoples Services,Childrens Services,88063,Bishop Auckland 0 - 5,Supplies and Services,324117,Provisions,07-Mar-17,5830643581,ASDA STORES,5411,Catering costs - provisions,15.35,0,15.35
Children and Young Peoples Services,Childrens Services,85341,High Etherley Satelite Home,Supplies and Services,324117,Provisions,07-Mar-17,5830643635,TESCO STORES 6329,5411,Catering costs - provisions,6,0,6
Regeneration and Local Services,Economic Development and Housing,30737,Durham Works Flexible Fund,Supplies and Services,384999,Miscellaneous Expenses,07-Mar-17,5830643667,WWW.CITIZENCARD.COM,9399,Other expenses,15,0,15
Children and Young Peoples Services,Childrens Services,88023,Chester Le Street 0 - 5,Supplies and Services,332047,Printing Stationery and Gen Off Exps,07-Mar-17,5830643685,AMAZON UK RETAIL AMAZO,5999,Stationery,57.98,0,57.98
Children and Young Peoples Services,Childrens Services,85958,Support Services,Supplies and Services,372009,Subscriptions,07-Mar-17,5830643697,WP-CLASSROOM RESOU,2741,Subscriptions,100.19,16.7,83.49
Children and Young Peoples Services,Childrens Services,85958,Support Services,Supplies and Services,328041,Clothing Uniforms and Laundry,07-Mar-17,5830643701,MAINLINE MENSWEAR,5611,Clothing uniforms and laundry,59.95,0,59.95
Children and Young Peoples Services,Childrens Services,85958,Support Services,Supplies and Services,342033,Computers and Communications,07-Mar-17,5830643705,VERY.CO.UK,5964,Computer hardware,45,0,45
Children and Young Peoples Services,Childrens Services,85958,Support Services,Supplies and Services,342033,Computers and Communications,07-Mar-17,5830643711,VERY.CO.UK,5964,Computer hardware,45,0,45
Children and Young Peoples Services,Childrens Services,85958,Support Services,Supplies and Services,342033,Computers and Communications,07-Mar-17,5830643713,VERY.CO.UK,5964,Computer hardware,23,0,23
Children and Young Peoples Services,Childrens Services,85958,Support Services,Supplies and Services,342033,Computers and Communications,07-Mar-17,5830643715,VERY.CO.UK,5964,Computer hardware,3.99,0,3.99
Regeneration and Local Services,Direct Services,10367,C&G - South Grounds Maintenance,Supplies and Services,304259,Equipment and Materials,07-Mar-17,5830643737,SCREWFIX,5211,Equipment-purchase and rental,18.86,3.14,15.72
Regeneration and Local Services,Direct Services,10367,C&G - South Grounds Maintenance,Supplies and Services,304259,Equipment and Materials,07-Mar-17,5830643741,HORNS GARDEN CENTR,5261,Equipment-purchase and rental,36.99,0,36.99
Resources,I.C.T. Services,65335,Operations - System & Repairs Trading,Supplies and Services,304639,Equipment and Materials,07-Mar-17,5830643767,Amazon UK Marketplace,5942,Technicians-supplies,38.85,0,38.85
Regeneration and Local Services,Economic Development and Housing,30762,Organisational Training & Development,Employees,40149,Recruitment Instruction and Training,07-Mar-17,5830643775,NCS VUE CITB HS&E REV,8299,Training-all costs,487.5,0,487.5
Regeneration and Local Services,Economic Development and Housing,30762,Organisational Training & Development,Employees,40149,Recruitment Instruction and Training,07-Mar-17,5830643779,CITB,8220,Training-all costs,30,0,30
Regeneration and Local Services,Economic Development and Housing,30762,Organisational Training & Development,Employees,40149,Recruitment Instruction and Training,07-Mar-17,5830643781,CITB,8220,Training-all costs,30,0,30
Children and Young Peoples Services,Childrens Services,85551,Short Break Services-Park Hse Sher,Supplies and Services,312011,Newspapers Books and Periodicals,07-Mar-17,5830643783,Amazon UK Marketplace,5942,Books-school library,21.45,0,21.45
Regeneration and Local Services,Direct Services,21234,Catering - Locomotion,Supplies and Services,324117,Provisions,07-Mar-17,5830643791,WWW.ADELIEFOODS.CO.UK,5499,Catering costs - provisions,55.5,0,55.5
Regeneration and Local Services,Direct Services,21234,Catering - Locomotion,Supplies and Services,324117,Provisions,07-Mar-17,5830643793,WWW.ADELIEFOODS.CO.UK,5499,Catering costs - provisions,55.5,0,55.5
Regeneration and Local Services,Direct Services,21234,Catering - Locomotion,Supplies and Services,324117,Provisions,07-Mar-17,5830643799,WWW.ADELIEFOODS.CO.UK,5499,Catering costs - provisions,55.5,9.25,46.25
Regeneration and Local Services,Direct Services,21234,Catering - Locomotion,Supplies and Services,324117,Provisions,07-Mar-17,5830643801,WWW.ADELIEFOODS.CO.UK,5499,Catering costs - provisions,40.03,0,40.03
Regeneration and Local Services,Direct Services,21234,Catering - Locomotion,Supplies and Services,324117,Provisions,07-Mar-17,5830643805,BRAKE BROS LTD,5811,Catering costs - provisions,369.72,61.62,308.1
Regeneration and Local Services,Direct Services,21234,Catering - Locomotion,Supplies and Services,324117,Provisions,07-Mar-17,000005830643805 - 1,BRAKE BROS LTD,5811,Catering costs - provisions,68.74,,68.74
Regeneration and Local Services,Culture & Sport,11204,Events,Supplies and Services,324117,Provisions,07-Mar-17,5830643813,TESCO STORES 6029,5411,Catering costs - provisions,6.03,0,6.03
Regeneration and Local Services,Spatial Policy Planning Assets & Environment,31071,Sustainability and Climate Change,Supplies and Services,348037,Subsistence,07-Mar-17,5830643821,PICCOLO MONDO,5812,Subsistence,68.83,0,68.83
Regeneration and Local Services,Spatial Policy Planning Assets & Environment,31071,Sustainability and Climate Change,Transport,235057,Public Transport,07-Mar-17,5830643831,DSB KASTRUP AUT,4111,Staff travelling,41.57,0,41.57
Regeneration and Local Services,Spatial Policy Planning Assets & Environment,31071,Sustainability and Climate Change,Supplies and Services,348037,Subsistence,07-Mar-17,5830643833,BAR 11,5814,Subsistence,51.7,0,51.7
Regeneration and Local Services,Direct Services,10525,Catering - Green Lane,Supplies and Services,324117,Provisions,07-Mar-17,5830643875,WWW.ADELIEFOODS.CO.UK,5499,Catering costs - provisions,40.66,0,40.66
Regeneration and Local Services,Direct Services,10525,Catering - Green Lane,Supplies and Services,324117,Provisions,07-Mar-17,5830643881,WWW.ADELIEFOODS.CO.UK,5499,Catering costs - provisions,37.43,0,37.43
Regeneration and Local Services,Direct Services,10525,Catering - Green Lane,Supplies and Services,324117,Provisions,07-Mar-17,5830643883,BRAKE BROS LTD,5811,Catering costs - provisions,197.46,32.91,164.55
Regeneration and Local Services,Direct Services,10525,Catering - Green Lane,Supplies and Services,324117,Provisions,07-Mar-17,000005830643883 - 1,BRAKE BROS LTD,5811,Catering costs - provisions,168.79,,168.79
Children and Young Peoples Services,Childrens Services,85352,Tow Law CU,Supplies and Services,328041,Clothing Uniforms and Laundry,07-Mar-17,5830643927,MATALAN,5691,Clothing uniforms and laundry,178.2,0,178.2
Regeneration and Local Services,Economic Development and Housing,30749,Employability - Youth Contract,Transport,235057,Public Transport,07-Mar-17,5830643955,ARRIVA NORTH EAST,4131,Staff travelling,85.5,0,85.5
Regeneration and Local Services,Economic Development and Housing,30749,Employability - Youth Contract,Transport,230031,Contract Hire,07-Mar-17,5830643959,VIRGINTRAINSEC DHM STN,4112,Pupils-transport to play fields etc,86.2,0,86.2
Children and Young Peoples Services,Childrens Services,85333,Coxhoe Satelite Home,Supplies and Services,324117,Provisions,07-Mar-17,5830643991,CO-OP GROUP 310016,5411,Catering costs - provisions,16.58,0,16.58
Children and Young Peoples Services,Childrens Services,88043,Consett 0 - 5,Supplies and Services,312011,Newspapers Books and Periodicals,07-Mar-17,5830644001,Amazon UK Marketplace,5942,Books-school library,36.56,0,36.56
Children and Young Peoples Services,Childrens Services,88043,Consett 0 - 5,Supplies and Services,312011,Newspapers Books and Periodicals,07-Mar-17,5830644005,Amazon UK Marketplace,5942,Books-school library,68.95,0,68.95
Children and Young Peoples Services,Childrens Services,88043,Consett 0 - 5,Supplies and Services,384999,Miscellaneous Expenses,07-Mar-17,5830644009,ROSEBUD CERAMICS,5945,Other expenses,50,0,50
Children and Young Peoples Services,Childrens Services,88043,Consett 0 - 5,Supplies and Services,312011,Newspapers Books and Periodicals,07-Mar-17,5830644011,Amazon UK Marketplace,5942,Books-school library,22.98,0,22.98
Children and Young Peoples Services,Childrens Services,88043,Consett 0 - 5,Supplies and Services,312011,Newspapers Books and Periodicals,07-Mar-17,5830644015,Amazon UK Marketplace,5942,Books-school library,72.44,0,72.44
Regeneration and Local Services,Culture & Sport,11191,Wellbeing4Life,Supplies and Services,328041,Clothing Uniforms and Laundry,07-Mar-17,5830644023,W BOYES & CO LTD NEWTO,5310,Clothing uniforms and laundry,10.19,0,10.19
Regeneration and Local Services,Culture & Sport,11191,Wellbeing4Life,Supplies and Services,328041,Clothing Uniforms and Laundry,07-Mar-17,5830644029,W BOYES & CO LTD NEWTO,5310,Clothing uniforms and laundry,3.5,0,3.5
Regeneration and Local Services,Culture & Sport,11191,Wellbeing4Life,Supplies and Services,324117,Provisions,07-Mar-17,5830644031,ALDI,5411,Catering costs - provisions,10.3,0,10.3
Children and Young Peoples Services,Childrens Services,71616,Seaham Childrens Centre,Supplies and Services,304259,Equipment and Materials,07-Mar-17,5830644033,B&Q DIRECT,5211,Equipment-purchase and rental,675,0,675
Regeneration and Local Services,Direct Services,19100,Fleet - Strategic Fleet,Employees,40149,Recruitment Instruction and Training,07-Mar-17,5830644039,JAUPT,9399,Training-all costs,252,0,252
Regeneration and Local Services,Direct Services,10301,C&G - North Grounds Maintenance,Supplies and Services,304221,Equipment and Materials,07-Mar-17,5830644073,SPALDINGS LIMITED,5085,Direct materials,333.96,0,333.96
Regeneration and Local Services,Transport and Contracted Services,31701,Care Connect All Localities,Supplies and Services,344033,Telephones,07-Mar-17,5830644095,BT BILL PAYMENT 2,4812,Telephones general-all costs,-67.41,0,-67.41
Regeneration and Local Services,Transport and Contracted Services,31701,Care Connect All Localities,Supplies and Services,344033,Telephones,07-Mar-17,5830644099,BT BILL PAYMENT 2,4812,Telephones general-all costs,-37.32,0,-37.32
Regeneration and Local Services,Transport and Contracted Services,31701,Care Connect All Localities,Supplies and Services,344033,Telephones,07-Mar-17,5830644105,BT BILL PAYMENT 2,4812,Telephones general-all costs,-34.87,0,-34.87
Regeneration and Local Services,Direct Services,21324,Catering - Meadowfield,Supplies and Services,324117,Provisions,07-Mar-17,5830644125,WWW.ADELIEFOODS.CO.UK,5499,Catering costs - provisions,44.65,0,44.65
Regeneration and Local Services,Direct Services,21324,Catering - Meadowfield,Supplies and Services,324117,Provisions,07-Mar-17,5830644133,WWW.ADELIEFOODS.CO.UK,5499,Catering costs - provisions,35.75,0,35.75
Regeneration and Local Services,Direct Services,21324,Catering - Meadowfield,Supplies and Services,324117,Provisions,07-Mar-17,5830644135,BRAKE BROS LTD,5811,Catering costs - provisions,78.08,0,78.08
Resources,I.C.T. Services,65474,Rechargeable Items,Supplies and Services,332047,Printing Stationery and Gen Off Exps,07-Mar-17,5830644263,Amazon UK Marketplace,5942,Stationery,29.94,0,29.94
Resources,I.C.T. Services,65481,Technical Services,Supplies and Services,312009,Newspapers Books and Periodicals,07-Mar-17,5830644265,Amazon EU,5969,Newspapers books and periodicals,32.99,0,32.99
Children and Young Peoples Services,Childrens Services,85802,CDYOS - Best Practice Group,Supplies and Services,348037,Subsistence,07-Mar-17,5830644269,WWW.GREYSTAR.COM,7011,Subsistence,178,0,178
Resources,I.C.T. Services,65481,Technical Services,Supplies and Services,304335,Equipment and Materials,07-Mar-17,5830644273,Senetic,5734,ICT supplies etc,39.88,6.65,33.23
Adult and Health Services,Head of Adults,53812,Maple Court Extra,Supplies and Services,304259,Equipment and Materials,07-Mar-17,5830644277,APEX RADIO SYSTEMS LTD,5732,Equipment-purchase and rental,528,0,528
Children and Young Peoples Services,Childrens Services,71404,Laurel Avenue Childrens Centre,Supplies and Services,324117,Provisions,07-Mar-17,5830644283,TESCO STORES 2916,5411,Catering costs - provisions,5,0,5
Regeneration and Local Services,Direct Services,21235,Catering - Wharton Park,Supplies and Services,324117,Provisions,07-Mar-17,5830644289,WWW.ADELIEFOODS.CO.UK,5499,Catering costs - provisions,15.99,0,15.99
Regeneration and Local Services,Direct Services,21235,Catering - Wharton Park,Supplies and Services,324117,Provisions,07-Mar-17,5830644295,WWW.ADELIEFOODS.CO.UK,5499,Catering costs - provisions,8.74,0,8.74
Regeneration and Local Services,Direct Services,21235,Catering - Wharton Park,Supplies and Services,324117,Provisions,07-Mar-17,5830644301,WWW.ADELIEFOODS.CO.UK,5499,Catering costs - provisions,8.24,0,8.24
Transformation and Partnerships,Partnerships & Community Engagement Div.,60472,Syrian Vulnerable Persons Scheme,Supplies and Services,308011,Furniture,07-Mar-17,5830644325,Argos Durham Arnis,5310,Furniture repair and replacement,15,2.5,12.5
Transformation and Partnerships,Partnerships & Community Engagement Div.,60472,Syrian Vulnerable Persons Scheme,Supplies and Services,308011,Furniture,07-Mar-17,5830644327,WILKO DURHAM 426,5722,Furniture repair and replacement,3.5,0,3.5
Transformation and Partnerships,Partnerships & Community Engagement Div.,60472,Syrian Vulnerable Persons Scheme,Supplies and Services,308011,Furniture,07-Mar-17,5830644329,ARGOS RETAIL GROUP,5310,Furniture repair and replacement,25.99,0,25.99
Regeneration and Local Services,Spatial Policy Planning Assets & Environment,31200,North Pennines Core,Supplies and Services,384999,Miscellaneous Expenses,07-Mar-17,5830644335,THE RABY ESTATES,5970,Other expenses,68,0,68
Children and Young Peoples Services,Childrens Services,88003,Peterlee 0 - 5,Supplies and Services,328041,Clothing Uniforms and Laundry,07-Mar-17,5830644341,ARGOS RETAIL GROUP,5310,Clothing uniforms and laundry,13.98,2.33,11.65
Children and Young Peoples Services,Childrens Services,88003,Peterlee 0 - 5,Supplies and Services,324117,Provisions,07-Mar-17,5830644343,ASDA STORES LTD,5411,Catering costs - provisions,30,0,30
Children and Young Peoples Services,Childrens Services,85958,Support Services,Supplies and Services,304259,Equipment and Materials,07-Mar-17,5835023197,SPORTSDIRECT.COM,5941,Equipment-purchase and rental,59.98,0,59.98
Children and Young Peoples Services,Education,79599,Psychological-HQ,Supplies and Services,312011,Newspapers Books and Periodicals,08-Mar-17,5830643543,Amazon UK Marketplace,5942,Books-school library,6.58,0,6.58
Regeneration and Local Services,Spatial Policy Planning Assets & Environment,31071,Sustainability and Climate Change,Supplies and Services,348037,Subsistence,08-Mar-17,5830643837,PICCOLO MONDO,5812,Subsistence,1.89,0,1.89
Regeneration and Local Services,Spatial Policy Planning Assets & Environment,31071,Sustainability and Climate Change,Transport,235057,Public Transport,08-Mar-17,5830643839,DSB KASTRUP AUT,4111,Staff travelling,1.14,0,1.14
Children and Young Peoples Services,Education,71801,Selby Cottage Childcare Centre,Supplies and Services,328041,Clothing Uniforms and Laundry,08-Mar-17,5835023083,ARGOS TEAM VALLEY,5310,Clothing uniforms and laundry,109.98,0,109.98
Children and Young Peoples Services,Education,71801,Selby Cottage Childcare Centre,Supplies and Services,328041,Clothing Uniforms and Laundry,08-Mar-17,5835023085,POUNDLAND,5310,Clothing uniforms and laundry,19.05,0,19.05
Children and Young Peoples Services,Education,71801,Selby Cottage Childcare Centre,Supplies and Services,324117,Provisions,08-Mar-17,5835023087,TESCO STORES 2278,5411,Catering costs - provisions,13.06,0,13.06
Regeneration and Local Services,Economic Development and Housing,31500,Housing Solutions - Core Team,Supplies and Services,352001,Conference Expenses,08-Mar-17,5835023097,TRAVELODGE,3615,Conferencesseminars fees etc,38,0,38
Dedicated Schools Grant,Dedicated Schools Grant,79052,Part Sighted-Belmont Comp,Supplies and Services,372009,Subscriptions,08-Mar-17,5835023099,FREELANCE PROFESSIONAL,6300,Subscriptions,11.88,0,11.88
Regeneration and Local Services,Economic Development and Housing,30699,Business Growth and Innovation General,Supplies and Services,312011,Newspapers Books and Periodicals,08-Mar-17,5835023111,FASTHOSTS INTERNET,4816,Books-school library,12.59,2.1,10.49
Regeneration and Local Services,Economic Development and Housing,30674,Business Services General,Transport,235057,Public Transport,08-Mar-17,5835023113,HILTON PARKING,7523,Staff travelling,7,0,7
Children and Young Peoples Services,Childrens Services,71440,Barnard Castle One Point Hub,Supplies and Services,312011,Newspapers Books and Periodicals,08-Mar-17,5835023127,Amazon EU,5969,Books-school library,39.17,0,39.17
Regeneration and Local Services,Direct Services,21242,Catering - County Hall,Supplies and Services,324117,Provisions,08-Mar-17,5835023129,JR HOLLAND FOODSERVICE,5422,Catering costs - provisions,97.02,0,97.02
Regeneration and Local Services,Direct Services,21242,Catering - County Hall,Supplies and Services,324117,Provisions,08-Mar-17,5835023131,JR HOLLAND FOODSERVICE,5422,Catering costs - provisions,73.6,0,73.6
Regeneration and Local Services,Direct Services,21242,Catering - County Hall,Supplies and Services,324117,Provisions,08-Mar-17,5835023133,JR HOLLAND FOODSERVICE,5422,Catering costs - provisions,71.4,0,71.4
Regeneration and Local Services,Direct Services,21242,Catering - County Hall,Supplies and Services,324117,Provisions,08-Mar-17,5835023135,JR HOLLAND FOODSERVICE,5422,Catering costs - provisions,31.35,0,31.35
Regeneration and Local Services,Direct Services,21242,Catering - County Hall,Supplies and Services,324117,Provisions,08-Mar-17,5835023137,JR HOLLAND FOODSERVICE,5422,Catering costs - provisions,6.58,0,6.58
Regeneration and Local Services,Direct Services,21242,Catering - County Hall,Supplies and Services,324117,Provisions,08-Mar-17,5835023139,BRAKE BROS LTD,5811,Catering costs - provisions,265.76,0,265.76
Regeneration and Local Services,Culture & Sport,54233,Bp Auckland Town Hall Library,Supplies and Services,312011,Newspapers Books and Periodicals,08-Mar-17,5835023143,Amazon UK Marketplace,5942,Books-school library,14.24,0,14.24
Resources,I.C.T. Services,65464,Domains,Supplies and Services,372009,Subscriptions,08-Mar-17,5835023147,NOMINET UK,7379,Subscriptions,40.5,6.75,33.75
Resources,I.C.T. Services,65464,Domains,Supplies and Services,372009,Subscriptions,08-Mar-17,5835023149,NOMINET UK,7379,Subscriptions,40.5,6.75,33.75
Regeneration and Local Services,Culture & Sport,54812,Gala Theatre - Catering etc,Supplies and Services,324117,Provisions,08-Mar-17,5835023151,JR HOLLAND FOODSERVICE,5422,Catering costs - provisions,29.68,0,29.68
Regeneration and Local Services,Culture & Sport,54812,Gala Theatre - Catering etc,Supplies and Services,324117,Provisions,08-Mar-17,5835023155,JR HOLLAND FOODSERVICE,5422,Catering costs - provisions,1.61,0,1.61
Regeneration and Local Services,Direct Services,21242,Catering - County Hall,Supplies and Services,324117,Provisions,08-Mar-17,5835023165,SAINSBURYS 0776,5411,Catering costs - provisions,13.9,0,13.9
Children and Young Peoples Services,Childrens Services,88063,Bishop Auckland 0 - 5,Supplies and Services,324117,Provisions,08-Mar-17,5835023175,ASDA HOME SHOPPING,5411,Catering costs - provisions,26.58,0,26.58
Children and Young Peoples Services,Childrens Services,88063,Bishop Auckland 0 - 5,Supplies and Services,324117,Provisions,08-Mar-17,5835023177,ASDA HOME SHOPPING,5411,Catering costs - provisions,-0.96,0,-0.96
Regeneration and Local Services,Economic Development and Housing,30554,International Relations,Transport,235057,Public Transport,08-Mar-17,5835023187,PRINCE BISHOP SHOPPING,7523,Staff travelling,3.3,0,3.3
Regeneration and Local Services,Economic Development and Housing,30737,Durham Works Flexible Fund,Transport,235005,Public Transport,08-Mar-17,5835023193,ARRIVA PASSENGER S,7538,Contract tickets,-85.5,0,-85.5
Regeneration and Local Services,Culture & Sport,11060,Hardwick Park Catering,Supplies and Services,324117,Provisions,08-Mar-17,5835023201,JR HOLLAND FOODSERVICE,5422,Catering costs - provisions,78.9,0,78.9
Regeneration and Local Services,Culture & Sport,11060,Hardwick Park Catering,Supplies and Services,324117,Provisions,08-Mar-17,5835023203,JR HOLLAND FOODSERVICE,5422,Catering costs - provisions,55.7,0,55.7
Regeneration and Local Services,Culture & Sport,11060,Hardwick Park Catering,Supplies and Services,324117,Provisions,08-Mar-17,5835023205,JR HOLLAND FOODSERVICE,5422,Catering costs - provisions,53.23,0,53.23
Regeneration and Local Services,Culture & Sport,11060,Hardwick Park Catering,Supplies and Services,324117,Provisions,08-Mar-17,5835023207,BRAKE BROS LTD,5811,Catering costs - provisions,203.76,33.96,169.8
Regeneration and Local Services,Culture & Sport,11060,Hardwick Park Catering,Supplies and Services,324117,Provisions,08-Mar-17,000005835023207 - 1,BRAKE BROS LTD,5811,Catering costs - provisions,118.19,,118.19
Regeneration and Local Services,Culture & Sport,11060,Hardwick Park Catering,Supplies and Services,324117,Provisions,08-Mar-17,5835023209,BRAKE BROS LTD,5811,Catering costs - provisions,108.9,18.15,90.75
Regeneration and Local Services,Culture & Sport,11060,Hardwick Park Catering,Supplies and Services,324117,Provisions,08-Mar-17,000005835023209 - 1,BRAKE BROS LTD,5811,Catering costs - provisions,13.84,,13.84
Resources,I.C.T. Services,65335,Operations - System & Repairs Trading,Supplies and Services,304639,Equipment and Materials,08-Mar-17,5835023213,THE REPLACE BASE LTD,7699,Technicians-supplies,52.66,8.78,43.88
Regeneration and Local Services,Culture & Sport,54815,Gala Theatre Stage School,Supplies and Services,328041,Clothing Uniforms and Laundry,08-Mar-17,5835023215,H&M 869 DURHAM,5691,Clothing uniforms and laundry,9.99,0,9.99
Regeneration and Local Services,Culture & Sport,54815,Gala Theatre Stage School,Supplies and Services,328041,Clothing Uniforms and Laundry,08-Mar-17,5835023217,NEW LOOK 2036,5621,Clothing uniforms and laundry,53.03,0,53.03
Regeneration and Local Services,Economic Development and Housing,30762,Organisational Training & Development,Employees,40149,Recruitment Instruction and Training,08-Mar-17,5835023219,CITB,8220,Training-all costs,30,0,30
Regeneration and Local Services,Economic Development and Housing,30762,Organisational Training & Development,Employees,40149,Recruitment Instruction and Training,08-Mar-17,5835023221,CITB,8220,Training-all costs,30,0,30
Regeneration and Local Services,Economic Development and Housing,30762,Organisational Training & Development,Employees,40149,Recruitment Instruction and Training,08-Mar-17,5835023223,CITB,8220,Training-all costs,25,0,25
Children and Young Peoples Services,Childrens Services,85551,Short Break Services-Park Hse Sher,Supplies and Services,324117,Provisions,08-Mar-17,5835023225,ICELAND,5411,Catering costs - provisions,22,0,22
Regeneration and Local Services,Direct Services,21234,Catering - Locomotion,Supplies and Services,324117,Provisions,08-Mar-17,5835023227,JR HOLLAND FOODSERVICE,5422,Catering costs - provisions,12.93,0,12.93
Regeneration and Local Services,Direct Services,21234,Catering - Locomotion,Supplies and Services,324117,Provisions,08-Mar-17,5835023229,BRAKE BROS LTD,5811,Catering costs - provisions,270.29,0,270.29
Regeneration and Local Services,Economic Development and Housing,31576,B& B - Temp Accom,Supplies and Services,364320,Grants to Voluntary Organisations,08-Mar-17,5835023231,DAYS INN,7011,Accommodation assistance,110,0,110
Regeneration and Local Services,Direct Services,10525,Catering - Green Lane,Supplies and Services,324117,Provisions,08-Mar-17,5835023237,JR HOLLAND FOODSERVICE,5422,Catering costs - provisions,31.43,0,31.43
Regeneration and Local Services,Direct Services,11185,Nei. Prot - Unauthorised Encampments,Supplies and Services,338048,Services,08-Mar-17,5835023245,HMCOURTS-SERVICE.G,9222,Court Costs,226,0,226
Children and Young Peoples Services,Childrens Services,85352,Tow Law CU,Supplies and Services,324117,Provisions,08-Mar-17,5835023247,TESCO STORES 2371,5411,Catering costs - provisions,191.67,0,191.67
Regeneration and Local Services,Direct Services,10367,C&G - South Grounds Maintenance,Supplies and Services,304259,Equipment and Materials,08-Mar-17,5835023259,JEWSON LTD,5211,Equipment-purchase and rental,40.15,6.69,33.46
Children and Young Peoples Services,Childrens Services,85333,Coxhoe Satelite Home,Supplies and Services,324117,Provisions,08-Mar-17,5835023271,TESCO STORES 2371,5411,Catering costs - provisions,95.27,0,95.27
Children and Young Peoples Services,Childrens Services,88043,Consett 0 - 5,Supplies and Services,312011,Newspapers Books and Periodicals,08-Mar-17,5835023277,Amazon UK Marketplace,5942,Books-school library,5.7,0,5.7
Children and Young Peoples Services,Childrens Services,88043,Consett 0 - 5,Supplies and Services,312011,Newspapers Books and Periodicals,08-Mar-17,5835023279,Amazon UK Marketplace,5942,Books-school library,19.92,0,19.92
Regeneration and Local Services,Direct Services,10900,Fleet - Meadowfield Fleet,Transport,215995,Running Costs of Vehicles,08-Mar-17,5835023285,HEDLEYS ALARM & TOWING,5013,Vehicle running expenses,38.82,0,38.82
Regeneration and Local Services,Culture & Sport,54235,Bp Auckland Town Hall Cafe,Supplies and Services,324117,Provisions,08-Mar-17,5835023311,JR HOLLAND FOODSERVICE,5422,Catering costs - provisions,39.58,0,39.58
Regeneration and Local Services,Transport and Contracted Services,31701,Care Connect All Localities,Supplies and Services,344033,Telephones,08-Mar-17,5835023313,BT BILL PAYMENT 2,4812,Telephones general-all costs,15.44,0,15.44
Regeneration and Local Services,Direct Services,21324,Catering - Meadowfield,Supplies and Services,324117,Provisions,08-Mar-17,5835023327,JR HOLLAND FOODSERVICE,5422,Catering costs - provisions,59.58,0,59.58
Regeneration and Local Services,Direct Services,21324,Catering - Meadowfield,Supplies and Services,324117,Provisions,08-Mar-17,5835023329,JR HOLLAND FOODSERVICE,5422,Catering costs - provisions,13.87,0,13.87
Regeneration and Local Services,Direct Services,21324,Catering - Meadowfield,Supplies and Services,324117,Provisions,08-Mar-17,5835023331,BRAKE BROS LTD,5811,Catering costs - provisions,179.16,29.86,149.3
Regeneration and Local Services,Direct Services,21324,Catering - Meadowfield,Supplies and Services,324117,Provisions,08-Mar-17,000005835023331 - 1,BRAKE BROS LTD,5811,Catering costs - provisions,96.04,,96.04
Children and Young Peoples Services,Childrens Services,85333,Coxhoe Satelite Home,Supplies and Services,304259,Equipment and Materials,08-Mar-17,5835023333,AO RETAIL LIMITED,5722,Equipment-purchase and rental,193.98,0,193.98
Regeneration and Local Services,Economic Development and Housing,30737,Durham Works Flexible Fund,Supplies and Services,304259,Equipment and Materials,08-Mar-17,5835023357,HALFORDS 0526,5940,Equipment-purchase and rental,330,0,330
Children and Young Peoples Services,Childrens Services,74000,TTF-Attachment and Results,Supplies and Services,304259,Equipment and Materials,08-Mar-17,5835023367,WILKO.COM,5722,Equipment-purchase and rental,99,0,99
Children and Young Peoples Services,Childrens Services,74000,TTF-Attachment and Results,Supplies and Services,324117,Provisions,08-Mar-17,5835023369,ASDA GEORGE COM LEEDS,5411,Catering costs - provisions,36.95,0,36.95
Regeneration and Local Services,Direct Services,21235,Catering - Wharton Park,Supplies and Services,324117,Provisions,08-Mar-17,5835023377,JR HOLLAND FOODSERVICE,5422,Catering costs - provisions,38.41,0,38.41
Regeneration and Local Services,Direct Services,21235,Catering - Wharton Park,Supplies and Services,324117,Provisions,08-Mar-17,5835023379,JR HOLLAND FOODSERVICE,5422,Catering costs - provisions,8.32,0,8.32
Regeneration and Local Services,Culture & Sport,10605,Woodhouse Close Leisure Complex,Supplies and Services,324117,Provisions,08-Mar-17,5835023387,JR HOLLAND FOODSERVICE,5422,Catering costs - provisions,31.87,0,31.87
Regeneration and Local Services,Spatial Policy Planning Assets & Environment,31200,North Pennines Core,Supplies and Services,340001,Postages,08-Mar-17,5835023405,THE POST OFFICE,9402,Postages,5.5,0,5.5
Adult and Health Services,Planning & Service Strategy,52969,Service Support Team 1,Supplies and Services,304403,Equipment and Materials,08-Mar-17,5835023419,TESCO - Seller_IST_1_2,5999,Other consumables,62,0,62
Adult and Health Services,Planning & Service Strategy,52969,Service Support Team 1,Supplies and Services,304403,Equipment and Materials,08-Mar-17,5835023421,TESCO DIRECT,5999,Other consumables,64.5,0,64.5
Children and Young Peoples Services,Education,79599,Psychological-HQ,Supplies and Services,304403,Equipment and Materials,08-Mar-17,5839694751,AMAZON UK RETAIL AMAZO,5999,Other consumables,23.95,0,23.95
Children and Young Peoples Services,Education,71732,Dean Bank Childcare,Supplies and Services,304403,Equipment and Materials,08-Mar-17,5839695011,AMAZON UK RETAIL AMAZO,5999,Other consumables,6.98,0,6.98
Children and Young Peoples Services,Childrens Services,88023,Chester Le Street 0 - 5,Supplies and Services,332047,Printing Stationery and Gen Off Exps,08-Mar-17,5839695089,AMAZON UK RETAIL AMAZO,5999,Stationery,50.46,0,50.46
Regeneration and Local Services,Culture & Sport,54604,Seven Hills Spennymoor,Supplies and Services,304403,Equipment and Materials,08-Mar-17,5839695347,AMAZON UK RETAIL AMAZO,5999,Other consumables,45.18,0,45.18
Regeneration and Local Services,Direct Services,10367,C&G - South Grounds Maintenance,Transport,215995,Running Costs of Vehicles,08-Mar-17,5845201745,SNOWBALLS (RAILWAY,5533,Vehicle running expenses,54.87,9.15,45.72
Children and Young Peoples Services,Childrens Services,88043,Consett 0 - 5,Supplies and Services,304403,Equipment and Materials,09-Mar-17,5835023281,AMZ Lello and Monkey,5999,Other consumables,-3.2,0,-3.2
Children and Young Peoples Services,Childrens Services,88043,Consett 0 - 5,Supplies and Services,304403,Equipment and Materials,09-Mar-17,5835023283,AMZ TraderYu,5999,Other consumables,-4,0,-4
Children and Young Peoples Services,Childrens Services,71746,Newton Aycliffe Childrens Centre,Supplies and Services,304259,Equipment and Materials,09-Mar-17,5839694537,ARGOS LTD,5310,Equipment-purchase and rental,24.99,0,24.99
Regeneration and Local Services,Economic Development and Housing,30699,Business Growth and Innovation General,Supplies and Services,336005,Advertising,09-Mar-17,5839694585,ADROLL,7311,Advertising other than for staff,1.8,0,1.8
Resources,Financial Services,52865,SF-Financial Services Team,Supplies and Services,308011,Furniture,09-Mar-17,5839694597,MAGUIRE TA LTD,5713,Furniture repair and replacement,235,0,235
Regeneration and Local Services,Projects and Business services,22902,Waste Strategy,Supplies and Services,352001,Conference Expenses,09-Mar-17,5839694605,WWW.LETSRECYCLE.COM,7311,Conferencesseminars fees etc,481.3,0,481.3
Regeneration and Local Services,Direct Services,10341,Nei.Prot - N. Wardens,Supplies and Services,340001,Postages,09-Mar-17,5839694609,ROYAL MAIL ONLINE SHOP,9402,Postages,64,0,64
Regeneration and Local Services,Economic Development and Housing,30674,Business Services General,Transport,235057,Public Transport,09-Mar-17,5839694617,HILTON PARKING,7523,Staff travelling,8,0,8
Regeneration and Local Services,Economic Development and Housing,30674,Business Services General,Transport,235057,Public Transport,09-Mar-17,5839694623,Stephenson Quarter Car,7523,Staff travelling,6,0,6
Children and Young Peoples Services,Childrens Services,71440,Barnard Castle One Point Hub,Supplies and Services,304403,Equipment and Materials,09-Mar-17,5839694663,AMAZON UK RETAIL AMAZO,5999,Other consumables,117.51,0,117.51
Adult and Health Services,Head of Adults,55309,Peterlee Pathways,Supplies and Services,384999,Miscellaneous Expenses,09-Mar-17,5839694669,GAME RETAIL LTD BASING,5945,Other expenses,50.9,8.48,42.42
Regeneration and Local Services,Direct Services,21242,Catering - County Hall,Supplies and Services,324117,Provisions,09-Mar-17,5839694673,JR HOLLAND FOODSERVICE,5422,Catering costs - provisions,90.87,0,90.87
Regeneration and Local Services,Direct Services,21242,Catering - County Hall,Supplies and Services,324117,Provisions,09-Mar-17,5839694683,JR HOLLAND FOODSERVICE,5422,Catering costs - provisions,13.16,0,13.16
Regeneration and Local Services,Culture & Sport,54812,Gala Theatre - Catering etc,Supplies and Services,324117,Provisions,09-Mar-17,5839694701,JR HOLLAND FOODSERVICE,5422,Catering costs - provisions,60.06,0,60.06
Regeneration and Local Services,Culture & Sport,54812,Gala Theatre - Catering etc,Supplies and Services,324117,Provisions,09-Mar-17,5839694711,JR HOLLAND FOODSERVICE,5422,Catering costs - provisions,5.44,0,5.44
Children and Young Peoples Services,Education,79599,Psychological-HQ,Supplies and Services,312011,Newspapers Books and Periodicals,09-Mar-17,5839694747,Amazon UK Marketplace,5942,Books-school library,27.5,0,27.5
Regeneration and Local Services,Direct Services,10900,Fleet - Meadowfield Fleet,Transport,215013,Running Costs of Vehicles,09-Mar-17,5839694793,DVLA VEHICLE TAX,9399,Vehicle Excise Duty (VED),232.5,0,232.5
Regeneration and Local Services,Direct Services,10900,Fleet - Meadowfield Fleet,Transport,215013,Running Costs of Vehicles,09-Mar-17,5839694799,DVLA VEHICLE TAX,9399,Vehicle Excise Duty (VED),167.5,0,167.5
Regeneration and Local Services,Direct Services,10561,Fleet - Morrison Busty Fleet,Transport,215013,Running Costs of Vehicles,09-Mar-17,5839694801,DVLA VEHICLE TAX,9399,Vehicle Excise Duty (VED),232.5,0,232.5
Regeneration and Local Services,Direct Services,10561,Fleet - Morrison Busty Fleet,Transport,215013,Running Costs of Vehicles,09-Mar-17,5839694807,DVLA VEHICLE TAX,9399,Vehicle Excise Duty (VED),22.5,0,22.5
Regeneration and Local Services,Direct Services,10900,Fleet - Meadowfield Fleet,Transport,215013,Running Costs of Vehicles,09-Mar-17,5839694813,DVLA VEHICLE TAX,9399,Vehicle Excise Duty (VED),167.5,0,167.5
Regeneration and Local Services,Direct Services,10900,Fleet - Meadowfield Fleet,Transport,215013,Running Costs of Vehicles,09-Mar-17,5839694819,DVLA VEHICLE TAX,9399,Vehicle Excise Duty (VED),232.5,0,232.5
Regeneration and Local Services,Direct Services,10561,Fleet - Morrison Busty Fleet,Transport,215013,Running Costs of Vehicles,09-Mar-17,5839694821,DVLA VEHICLE TAX,9399,Vehicle Excise Duty (VED),167.5,0,167.5
Regeneration and Local Services,Direct Services,10551,Fleet - Chilton Fleet,Transport,215013,Running Costs of Vehicles,09-Mar-17,5839694823,DVLA VEHICLE TAX,9399,Vehicle Excise Duty (VED),22.5,0,22.5
Regeneration and Local Services,Direct Services,10900,Fleet - Meadowfield Fleet,Transport,215013,Running Costs of Vehicles,09-Mar-17,5839694827,DVLA VEHICLE TAX,9399,Vehicle Excise Duty (VED),167.5,0,167.5
Regeneration and Local Services,Direct Services,10561,Fleet - Morrison Busty Fleet,Transport,215013,Running Costs of Vehicles,09-Mar-17,5839694831,DVLA VEHICLE TAX,9399,Vehicle Excise Duty (VED),167.5,0,167.5
Regeneration and Local Services,Direct Services,10561,Fleet - Morrison Busty Fleet,Transport,215013,Running Costs of Vehicles,09-Mar-17,5839694835,DVLA VEHICLE TAX,9399,Vehicle Excise Duty (VED),232.5,0,232.5
Regeneration and Local Services,Direct Services,10561,Fleet - Morrison Busty Fleet,Transport,215013,Running Costs of Vehicles,09-Mar-17,5839694839,DVLA VEHICLE TAX,9399,Vehicle Excise Duty (VED),167.5,0,167.5
Regeneration and Local Services,Direct Services,10551,Fleet - Chilton Fleet,Transport,215013,Running Costs of Vehicles,09-Mar-17,5839694841,DVLA VEHICLE TAX,9399,Vehicle Excise Duty (VED),232.5,0,232.5
Regeneration and Local Services,Direct Services,10900,Fleet - Meadowfield Fleet,Transport,215013,Running Costs of Vehicles,09-Mar-17,5839694845,DVLA VEHICLE TAX,9399,Vehicle Excise Duty (VED),167.5,0,167.5
Regeneration and Local Services,Direct Services,10900,Fleet - Meadowfield Fleet,Transport,215013,Running Costs of Vehicles,09-Mar-17,5839694847,DVLA VEHICLE TAX,9399,Vehicle Excise Duty (VED),232.5,0,232.5
Regeneration and Local Services,Direct Services,10900,Fleet - Meadowfield Fleet,Transport,215013,Running Costs of Vehicles,09-Mar-17,5839694853,DVLA VEHICLE TAX,9399,Vehicle Excise Duty (VED),232.5,0,232.5
Regeneration and Local Services,Direct Services,10900,Fleet - Meadowfield Fleet,Transport,215013,Running Costs of Vehicles,09-Mar-17,5839694857,DVLA VEHICLE TAX,9399,Vehicle Excise Duty (VED),232.5,0,232.5
Regeneration and Local Services,Direct Services,10900,Fleet - Meadowfield Fleet,Transport,215013,Running Costs of Vehicles,09-Mar-17,5839694865,DVLA VEHICLE TAX,9399,Vehicle Excise Duty (VED),167.5,0,167.5
Regeneration and Local Services,Direct Services,10864,Fleet - Hackworth Road Fleet,Transport,215013,Running Costs of Vehicles,09-Mar-17,5839694869,DVLA VEHICLE TAX,9399,Vehicle Excise Duty (VED),167.5,0,167.5
Regeneration and Local Services,Direct Services,10561,Fleet - Morrison Busty Fleet,Transport,215013,Running Costs of Vehicles,09-Mar-17,5839694873,DVLA VEHICLE TAX,9399,Vehicle Excise Duty (VED),167.5,0,167.5
Regeneration and Local Services,Direct Services,10900,Fleet - Meadowfield Fleet,Transport,215013,Running Costs of Vehicles,09-Mar-17,5839694877,DVLA VEHICLE TAX,9399,Vehicle Excise Duty (VED),167.5,0,167.5
Regeneration and Local Services,Direct Services,10900,Fleet - Meadowfield Fleet,Transport,215013,Running Costs of Vehicles,09-Mar-17,5839694881,DVLA VEHICLE TAX,9399,Vehicle Excise Duty (VED),232.5,0,232.5
Regeneration and Local Services,Direct Services,10900,Fleet - Meadowfield Fleet,Transport,215013,Running Costs of Vehicles,09-Mar-17,5839694887,DVLA VEHICLE TAX,9399,Vehicle Excise Duty (VED),167.5,0,167.5
Regeneration and Local Services,Direct Services,10864,Fleet - Hackworth Road Fleet,Transport,215013,Running Costs of Vehicles,09-Mar-17,5839694889,DVLA VEHICLE TAX,9399,Vehicle Excise Duty (VED),167.5,0,167.5
Regeneration and Local Services,Direct Services,10900,Fleet - Meadowfield Fleet,Transport,215013,Running Costs of Vehicles,09-Mar-17,5839694895,DVLA VEHICLE TAX,9399,Vehicle Excise Duty (VED),232.5,0,232.5
Regeneration and Local Services,Direct Services,10864,Fleet - Hackworth Road Fleet,Transport,215013,Running Costs of Vehicles,09-Mar-17,5839694897,DVLA VEHICLE TAX,9399,Vehicle Excise Duty (VED),232.5,0,232.5
Regeneration and Local Services,Direct Services,10561,Fleet - Morrison Busty Fleet,Transport,215013,Running Costs of Vehicles,09-Mar-17,5839694901,DVLA VEHICLE TAX,9399,Vehicle Excise Duty (VED),167.5,0,167.5
Regeneration and Local Services,Direct Services,10864,Fleet - Hackworth Road Fleet,Transport,215013,Running Costs of Vehicles,09-Mar-17,5839694907,DVLA VEHICLE TAX,9399,Vehicle Excise Duty (VED),167.5,0,167.5
Regeneration and Local Services,Direct Services,10561,Fleet - Morrison Busty Fleet,Transport,215013,Running Costs of Vehicles,09-Mar-17,5839694909,DVLA VEHICLE TAX,9399,Vehicle Excise Duty (VED),167.5,0,167.5
Regeneration and Local Services,Direct Services,10864,Fleet - Hackworth Road Fleet,Transport,215013,Running Costs of Vehicles,09-Mar-17,5839694915,DVLA VEHICLE TAX,9399,Vehicle Excise Duty (VED),167.5,0,167.5
Regeneration and Local Services,Direct Services,10900,Fleet - Meadowfield Fleet,Transport,215013,Running Costs of Vehicles,09-Mar-17,5839694917,DVLA VEHICLE TAX,9399,Vehicle Excise Duty (VED),232.5,0,232.5
Regeneration and Local Services,Direct Services,10900,Fleet - Meadowfield Fleet,Transport,215013,Running Costs of Vehicles,09-Mar-17,5839694921,DVLA VEHICLE TAX,9399,Vehicle Excise Duty (VED),232.5,0,232.5
Regeneration and Local Services,Direct Services,10900,Fleet - Meadowfield Fleet,Transport,215013,Running Costs of Vehicles,09-Mar-17,5839694925,DVLA VEHICLE TAX,9399,Vehicle Excise Duty (VED),167.5,0,167.5
Regeneration and Local Services,Direct Services,10551,Fleet - Chilton Fleet,Transport,215013,Running Costs of Vehicles,09-Mar-17,5839694929,DVLA VEHICLE TAX,9399,Vehicle Excise Duty (VED),167.5,0,167.5
Regeneration and Local Services,Direct Services,10900,Fleet - Meadowfield Fleet,Transport,215013,Running Costs of Vehicles,09-Mar-17,5839694933,DVLA VEHICLE TAX,9399,Vehicle Excise Duty (VED),232.5,0,232.5
Regeneration and Local Services,Direct Services,10551,Fleet - Chilton Fleet,Transport,215013,Running Costs of Vehicles,09-Mar-17,5839694939,DVLA VEHICLE TAX,9399,Vehicle Excise Duty (VED),167.5,0,167.5
Regeneration and Local Services,Direct Services,10900,Fleet - Meadowfield Fleet,Transport,215013,Running Costs of Vehicles,09-Mar-17,5839694941,DVLA VEHICLE TAX,9399,Vehicle Excise Duty (VED),167.5,0,167.5
Regeneration and Local Services,Direct Services,10900,Fleet - Meadowfield Fleet,Transport,215013,Running Costs of Vehicles,09-Mar-17,5839694945,DVLA VEHICLE TAX,9399,Vehicle Excise Duty (VED),232.5,0,232.5
Regeneration and Local Services,Direct Services,10900,Fleet - Meadowfield Fleet,Transport,215013,Running Costs of Vehicles,09-Mar-17,5839694949,DVLA VEHICLE TAX,9399,Vehicle Excise Duty (VED),167.5,0,167.5
Regeneration and Local Services,Direct Services,10900,Fleet - Meadowfield Fleet,Transport,215013,Running Costs of Vehicles,09-Mar-17,5839694953,DVLA VEHICLE TAX,9399,Vehicle Excise Duty (VED),232.5,0,232.5
Regeneration and Local Services,Direct Services,10900,Fleet - Meadowfield Fleet,Transport,215013,Running Costs of Vehicles,09-Mar-17,5839694955,DVLA VEHICLE TAX,9399,Vehicle Excise Duty (VED),232.5,0,232.5
Regeneration and Local Services,Direct Services,10900,Fleet - Meadowfield Fleet,Transport,215013,Running Costs of Vehicles,09-Mar-17,5839694957,DVLA VEHICLE TAX,9399,Vehicle Excise Duty (VED),232.5,0,232.5
Regeneration and Local Services,Direct Services,10561,Fleet - Morrison Busty Fleet,Transport,215013,Running Costs of Vehicles,09-Mar-17,5839694961,DVLA VEHICLE TAX,9399,Vehicle Excise Duty (VED),167.5,0,167.5
Regeneration and Local Services,Direct Services,10367,C&G - South Grounds Maintenance,Supplies and Services,304259,Equipment and Materials,09-Mar-17,5839694963,HORNS GARDEN CENTR,5261,Equipment-purchase and rental,25.98,0,25.98
Children and Young Peoples Services,Education,71732,Dean Bank Childcare,Supplies and Services,312011,Newspapers Books and Periodicals,09-Mar-17,5839694993,Amazon UK Marketplace,5942,Books-school library,26.95,0,26.95
Children and Young Peoples Services,Education,71732,Dean Bank Childcare,Supplies and Services,312011,Newspapers Books and Periodicals,09-Mar-17,5839694997,Amazon UK Marketplace,5942,Books-school library,1.88,0,1.88
Children and Young Peoples Services,Education,71732,Dean Bank Childcare,Supplies and Services,312011,Newspapers Books and Periodicals,09-Mar-17,5839695001,Amazon UK Marketplace,5942,Books-school library,2.53,0,2.53
Children and Young Peoples Services,Education,71732,Dean Bank Childcare,Supplies and Services,312011,Newspapers Books and Periodicals,09-Mar-17,5839695003,Amazon UK Marketplace,5942,Books-school library,3.99,0,3.99
Children and Young Peoples Services,Education,71732,Dean Bank Childcare,Supplies and Services,312011,Newspapers Books and Periodicals,09-Mar-17,5839695007,Amazon UK Marketplace,5942,Books-school library,1.39,0,1.39
Regeneration and Local Services,Culture & Sport,54813,Gala Theatre - Technical,Supplies and Services,304259,Equipment and Materials,09-Mar-17,5839695017,ANYTRONICS LTD,5732,Equipment-purchase and rental,400.38,0,400.38
Children and Young Peoples Services,Childrens Services,88043,Consett 0 - 5,Supplies and Services,384999,Miscellaneous Expenses,09-Mar-17,5839695047,Amazon UK Marketplace,5942,Other expenses,187.5,0,187.5
Regeneration and Local Services,Economic Development and Housing,30554,International Relations,Supplies and Services,352001,Conference Expenses,09-Mar-17,5839695055,RAMSIDE HALL HOTEL,7011,Conferencesseminars fees etc,195.75,0,195.75
Regeneration and Local Services,Direct Services,10301,C&G - North Grounds Maintenance,Supplies and Services,304259,Equipment and Materials,09-Mar-17,5839695069,HARELAW SAWMILL,5211,Equipment-purchase and rental,168,28,140
Regeneration and Local Services,Economic Development and Housing,30737,Durham Works Flexible Fund,Transport,230031,Contract Hire,09-Mar-17,5839695077,WWW.SIMPLYGO.COM,4131,Pupils-transport to play fields etc,6.4,0,6.4
Children and Young Peoples Services,Childrens Services,85958,Support Services,Employees,40149,Recruitment Instruction and Training,09-Mar-17,5839695095,TWINKL LTD,8699,Training-all costs,69.99,0,69.99
Children and Young Peoples Services,Childrens Services,85958,Support Services,Supplies and Services,312011,Newspapers Books and Periodicals,09-Mar-17,5839695101,Amazon UK Marketplace,5942,Books-school library,16.94,0,16.94
Children and Young Peoples Services,Childrens Services,85958,Support Services,Supplies and Services,304259,Equipment and Materials,09-Mar-17,5839695103,WWW.FOOTASYLUM.COM,5941,Equipment-purchase and rental,64.98,0,64.98
Children and Young Peoples Services,Childrens Services,85958,Support Services,Supplies and Services,324117,Provisions,09-Mar-17,5839695109,TESCO STORES 6329,5411,Catering costs - provisions,192.64,0,192.64
Children and Young Peoples Services,Childrens Services,85958,Support Services,Supplies and Services,328041,Clothing Uniforms and Laundry,09-Mar-17,5839695113,ARGOS RETAIL GROUP,5310,Clothing uniforms and laundry,33.94,5.66,28.28
Regeneration and Local Services,Culture & Sport,11060,Hardwick Park Catering,Supplies and Services,324117,Provisions,09-Mar-17,5839695133,JR HOLLAND FOODSERVICE,5422,Catering costs - provisions,30.32,0,30.32
Children and Young Peoples Services,Childrens Services,85551,Short Break Services-Park Hse Sher,Supplies and Services,312011,Newspapers Books and Periodicals,09-Mar-17,5839695151,Amazon EU,5969,Books-school library,18.71,0,18.71
Children and Young Peoples Services,Childrens Services,85551,Short Break Services-Park Hse Sher,Supplies and Services,304259,Equipment and Materials,09-Mar-17,5839695155,CURRYS,5732,Equipment-purchase and rental,129.96,21.66,108.3
Children and Young Peoples Services,Childrens Services,85551,Short Break Services-Park Hse Sher,Supplies and Services,304259,Equipment and Materials,09-Mar-17,000005839695155 - 1,CURRYS,5732,Equipment-purchase and rental,0.03,,0.03
Regeneration and Local Services,Direct Services,21234,Catering - Locomotion,Supplies and Services,324117,Provisions,09-Mar-17,5839695161,JR HOLLAND FOODSERVICE,5422,Catering costs - provisions,46.57,0,46.57
Regeneration and Local Services,Direct Services,10367,C&G - South Grounds Maintenance,Supplies and Services,304221,Equipment and Materials,09-Mar-17,5839695241,R DEFTY,5200,Direct materials,32.8,0,32.8
Regeneration and Local Services,Direct Services,10913,Bldg Serv - Construction General,Employees,40149,Recruitment Instruction and Training,09-Mar-17,5839695251,IT TRAINING SOLUTIONS,8249,Training-all costs,234,39,195
Children and Young Peoples Services,Childrens Services,88043,Consett 0 - 5,Supplies and Services,312011,Newspapers Books and Periodicals,09-Mar-17,5839695257,Amazon UK Marketplace,5942,Books-school library,8.99,0,8.99
Children and Young Peoples Services,Childrens Services,88043,Consett 0 - 5,Supplies and Services,312011,Newspapers Books and Periodicals,09-Mar-17,5839695263,Amazon UK Marketplace,5942,Books-school library,31.9,0,31.9
Children and Young Peoples Services,Childrens Services,88043,Consett 0 - 5,Supplies and Services,312011,Newspapers Books and Periodicals,09-Mar-17,5839695265,Amazon UK Marketplace,5942,Books-school library,10.29,0,10.29
Children and Young Peoples Services,Childrens Services,88043,Consett 0 - 5,Supplies and Services,312011,Newspapers Books and Periodicals,09-Mar-17,5839695269,Amazon UK Marketplace,5942,Books-school library,3,0,3
Transformation and Partnerships,Planning & Performance Division,60125,Information Management,Supplies and Services,312009,Newspapers Books and Periodicals,09-Mar-17,5839695573,TRFSA THOMSONREUTERS,8999,Newspapers books and periodicals,145,0,145
Resources,I.C.T. Services,65303,Design & Print - Design,Supplies and Services,372009,Subscriptions,09-Mar-17,5839695577,APPY PIE,5734,Subscriptions,48,0,48
Regeneration and Local Services,Culture & Sport,11060,Hardwick Park Catering,Supplies and Services,304245,Equipment and Materials,09-Mar-17,5839695597,WWW.DIRECTEQUIP.COM,5722,Materials,31.38,5.23,26.15
Regeneration and Local Services,Culture & Sport,10605,Woodhouse Close Leisure Complex,Supplies and Services,324117,Provisions,09-Mar-17,5839695611,BRAKE BROS LTD,5811,Catering costs - provisions,23.4,3.9,19.5
Regeneration and Local Services,Culture & Sport,10605,Woodhouse Close Leisure Complex,Supplies and Services,324117,Provisions,09-Mar-17,000005839695611 - 1,BRAKE BROS LTD,5811,Catering costs - provisions,102.96,,102.96
Children and Young Peoples Services,Childrens Services,71693,Brandon Childrens Centre,Supplies and Services,312011,Newspapers Books and Periodicals,09-Mar-17,5839695633,Amazon UK Marketplace,5942,Books-school library,91.7,0,91.7
Regeneration and Local Services,Economic Development and Housing,30554,International Relations,Supplies and Services,348037,Subsistence,09-Mar-17,5839695719,MAMBOS ITALIANO,5812,Subsistence,27.15,0,27.15
Adult and Health Services,Head of Adults,55302,Durham Pathways,Supplies and Services,384999,Miscellaneous Expenses,09-Mar-17,5839695725,GAME RETAIL LTD BASING,5945,Other expenses,50.9,8.48,42.42
Children and Young Peoples Services,Childrens Services,88003,Peterlee 0 - 5,Supplies and Services,324117,Provisions,09-Mar-17,5839695729,ASDA STORES LTD,5411,Catering costs - provisions,60,0,60
Regeneration and Local Services,Direct Services,10383,C&G - South Street Cleansing,Transport,215995,Running Costs of Vehicles,09-Mar-17,5845200913,SNOWBALLS (RAILWAY,5533,Vehicle running expenses,28.8,4.8,24
Regeneration and Local Services,Culture & Sport,10599,Newton Aycliffe Leisure Ctr-General,Supplies and Services,384956,Miscellaneous Expenses,09-Mar-17,5845201443,TV LICENSING,7392,Licences,145.5,0,145.5
Children and Young Peoples Services,Childrens Services,85958,Support Services,Supplies and Services,304403,Equipment and Materials,09-Mar-17,5845201495,AMAZON UK RETAIL AMAZO,5999,Other consumables,324.56,0,324.56
Children and Young Peoples Services,Childrens Services,85958,Support Services,Supplies and Services,304403,Equipment and Materials,09-Mar-17,5845201499,AMAZON UK RETAIL AMAZO,5999,Other consumables,12.99,0,12.99
Children and Young Peoples Services,Childrens Services,85958,Support Services,Supplies and Services,304403,Equipment and Materials,09-Mar-17,5845201503,AMAZON UK RETAIL AMAZO,5999,Other consumables,31.49,0,31.49
Regeneration and Local Services,Spatial Policy Planning Assets & Environment,31071,Sustainability and Climate Change,Supplies and Services,348037,Subsistence,09-Mar-17,5845201641,Drumbar,5812,Subsistence,91.79,0,91.79
Resources,I.C.T. Services,65481,Technical Services,Supplies and Services,312009,Newspapers Books and Periodicals,09-Mar-17,5845201989,AMAZON UK RETAIL AMAZO,5999,Newspapers books and periodicals,45.98,0,45.98
Regeneration and Local Services,Economic Development and Housing,30699,Business Growth and Innovation General,Supplies and Services,336005,Advertising,10-Mar-17,5839694591,ADROLL,7311,Advertising other than for staff,0.05,0,0.05
Regeneration and Local Services,Culture & Sport,11204,Events,Supplies and Services,312011,Newspapers Books and Periodicals,10-Mar-17,5839695171,Amazon UK Marketplace,5942,Books-school library,22.99,0,22.99
Children and Young Peoples Services,Childrens Services,88043,Consett 0 - 5,Supplies and Services,312011,Newspapers Books and Periodicals,10-Mar-17,5839695271,Amazon UK Marketplace,5942,Books-school library,7.98,0,7.98
Children and Young Peoples Services,Childrens Services,88043,Consett 0 - 5,Supplies and Services,304403,Equipment and Materials,10-Mar-17,5839695277,AMZ p.is.for.product,5999,Other consumables,-0.79,0,-0.79
Regeneration and Local Services,Direct Services,21242,Catering - County Hall,Supplies and Services,324117,Provisions,10-Mar-17,5845200839,SAINSBURYS LOC (4320),5411,Catering costs - provisions,1.45,0,1.45
Children and Young Peoples Services,Education,71801,Selby Cottage Childcare Centre,Supplies and Services,324117,Provisions,10-Mar-17,5845200859,TESCO STORES 2278,5411,Catering costs - provisions,10.59,0,10.59
Children and Young Peoples Services,Childrens Services,85957,Secure Management,Supplies and Services,304245,Equipment and Materials,10-Mar-17,5845200925,WWW.WHOLESALEGLASSCOMP,7399,Materials,128.31,0,128.31
Adult and Health Services,Head of Adults,55309,Peterlee Pathways,Supplies and Services,384999,Miscellaneous Expenses,10-Mar-17,5845201043,"Amazon Svcs Europe,SAR",5942,Other expenses,22.65,0,22.65
Regeneration and Local Services,Economic Development and Housing,30737,Durham Works Flexible Fund,Supplies and Services,328041,Clothing Uniforms and Laundry,10-Mar-17,5845201063,ASDA STORES LTD,5411,Clothing uniforms and laundry,22.05,0,22.05
Regeneration and Local Services,Economic Development and Housing,30737,Durham Works Flexible Fund,Supplies and Services,304403,Equipment and Materials,10-Mar-17,5845201069,ASDA STORES LTD,5411,Other consumables,10,0,10
Regeneration and Local Services,Direct Services,21242,Catering - County Hall,Supplies and Services,324117,Provisions,10-Mar-17,5845201075,JR HOLLAND FOODSERVICE,5422,Catering costs - provisions,136.33,0,136.33
Regeneration and Local Services,Direct Services,21242,Catering - County Hall,Supplies and Services,324117,Provisions,10-Mar-17,5845201083,JR HOLLAND FOODSERVICE,5422,Catering costs - provisions,13.16,0,13.16
Regeneration and Local Services,Direct Services,21242,Catering - County Hall,Supplies and Services,324117,Provisions,10-Mar-17,5845201087,BRAKE BROS LTD,5811,Catering costs - provisions,539.34,89.89,449.45
Regeneration and Local Services,Direct Services,21242,Catering - County Hall,Supplies and Services,324117,Provisions,10-Mar-17,000005845201087 - 1,BRAKE BROS LTD,5811,Catering costs - provisions,300.11,,300.11
Regeneration and Local Services,Direct Services,21242,Catering - County Hall,Supplies and Services,324117,Provisions,10-Mar-17,5845201119,BRAKE BROS LTD,5811,Catering costs - provisions,364.07,0,364.07
Resources,I.C.T. Services,70204,Operations - System & Repairs Team,Supplies and Services,372009,Subscriptions,10-Mar-17,5845201151,WEB NETWORKSOLUTIONS,5968,Subscriptions,85.87,0,85.87
Regeneration and Local Services,Direct Services,10367,C&G - South Grounds Maintenance,Supplies and Services,304259,Equipment and Materials,10-Mar-17,5845201163,BUILDBASE DURHAM,5211,Equipment-purchase and rental,16.49,0,16.49
Children and Young Peoples Services,Childrens Services,85361,LAC & Permanence Team 1,Supplies and Services,304259,Equipment and Materials,10-Mar-17,5845201247,NELC INTERNET,9399,Equipment-purchase and rental,10.24,0,10.24
Children and Young Peoples Services,Childrens Services,85361,LAC & Permanence Team 1,Supplies and Services,304259,Equipment and Materials,10-Mar-17,5845201251,GRO HM PASSPORT OFFICE,9399,Equipment-purchase and rental,74,0,74
Children and Young Peoples Services,Childrens Services,85361,LAC & Permanence Team 1,Supplies and Services,304259,Equipment and Materials,10-Mar-17,5845201253,GRO HM PASSPORT OFFICE,9399,Equipment-purchase and rental,27.75,0,27.75
Children and Young Peoples Services,Childrens Services,85361,LAC & Permanence Team 1,Supplies and Services,304259,Equipment and Materials,10-Mar-17,5845201255,GRO HM PASSPORT OFFICE,9399,Equipment-purchase and rental,9.25,0,9.25
Children and Young Peoples Services,Childrens Services,85361,LAC & Permanence Team 1,Supplies and Services,304259,Equipment and Materials,10-Mar-17,5845201261,GRO HM PASSPORT OFFICE,9399,Equipment-purchase and rental,9.25,0,9.25
Regeneration and Local Services,Direct Services,10561,Fleet - Morrison Busty Fleet,Transport,215013,Running Costs of Vehicles,10-Mar-17,5845201285,DVLA VEHICLE TAX,9399,Vehicle Excise Duty (VED),232.5,0,232.5
Regeneration and Local Services,Direct Services,10561,Fleet - Morrison Busty Fleet,Transport,215013,Running Costs of Vehicles,10-Mar-17,5845201291,DVLA VEHICLE TAX,9399,Vehicle Excise Duty (VED),652.5,0,652.5
Regeneration and Local Services,Direct Services,10900,Fleet - Meadowfield Fleet,Transport,215013,Running Costs of Vehicles,10-Mar-17,5845201297,DVLA VEHICLE TAX,9399,Vehicle Excise Duty (VED),232.5,0,232.5
Regeneration and Local Services,Direct Services,10900,Fleet - Meadowfield Fleet,Transport,215013,Running Costs of Vehicles,10-Mar-17,5845201301,DVLA VEHICLE TAX,9399,Vehicle Excise Duty (VED),652.5,0,652.5
Regeneration and Local Services,Direct Services,10900,Fleet - Meadowfield Fleet,Transport,215013,Running Costs of Vehicles,10-Mar-17,5845201307,DVLA VEHICLE TAX,9399,Vehicle Excise Duty (VED),352.5,0,352.5
Regeneration and Local Services,Direct Services,10900,Fleet - Meadowfield Fleet,Transport,215013,Running Costs of Vehicles,10-Mar-17,5845201311,DVLA VEHICLE TAX,9399,Vehicle Excise Duty (VED),232.5,0,232.5
Regeneration and Local Services,Direct Services,10900,Fleet - Meadowfield Fleet,Transport,215013,Running Costs of Vehicles,10-Mar-17,5845201317,DVLA VEHICLE TAX,9399,Vehicle Excise Duty (VED),232.5,0,232.5
Regeneration and Local Services,Direct Services,10900,Fleet - Meadowfield Fleet,Transport,215013,Running Costs of Vehicles,10-Mar-17,5845201323,DVLA VEHICLE TAX,9399,Vehicle Excise Duty (VED),352.5,0,352.5
Regeneration and Local Services,Direct Services,10561,Fleet - Morrison Busty Fleet,Transport,215013,Running Costs of Vehicles,10-Mar-17,5845201327,DVLA VEHICLE TAX,9399,Vehicle Excise Duty (VED),652.5,0,652.5
Regeneration and Local Services,Direct Services,10561,Fleet - Morrison Busty Fleet,Transport,215013,Running Costs of Vehicles,10-Mar-17,5845201331,DVLA VEHICLE TAX,9399,Vehicle Excise Duty (VED),652.5,0,652.5
Regeneration and Local Services,Direct Services,10900,Fleet - Meadowfield Fleet,Transport,215013,Running Costs of Vehicles,10-Mar-17,5845201335,DVLA VEHICLE TAX,9399,Vehicle Excise Duty (VED),232.5,0,232.5
Regeneration and Local Services,Direct Services,10561,Fleet - Morrison Busty Fleet,Transport,215013,Running Costs of Vehicles,10-Mar-17,5845201337,DVLA VEHICLE TAX,9399,Vehicle Excise Duty (VED),652.5,0,652.5
Regeneration and Local Services,Direct Services,10900,Fleet - Meadowfield Fleet,Transport,215013,Running Costs of Vehicles,10-Mar-17,5845201341,DVLA VEHICLE TAX,9399,Vehicle Excise Duty (VED),232.5,0,232.5
Regeneration and Local Services,Direct Services,10561,Fleet - Morrison Busty Fleet,Transport,215013,Running Costs of Vehicles,10-Mar-17,5845201343,DVLA VEHICLE TAX,9399,Vehicle Excise Duty (VED),352.5,0,352.5
Regeneration and Local Services,Direct Services,10561,Fleet - Morrison Busty Fleet,Transport,215013,Running Costs of Vehicles,10-Mar-17,5845201347,DVLA VEHICLE TAX,9399,Vehicle Excise Duty (VED),652.5,0,652.5
Regeneration and Local Services,Direct Services,10900,Fleet - Meadowfield Fleet,Transport,215013,Running Costs of Vehicles,10-Mar-17,5845201351,DVLA VEHICLE TAX,9399,Vehicle Excise Duty (VED),232.5,0,232.5
Regeneration and Local Services,Direct Services,10551,Fleet - Chilton Fleet,Transport,215013,Running Costs of Vehicles,10-Mar-17,5845201353,DVLA VEHICLE TAX,9399,Vehicle Excise Duty (VED),232.5,0,232.5
Regeneration and Local Services,Direct Services,10561,Fleet - Morrison Busty Fleet,Transport,215013,Running Costs of Vehicles,10-Mar-17,5845201357,DVLA VEHICLE TAX,9399,Vehicle Excise Duty (VED),652.5,0,652.5
Regeneration and Local Services,Direct Services,10367,C&G - South Grounds Maintenance,Supplies and Services,304999,Equipment and Materials,10-Mar-17,5845201367,NEW ROW FARM NURSERIES,5193,Misc equipment tools and materials,385.37,0,385.37
Regeneration and Local Services,Culture & Sport,11232,Locality 3 Team Management,Supplies and Services,324117,Provisions,10-Mar-17,5845201373,H TAYLOR & SONS LTD,5499,Catering costs - provisions,42.75,0,42.75
Regeneration and Local Services,Culture & Sport,54813,Gala Theatre - Technical,Supplies and Services,304403,Equipment and Materials,10-Mar-17,5845201403,INSTYLE LED LIMITED,5065,Other consumables,297.6,49.6,248
Regeneration and Local Services,Culture & Sport,54813,Gala Theatre - Technical,Supplies and Services,304403,Equipment and Materials,10-Mar-17,5845201407,WWW.DISCOUNT-ELECTRICA,5065,Other consumables,53.57,8.93,44.64
Regeneration and Local Services,Culture & Sport,54813,Gala Theatre - Technical,Supplies and Services,312011,Newspapers Books and Periodicals,10-Mar-17,5845201409,DIRECT CHANNEL SUPPORT,5251,Books-school library,19.02,3.17,15.85
Resources,Legal & Democratic Services,67910,Democratic Representation,Supplies and Services,324117,Provisions,10-Mar-17,5845201429,MARKS&SPENCER PLC,5411,Catering costs - provisions,14,0,14
Children and Young Peoples Services,Childrens Services,85332,Middlestone Moor CU,Supplies and Services,324117,Provisions,10-Mar-17,5845201433,TESCO STORES 2371,5411,Catering costs - provisions,130.88,0,130.88
Regeneration and Local Services,Economic Development and Housing,30737,Durham Works Flexible Fund,Supplies and Services,328041,Clothing Uniforms and Laundry,10-Mar-17,5845201463,WWW.BOOHOO.COM,5691,Clothing uniforms and laundry,49.5,0,49.5
Regeneration and Local Services,Economic Development and Housing,30737,Durham Works Flexible Fund,Transport,230031,Contract Hire,10-Mar-17,5845201467,WWW.SIMPLYGO.COM,4131,Pupils-transport to play fields etc,18.9,0,18.9
Regeneration and Local Services,Economic Development and Housing,30737,Durham Works Flexible Fund,Transport,230031,Contract Hire,10-Mar-17,5845201469,WWW.SIMPLYGO.COM,4131,Pupils-transport to play fields etc,89,0,89
Children and Young Peoples Services,Childrens Services,85958,Support Services,Supplies and Services,384999,Miscellaneous Expenses,10-Mar-17,5845201485,NORTHAMPTON REPTILE CE,5995,Other expenses,37.61,6.27,31.34
Children and Young Peoples Services,Childrens Services,85958,Support Services,Supplies and Services,324117,Provisions,10-Mar-17,5845201489,TESCO STORES 6329,5411,Catering costs - provisions,84.55,0,84.55
Regeneration and Local Services,Culture & Sport,11060,Hardwick Park Catering,Supplies and Services,324117,Provisions,10-Mar-17,5845201535,JR HOLLAND FOODSERVICE,5422,Catering costs - provisions,46.09,0,46.09
Regeneration and Local Services,Culture & Sport,11060,Hardwick Park Catering,Supplies and Services,324117,Provisions,10-Mar-17,5845201541,BRAKE BROS LTD,5811,Catering costs - provisions,393.12,65.52,327.6
Regeneration and Local Services,Culture & Sport,11060,Hardwick Park Catering,Supplies and Services,324117,Provisions,10-Mar-17,000005845201541 - 1,BRAKE BROS LTD,5811,Catering costs - provisions,344.06,,344.06
Regeneration and Local Services,Culture & Sport,11060,Hardwick Park Catering,Supplies and Services,324117,Provisions,10-Mar-17,5845201557,BRAKE BROS LTD,5811,Catering costs - provisions,103.62,17.27,86.35
Regeneration and Local Services,Culture & Sport,11060,Hardwick Park Catering,Supplies and Services,324117,Provisions,10-Mar-17,000005845201557 - 1,BRAKE BROS LTD,5811,Catering costs - provisions,113.14,,113.14
Regeneration and Local Services,Culture & Sport,54815,Gala Theatre Stage School,Supplies and Services,328041,Clothing Uniforms and Laundry,10-Mar-17,5845201573,Argos Durham Arnis,5310,Clothing uniforms and laundry,15.98,0,15.98
Regeneration and Local Services,Spatial Policy Planning Assets & Environment,31071,Sustainability and Climate Change,Transport,235057,Public Transport,10-Mar-17,5845201647,SK NETRAFIKEN KC MALM,4131,Staff travelling,38.14,0,38.14
Regeneration and Local Services,Spatial Policy Planning Assets & Environment,31071,Sustainability and Climate Change,Supplies and Services,348037,Subsistence,10-Mar-17,5845201651,CAFE SARI,5812,Subsistence,30.69,0,30.69
Regeneration and Local Services,Direct Services,10525,Catering - Green Lane,Supplies and Services,324117,Provisions,10-Mar-17,5845201691,JR HOLLAND FOODSERVICE,5422,Catering costs - provisions,58.58,0,58.58
Children and Young Peoples Services,Childrens Services,88043,Consett 0 - 5,Supplies and Services,312011,Newspapers Books and Periodicals,10-Mar-17,5845201793,Amazon UK Marketplace,5942,Books-school library,5.34,0,5.34
Children and Young Peoples Services,Childrens Services,88043,Consett 0 - 5,Supplies and Services,312011,Newspapers Books and Periodicals,10-Mar-17,5845201799,Amazon UK Marketplace,5942,Books-school library,5.91,0,5.91
Children and Young Peoples Services,Childrens Services,88043,Consett 0 - 5,Supplies and Services,312011,Newspapers Books and Periodicals,10-Mar-17,5845201805,Amazon UK Marketplace,5942,Books-school library,66.16,0,66.16
Regeneration and Local Services,Culture & Sport,54235,Bp Auckland Town Hall Cafe,Supplies and Services,324117,Provisions,10-Mar-17,5845201891,JR HOLLAND FOODSERVICE,5422,Catering costs - provisions,19.84,0,19.84
Regeneration and Local Services,Direct Services,21324,Catering - Meadowfield,Supplies and Services,324117,Provisions,10-Mar-17,5845201905,JR HOLLAND FOODSERVICE,5422,Catering costs - provisions,43.62,0,43.62
Regeneration and Local Services,Direct Services,21324,Catering - Meadowfield,Supplies and Services,324117,Provisions,10-Mar-17,5845201911,JR HOLLAND FOODSERVICE,5422,Catering costs - provisions,9.87,0,9.87
Regeneration and Local Services,Spatial Policy Planning Assets & Environment,31078,Portable Antiquities Scheme,Supplies and Services,312009,Newspapers Books and Periodicals,10-Mar-17,5845201987,Amazon UK Marketplace,5942,Newspapers books and periodicals,89.8,0,89.8
Regeneration and Local Services,Direct Services,21235,Catering - Wharton Park,Supplies and Services,324117,Provisions,10-Mar-17,5845202059,JR HOLLAND FOODSERVICE,5422,Catering costs - provisions,56.55,0,56.55
Adult and Health Services,Head of Adults,52269,Intermediate Care Plus - North,Supplies and Services,340001,Postages,10-Mar-17,5845202077,ROYAL MAIL ONLINE SHOP,9402,Postages,110,0,110
Regeneration and Local Services,Culture & Sport,10605,Woodhouse Close Leisure Complex,Supplies and Services,324117,Provisions,10-Mar-17,5845202095,BRAKE BROS LTD,5811,Catering costs - provisions,89.22,0,89.22
Regeneration and Local Services,Economic Development and Housing,30737,Durham Works Flexible Fund,Supplies and Services,328041,Clothing Uniforms and Laundry,10-Mar-17,5845202111,ARGOS LTD,5310,Clothing uniforms and laundry,11.99,0,11.99
Regeneration and Local Services,Spatial Policy Planning Assets & Environment,31200,North Pennines Core,Supplies and Services,304259,Equipment and Materials,10-Mar-17,5845202123,TEESDALE CONSERVATION,5211,Equipment-purchase and rental,33,0,33
Regeneration and Local Services,Spatial Policy Planning Assets & Environment,31200,North Pennines Core,Supplies and Services,304259,Equipment and Materials,10-Mar-17,5845202127,WATERSIDE NURSERY,5261,Equipment-purchase and rental,77,0,77
Regeneration and Local Services,Spatial Policy Planning Assets & Environment,31200,North Pennines Core,Supplies and Services,324117,Provisions,10-Mar-17,5845202131,SCOTMID CO-OP STANHOPE,5411,Catering costs - provisions,7.78,0,7.78
Regeneration and Local Services,Spatial Policy Planning Assets & Environment,31200,North Pennines Core,Supplies and Services,304259,Equipment and Materials,10-Mar-17,5845202135,B&Q DIRECT,5211,Equipment-purchase and rental,102,0,102
Adult and Health Services,Head of Adults,55302,Durham Pathways,Supplies and Services,384999,Miscellaneous Expenses,10-Mar-17,5845202161,"Amazon Svcs Europe,SAR",5942,Other expenses,22.65,0,22.65
Children and Young Peoples Services,Childrens Services,85361,LAC & Permanence Team 1,Supplies and Services,304259,Equipment and Materials,10-Mar-17,5917733443,GRO HM PASSPORT OFFICE,9399,Equipment-purchase and rental,-9.25,0,-9.25
Children and Young Peoples Services,Childrens Services,85361,LAC & Permanence Team 1,Supplies and Services,304259,Equipment and Materials,10-Mar-17,5917733447,GRO HM PASSPORT OFFICE,9399,Equipment-purchase and rental,-9.25,0,-9.25
Children and Young Peoples Services,Childrens Services,85361,LAC & Permanence Team 1,Supplies and Services,304259,Equipment and Materials,10-Mar-17,5928729665,GRO HM PASSPORT OFFICE,9399,Equipment-purchase and rental,-9.25,0,-9.25
Children and Young Peoples Services,Childrens Services,85361,LAC & Permanence Team 1,Supplies and Services,304259,Equipment and Materials,10-Mar-17,5928729667,GRO HM PASSPORT OFFICE,9399,Equipment-purchase and rental,-9.25,0,-9.25
Regeneration and Local Services,Direct Services,21242,Catering - County Hall,Supplies and Services,324117,Provisions,11-Mar-17,5845200843,SAINSBURYS LOC4634,5411,Catering costs - provisions,5.92,0,5.92
Children and Young Peoples Services,Childrens Services,85342,9 Cedar Drive Aycliffe,Supplies and Services,324117,Provisions,11-Mar-17,5845200947,TESCO STORES 2916,5411,Catering costs - provisions,16.3,0,16.3
Children and Young Peoples Services,Education,71732,Dean Bank Childcare,Supplies and Services,324117,Provisions,11-Mar-17,5845201393,ASDA HOME SHOPPING,5411,Catering costs - provisions,5,0,5
Children and Young Peoples Services,Childrens Services,85958,Support Services,Supplies and Services,324117,Provisions,11-Mar-17,5845201505,TESCO STORES 6329,5411,Catering costs - provisions,102.39,0,102.39
Regeneration and Local Services,Economic Development and Housing,31576,B& B - Temp Accom,Supplies and Services,364320,Grants to Voluntary Organisations,11-Mar-17,5845201617,DAYS INN,7011,Accommodation assistance,131,0,131
Regeneration and Local Services,Economic Development and Housing,31576,B& B - Temp Accom,Supplies and Services,364320,Grants to Voluntary Organisations,11-Mar-17,5845201623,DAYS INN,7011,Accommodation assistance,200,0,200
Regeneration and Local Services,Economic Development and Housing,31576,B& B - Temp Accom,Supplies and Services,364320,Grants to Voluntary Organisations,11-Mar-17,5845201627,DAYS INN,7011,Accommodation assistance,200,0,200
Regeneration and Local Services,Economic Development and Housing,31576,B& B - Temp Accom,Supplies and Services,364320,Grants to Voluntary Organisations,11-Mar-17,5845201629,DAYS INN,7011,Accommodation assistance,200,0,200
Regeneration and Local Services,Spatial Policy Planning Assets & Environment,31078,Portable Antiquities Scheme,Supplies and Services,332047,Printing Stationery and Gen Off Exps,11-Mar-17,5845201993,Amazon UK Marketplace,5942,Stationery,6.45,0,6.45
Regeneration and Local Services,Spatial Policy Planning Assets & Environment,31078,Portable Antiquities Scheme,Supplies and Services,312011,Newspapers Books and Periodicals,11-Mar-17,5845201995,Amazon UK Marketplace,5942,Books-school library,19.49,0,19.49
Regeneration and Local Services,Spatial Policy Planning Assets & Environment,31078,Portable Antiquities Scheme,Supplies and Services,332047,Printing Stationery and Gen Off Exps,11-Mar-17,5845201999,Amazon UK Marketplace,5942,Stationery,115.7,0,115.7
Resources,I.C.T. Services,69010,Administration,Supplies and Services,312011,Newspapers Books and Periodicals,11-Mar-17,5845202003,Amazon UK Marketplace,5942,Books-school library,32.8,0,32.8
Resources,I.C.T. Services,69010,Administration,Supplies and Services,312011,Newspapers Books and Periodicals,11-Mar-17,5845202007,Amazon UK Marketplace,5942,Books-school library,32.79,0,32.79
Children and Young Peoples Services,Childrens Services,71404,Laurel Avenue Childrens Centre,Supplies and Services,308011,Furniture,11-Mar-17,5845202049,IKEA LIMITED,5712,Furniture repair and replacement,51.6,0,51.6
Regeneration and Local Services,Direct Services,21235,Catering - Wharton Park,Supplies and Services,324117,Provisions,11-Mar-17,5845202065,BRAKE BROS LTD,5811,Catering costs - provisions,169.8,28.3,141.5
Regeneration and Local Services,Direct Services,21235,Catering - Wharton Park,Supplies and Services,324117,Provisions,11-Mar-17,000005845202065 - 1,BRAKE BROS LTD,5811,Catering costs - provisions,17.31,,17.31
Regeneration and Local Services,Direct Services,21235,Catering - Wharton Park,Supplies and Services,324117,Provisions,11-Mar-17,5845202071,BRAKE BROS LTD,5811,Catering costs - provisions,117.72,19.62,98.1
Regeneration and Local Services,Direct Services,21235,Catering - Wharton Park,Supplies and Services,324117,Provisions,11-Mar-17,000005845202071 - 1,BRAKE BROS LTD,5811,Catering costs - provisions,33.63,,33.63
Children and Young Peoples Services,Education,71732,Dean Bank Childcare,Supplies and Services,312011,Newspapers Books and Periodicals,12-Mar-17,5845201399,Amazon EU,5969,Books-school library,10.48,0,10.48
Regeneration and Local Services,Spatial Policy Planning Assets & Environment,31071,Sustainability and Climate Change,Transport,235057,Public Transport,12-Mar-17,5845201653,DSB KOBENHAVN AUT,4111,Staff travelling,4.23,0,4.23
Children and Young Peoples Services,Childrens Services,85334,West Rainton Satelite Home,Supplies and Services,324117,Provisions,12-Mar-17,5845201767,TESCO STORES 2371,5411,Catering costs - provisions,161.5,0,161.5
Children and Young Peoples Services,Childrens Services,85333,Coxhoe Satelite Home,Supplies and Services,324117,Provisions,12-Mar-17,5845201775,CO-OP GROUP 310016,5411,Catering costs - provisions,21.35,0,21.35
Resources,Resources Management,69000,Resources Management,Supplies and Services,324117,Provisions,12-Mar-17,5845201783,CO-OP GROUP 310016,5411,Catering costs - provisions,4,0,4
Regeneration and Local Services,Culture & Sport,54604,Seven Hills Spennymoor,Supplies and Services,312011,Newspapers Books and Periodicals,12-Mar-17,5845201845,Amazon EU,5969,Books-school library,10.99,0,10.99
Children and Young Peoples Services,Childrens Services,88083,Ferryhill 0 - 5,Supplies and Services,328041,Clothing Uniforms and Laundry,12-Mar-17,5845201949,NEXT 0607,5651,Clothing uniforms and laundry,30.05,0,30.05
Children and Young Peoples Services,Childrens Services,88083,Ferryhill 0 - 5,Supplies and Services,304259,Equipment and Materials,12-Mar-17,5845201955,WILKO DURHAM 426,5722,Equipment-purchase and rental,3.5,0,3.5
Regeneration and Local Services,Spatial Policy Planning Assets & Environment,31078,Portable Antiquities Scheme,Supplies and Services,332047,Printing Stationery and Gen Off Exps,12-Mar-17,5845202011,Amazon UK Marketplace,5942,Stationery,2.34,0,2.34
Regeneration and Local Services,Spatial Policy Planning Assets & Environment,31078,Portable Antiquities Scheme,Supplies and Services,312009,Newspapers Books and Periodicals,12-Mar-17,5845202017,Amazon UK Marketplace,5942,Newspapers books and periodicals,16.4,0,16.4
Regeneration and Local Services,Spatial Policy Planning Assets & Environment,31078,Portable Antiquities Scheme,Supplies and Services,312011,Newspapers Books and Periodicals,12-Mar-17,5845202021,Amazon EU,5969,Books-school library,42.16,0,42.16
Regeneration and Local Services,Spatial Policy Planning Assets & Environment,31071,Sustainability and Climate Change,Supplies and Services,348037,Subsistence,12-Mar-17,5852297359,HOTEL NERIS Restoranas,5812,Subsistence,39.12,0,39.12
Regeneration and Local Services,Spatial Policy Planning Assets & Environment,31078,Portable Antiquities Scheme,Supplies and Services,312009,Newspapers Books and Periodicals,12-Mar-17,5852297601,AMAZON UK RETAIL AMAZO,5999,Newspapers books and periodicals,111.73,0,111.73
Resources,I.C.T. Services,70204,Operations - System & Repairs Team,Supplies and Services,372009,Subscriptions,13-Mar-17,5845201157,WEB NETWORKSOLUTIONS,5968,Subscriptions,2.36,0,2.36
Regeneration and Local Services,Spatial Policy Planning Assets & Environment,31071,Sustainability and Climate Change,Supplies and Services,348037,Subsistence,13-Mar-17,5845201657,Drumbar,5812,Subsistence,2.52,0,2.52
Regeneration and Local Services,Spatial Policy Planning Assets & Environment,31071,Sustainability and Climate Change,Transport,235057,Public Transport,13-Mar-17,5845201659,SK NETRAFIKEN KC MALM,4131,Staff travelling,1.05,0,1.05
Regeneration and Local Services,Spatial Policy Planning Assets & Environment,31071,Sustainability and Climate Change,Supplies and Services,348037,Subsistence,13-Mar-17,5845201661,CAFE SARI,5812,Subsistence,0.84,0,0.84
Regeneration and Local Services,Spatial Policy Planning Assets & Environment,31071,Sustainability and Climate Change,Transport,235057,Public Transport,13-Mar-17,5845201663,DSB KOBENHAVN AUT,4111,Staff travelling,0.12,0,0.12
Regeneration and Local Services,Spatial Policy Planning Assets & Environment,31078,Portable Antiquities Scheme,Supplies and Services,332047,Printing Stationery and Gen Off Exps,13-Mar-17,5845202023,Amazon UK Marketplace,5942,Stationery,20.39,0,20.39
Regeneration and Local Services,Direct Services,21242,Catering - County Hall,Supplies and Services,324117,Provisions,13-Mar-17,5852296993,TESCO STORES 2916,5411,Catering costs - provisions,5.2,0,5.2
Children and Young Peoples Services,Education,71801,Selby Cottage Childcare Centre,Supplies and Services,324117,Provisions,13-Mar-17,5852296997,TESCO STORES 2278,5411,Catering costs - provisions,2.88,0,2.88
Children and Young Peoples Services,Education,71801,Selby Cottage Childcare Centre,Supplies and Services,324117,Provisions,13-Mar-17,5852297001,ASDA HOME SHOPPING,5411,Catering costs - provisions,47.93,0,47.93
Regeneration and Local Services,Direct Services,10301,C&G - North Grounds Maintenance,Supplies and Services,304259,Equipment and Materials,13-Mar-17,5852297033,SCREWFIX,5211,Equipment-purchase and rental,89.99,15,74.99
Children and Young Peoples Services,Childrens Services,88093,Newton Aycliffe 0 - 5,Supplies and Services,304403,Equipment and Materials,13-Mar-17,5852297053,ASDA HOME SHOPPING,5411,Other consumables,27.55,0,27.55
Children and Young Peoples Services,Childrens Services,88093,Newton Aycliffe 0 - 5,Supplies and Services,304403,Equipment and Materials,13-Mar-17,5852297055,ASDA HOME SHOPPING,5411,Other consumables,6.08,0,6.08
Children and Young Peoples Services,Childrens Services,85342,9 Cedar Drive Aycliffe,Supplies and Services,324117,Provisions,13-Mar-17,5852297101,MARKS&SPENCER PLC SACA,5411,Catering costs - provisions,4.05,0,4.05
Regeneration and Local Services,Economic Development and Housing,30737,Durham Works Flexible Fund,Supplies and Services,328041,Clothing Uniforms and Laundry,13-Mar-17,5852297135,ASDA GEORGE COM LEEDS,5411,Clothing uniforms and laundry,17.95,0,17.95
Regeneration and Local Services,Direct Services,21242,Catering - County Hall,Supplies and Services,324117,Provisions,13-Mar-17,5852297137,FREEMAN CATERING BUTCH,5422,Catering costs - provisions,167.67,0,167.67
Regeneration and Local Services,Direct Services,21242,Catering - County Hall,Supplies and Services,324117,Provisions,13-Mar-17,5852297143,FREEMAN CATERING BUTCH,5422,Catering costs - provisions,15.71,0,15.71
Regeneration and Local Services,Direct Services,21242,Catering - County Hall,Supplies and Services,324117,Provisions,13-Mar-17,5852297145,JR HOLLAND FOODSERVICE,5422,Catering costs - provisions,77.47,0,77.47
Regeneration and Local Services,Direct Services,21242,Catering - County Hall,Supplies and Services,324117,Provisions,13-Mar-17,5852297149,JR HOLLAND FOODSERVICE,5422,Catering costs - provisions,6.94,0,6.94
Regeneration and Local Services,Direct Services,21242,Catering - County Hall,Supplies and Services,324117,Provisions,13-Mar-17,5852297151,BRAKE BROS LTD,5811,Catering costs - provisions,87.76,0,87.76
Regeneration and Local Services,Culture & Sport,54812,Gala Theatre - Catering etc,Supplies and Services,324117,Provisions,13-Mar-17,5852297161,FREEMAN CATERING BUTCH,5422,Catering costs - provisions,40.52,0,40.52
Children and Young Peoples Services,Education,79599,Psychological-HQ,Supplies and Services,312011,Newspapers Books and Periodicals,13-Mar-17,5852297185,Amazon UK Marketplace,5942,Books-school library,17.75,0,17.75
Regeneration and Local Services,Culture & Sport,11232,Locality 3 Team Management,Supplies and Services,328041,Clothing Uniforms and Laundry,13-Mar-17,5852297207,ARGOS RETAIL GROUP,5310,Clothing uniforms and laundry,119.99,0,119.99
Children and Young Peoples Services,Childrens Services,88063,Bishop Auckland 0 - 5,Supplies and Services,324117,Provisions,13-Mar-17,5852297211,ASDA HOME SHOPPING,5411,Catering costs - provisions,59.88,0,59.88
Children and Young Peoples Services,Education,71732,Dean Bank Childcare,Supplies and Services,324117,Provisions,13-Mar-17,5852297225,ASDA HOME SHOPPING,5411,Catering costs - provisions,47.1,0,47.1
Children and Young Peoples Services,Education,71732,Dean Bank Childcare,Supplies and Services,324117,Provisions,13-Mar-17,5852297229,CO-OP GROUP 010503,5411,Catering costs - provisions,8.58,0,8.58
Resources,Legal & Democratic Services,69540,Charter Trust,Supplies and Services,384999,Miscellaneous Expenses,13-Mar-17,5852297233,POUNDLAND LTD 1554,5310,Other expenses,16,0,16
Regeneration and Local Services,Culture & Sport,11191,Wellbeing4Life,Supplies and Services,324117,Provisions,13-Mar-17,5852297255,ASDA STORES,5411,Catering costs - provisions,14.18,0,14.18
Regeneration and Local Services,Economic Development and Housing,30737,Durham Works Flexible Fund,Transport,230031,Contract Hire,13-Mar-17,5852297287,WWW.SIMPLYGO.COM,4131,Pupils-transport to play fields etc,24.9,0,24.9
Children and Young Peoples Services,Childrens Services,85958,Support Services,Supplies and Services,312011,Newspapers Books and Periodicals,13-Mar-17,5852297293,Amazon UK Marketplace,5942,Books-school library,8.49,0,8.49
Children and Young Peoples Services,Childrens Services,85958,Support Services,Supplies and Services,342033,Computers and Communications,13-Mar-17,5852297297,VERY.CO.UK,5964,Computer hardware,46,0,46
Children and Young Peoples Services,Childrens Services,85958,Support Services,Supplies and Services,342033,Computers and Communications,13-Mar-17,5852297301,VERY.CO.UK,5964,Computer hardware,3.99,0,3.99
Regeneration and Local Services,Direct Services,10301,C&G - North Grounds Maintenance,Supplies and Services,304259,Equipment and Materials,13-Mar-17,5852297309,HARELAW SAWMILL,5211,Equipment-purchase and rental,234.36,39.06,195.3
Regeneration and Local Services,Spatial Policy Planning Assets & Environment,31222,North Pennines Allen Valleys Landscape Partnership,Supplies and Services,324117,Provisions,13-Mar-17,5852297311,ALLENDALE CO-OPERATIVE,5499,Catering costs - provisions,3.47,0,3.47
Regeneration and Local Services,Culture & Sport,11060,Hardwick Park Catering,Supplies and Services,324117,Provisions,13-Mar-17,5852297319,FREEMAN CATERING BUTCH,5422,Catering costs - provisions,28.99,0,28.99
Regeneration and Local Services,Culture & Sport,11060,Hardwick Park Catering,Supplies and Services,324117,Provisions,13-Mar-17,5852297321,FREEMAN CATERING BUTCH,5422,Catering costs - provisions,23.01,0,23.01
Regeneration and Local Services,Culture & Sport,11060,Hardwick Park Catering,Supplies and Services,324117,Provisions,13-Mar-17,5852297325,FREEMAN CATERING BUTCH,5422,Catering costs - provisions,21.42,0,21.42
Regeneration and Local Services,Culture & Sport,11060,Hardwick Park Catering,Supplies and Services,324117,Provisions,13-Mar-17,5852297331,JR HOLLAND FOODSERVICE,5422,Catering costs - provisions,74.93,0,74.93
Regeneration and Local Services,Culture & Sport,11060,Hardwick Park Catering,Supplies and Services,324117,Provisions,13-Mar-17,5852297335,BRAKE BROS LTD,5811,Catering costs - provisions,545.04,90.84,454.2
Regeneration and Local Services,Culture & Sport,11060,Hardwick Park Catering,Supplies and Services,324117,Provisions,13-Mar-17,000005852297335 - 1,BRAKE BROS LTD,5811,Catering costs - provisions,19.39,,19.39
Regeneration and Local Services,Culture & Sport,11060,Hardwick Park Catering,Supplies and Services,324117,Provisions,13-Mar-17,5852297341,BRAKE BROS LTD,5811,Catering costs - provisions,38.64,6.44,32.2
Regeneration and Local Services,Culture & Sport,11060,Hardwick Park Catering,Supplies and Services,324117,Provisions,13-Mar-17,000005852297341 - 1,BRAKE BROS LTD,5811,Catering costs - provisions,132.68,,132.68
Regeneration and Local Services,Culture & Sport,11060,Hardwick Park Catering,Supplies and Services,324117,Provisions,13-Mar-17,5852297343,JR HOLLAND FOODSERVICE,5422,Catering costs - provisions,-6.56,0,-6.56
Regeneration and Local Services,Economic Development and Housing,30762,Organisational Training & Development,Employees,40149,Recruitment Instruction and Training,13-Mar-17,5852297353,CITB,8220,Training-all costs,30,0,30
Resources,Financial Services,65116,Creditors,Employees,40149,Recruitment Instruction and Training,13-Mar-17,5852297377,PAYPAL NATIONALHAN,8398,Training-all costs,20,0,20
Adult and Health Services,Head of Adults,52750,Learning Disability Management,Supplies and Services,352001,Conference Expenses,13-Mar-17,5852297379,SCARMAN,7011,Conferencesseminars fees etc,138,23,115
Regeneration and Local Services,Economic Development and Housing,30749,Employability - Youth Contract,Transport,230031,Contract Hire,13-Mar-17,5852297435,ARRIVA NORTH EAST,4131,Pupils-transport to play fields etc,59,0,59
Regeneration and Local Services,Economic Development and Housing,30749,Employability - Youth Contract,Transport,230031,Contract Hire,13-Mar-17,5852297437,NEXUS TRAVEL SHOP,4131,Pupils-transport to play fields etc,10,0,10
Regeneration and Local Services,Economic Development and Housing,30749,Employability - Youth Contract,Transport,215995,Running Costs of Vehicles,13-Mar-17,5852297441,MEADOWFIELD FILLIN,5541,Vehicle running expenses,20,0,20
Children and Young Peoples Services,Childrens Services,88043,Consett 0 - 5,Supplies and Services,312011,Newspapers Books and Periodicals,13-Mar-17,5852297451,Amazon UK Marketplace,5942,Books-school library,15.19,0,15.19
Children and Young Peoples Services,Childrens Services,88043,Consett 0 - 5,Supplies and Services,312011,Newspapers Books and Periodicals,13-Mar-17,5852297455,Amazon UK Marketplace,5942,Books-school library,18.94,0,18.94
Children and Young Peoples Services,Childrens Services,88043,Consett 0 - 5,Supplies and Services,312011,Newspapers Books and Periodicals,13-Mar-17,5852297457,Amazon UK Marketplace,5942,Books-school library,19.31,0,19.31
Children and Young Peoples Services,Childrens Services,88043,Consett 0 - 5,Supplies and Services,312011,Newspapers Books and Periodicals,13-Mar-17,5852297459,Amazon UK Marketplace,5942,Books-school library,9.65,0,9.65
Regeneration and Local Services,Culture & Sport,54235,Bp Auckland Town Hall Cafe,Supplies and Services,324117,Provisions,13-Mar-17,5852297497,BRAKE BROS LTD,5811,Catering costs - provisions,168.1,0,168.1
Regeneration and Local Services,Direct Services,21324,Catering - Meadowfield,Supplies and Services,324117,Provisions,13-Mar-17,5852297499,FREEMAN CATERING BUTCH,5422,Catering costs - provisions,66.33,0,66.33
Regeneration and Local Services,Direct Services,21324,Catering - Meadowfield,Supplies and Services,324117,Provisions,13-Mar-17,5852297501,FREEMAN CATERING BUTCH,5422,Catering costs - provisions,60.73,0,60.73
Regeneration and Local Services,Direct Services,10301,C&G - North Grounds Maintenance,Supplies and Services,312011,Newspapers Books and Periodicals,13-Mar-17,5852297507,TOOLSTATION LTD,5251,Books-school library,191.6,31.93,159.67
Children and Young Peoples Services,Childrens Services,85331,New Lea Childrens Home,Transport,235057,Public Transport,13-Mar-17,5852297561,WWW.SIMPLYGO.COM,4131,Staff travelling,15.5,0,15.5
Regeneration and Local Services,Spatial Policy Planning Assets & Environment,31078,Portable Antiquities Scheme,Supplies and Services,332047,Printing Stationery and Gen Off Exps,13-Mar-17,5852297583,Amazon UK Marketplace,5942,Stationery,3.27,0,3.27
Regeneration and Local Services,Spatial Policy Planning Assets & Environment,31078,Portable Antiquities Scheme,Supplies and Services,312009,Newspapers Books and Periodicals,13-Mar-17,5852297585,Amazon UK Marketplace,5942,Newspapers books and periodicals,77.8,0,77.8
Regeneration and Local Services,Spatial Policy Planning Assets & Environment,31078,Portable Antiquities Scheme,Supplies and Services,312009,Newspapers Books and Periodicals,13-Mar-17,5852297587,Amazon UK Marketplace,5942,Newspapers books and periodicals,57.8,0,57.8
Regeneration and Local Services,Spatial Policy Planning Assets & Environment,31078,Portable Antiquities Scheme,Supplies and Services,332047,Printing Stationery and Gen Off Exps,13-Mar-17,5852297589,Amazon UK Marketplace,5942,Stationery,50.08,0,50.08
Resources,I.C.T. Services,65481,Technical Services,Supplies and Services,352001,Conference Expenses,13-Mar-17,5852297593,EB CRESTCON AMP IISP,7399,Conferencesseminars fees etc,75,0,75
Resources,I.C.T. Services,69010,Administration,Supplies and Services,332047,Printing Stationery and Gen Off Exps,13-Mar-17,5852297597,WWW.PRINTERINKS.COM,5111,Stationery,7.2,1.2,6
Resources,Legal & Democratic Services,67910,Democratic Representation,Supplies and Services,332047,Printing Stationery and Gen Off Exps,13-Mar-17,000005852297597 - 1,WWW.PRINTERINKS.COM,5111,Stationery,2.95,,2.95
Resources,Corporate Finance,69810,Health and Safety,Supplies and Services,384199,Miscellaneous Expenses,13-Mar-17,5852297599,JNE SECURITY LTD,7311,Other hired and contracted services,214.19,0,214.19
Resources,I.C.T. Services,69010,Administration,Transport,235057,Public Transport,13-Mar-17,5852297603,OYSTER ISSUE WEB,4112,Staff travelling,55,0,55
Resources,I.C.T. Services,69010,Administration,Transport,235057,Public Transport,13-Mar-17,5852297605,OYSTER RENEW WEB,4112,Staff travelling,50,0,50
Resources,Legal & Democratic Services,67910,Democratic Representation,Supplies and Services,372009,Subscriptions,13-Mar-17,5852297609,WWW.ICO.GOV.UK,9399,Subscriptions,35,0,35
Resources,Legal & Democratic Services,67910,Democratic Representation,Supplies and Services,372009,Subscriptions,13-Mar-17,5852297611,WWW.ICO.GOV.UK,9399,Subscriptions,35,0,35
Resources,Legal & Democratic Services,67910,Democratic Representation,Supplies and Services,372009,Subscriptions,13-Mar-17,5852297615,WWW.ICO.GOV.UK,9399,Subscriptions,35,0,35
Resources,Legal & Democratic Services,67910,Democratic Representation,Supplies and Services,372009,Subscriptions,13-Mar-17,5852297617,WWW.ICO.GOV.UK,9399,Subscriptions,35,0,35
Resources,Legal & Democratic Services,67910,Democratic Representation,Supplies and Services,372009,Subscriptions,13-Mar-17,5852297619,WWW.ICO.GOV.UK,9399,Subscriptions,35,0,35
Resources,Legal & Democratic Services,67910,Democratic Representation,Supplies and Services,372009,Subscriptions,13-Mar-17,5852297623,WWW.ICO.GOV.UK,9399,Subscriptions,35,0,35
Resources,Legal & Democratic Services,67910,Democratic Representation,Supplies and Services,372009,Subscriptions,13-Mar-17,5852297625,WWW.ICO.GOV.UK,9399,Subscriptions,35,0,35
Resources,Legal & Democratic Services,67910,Democratic Representation,Supplies and Services,372009,Subscriptions,13-Mar-17,5852297627,WWW.ICO.GOV.UK,9399,Subscriptions,35,0,35
Resources,Legal & Democratic Services,67910,Democratic Representation,Supplies and Services,372009,Subscriptions,13-Mar-17,5852297629,WWW.ICO.GOV.UK,9399,Subscriptions,35,0,35
Resources,Legal & Democratic Services,67910,Democratic Representation,Supplies and Services,372009,Subscriptions,13-Mar-17,5852297631,WWW.ICO.GOV.UK,9399,Subscriptions,35,0,35
Resources,I.C.T. Services,69010,Administration,Supplies and Services,372009,Subscriptions,13-Mar-17,5852297633,WWW.ICO.GOV.UK,9399,Subscriptions,35,0,35
Resources,Legal & Democratic Services,67910,Democratic Representation,Supplies and Services,372009,Subscriptions,13-Mar-17,5852297635,WWW.ICO.GOV.UK,9399,Subscriptions,35,0,35
Resources,Legal & Democratic Services,67910,Democratic Representation,Supplies and Services,372009,Subscriptions,13-Mar-17,5852297637,WWW.ICO.GOV.UK,9399,Subscriptions,35,0,35
Resources,Legal & Democratic Services,67910,Democratic Representation,Supplies and Services,372009,Subscriptions,13-Mar-17,5852297641,WWW.ICO.GOV.UK,9399,Subscriptions,35,0,35
Resources,Legal & Democratic Services,67910,Democratic Representation,Supplies and Services,372009,Subscriptions,13-Mar-17,5852297643,WWW.ICO.GOV.UK,9399,Subscriptions,35,0,35
Resources,Legal & Democratic Services,67910,Democratic Representation,Supplies and Services,372009,Subscriptions,13-Mar-17,5852297645,WWW.ICO.GOV.UK,9399,Subscriptions,35,0,35
Resources,Legal & Democratic Services,67910,Democratic Representation,Supplies and Services,372009,Subscriptions,13-Mar-17,5852297647,WWW.ICO.GOV.UK,9399,Subscriptions,35,0,35
Resources,Legal & Democratic Services,67910,Democratic Representation,Supplies and Services,372009,Subscriptions,13-Mar-17,5852297649,WWW.ICO.GOV.UK,9399,Subscriptions,35,0,35
Resources,Legal & Democratic Services,67910,Democratic Representation,Supplies and Services,372009,Subscriptions,13-Mar-17,5852297651,WWW.ICO.GOV.UK,9399,Subscriptions,35,0,35
Resources,Legal & Democratic Services,67910,Democratic Representation,Supplies and Services,372009,Subscriptions,13-Mar-17,5852297653,WWW.ICO.GOV.UK,9399,Subscriptions,35,0,35
Resources,Legal & Democratic Services,67910,Democratic Representation,Supplies and Services,372009,Subscriptions,13-Mar-17,5852297655,WWW.ICO.GOV.UK,9399,Subscriptions,35,0,35
Resources,Legal & Democratic Services,67910,Democratic Representation,Supplies and Services,372009,Subscriptions,13-Mar-17,5852297659,WWW.ICO.GOV.UK,9399,Subscriptions,35,0,35
Resources,Legal & Democratic Services,67910,Democratic Representation,Supplies and Services,372009,Subscriptions,13-Mar-17,5852297661,WWW.ICO.GOV.UK,9399,Subscriptions,35,0,35
Resources,Legal & Democratic Services,67910,Democratic Representation,Supplies and Services,372009,Subscriptions,13-Mar-17,5852297663,WWW.ICO.GOV.UK,9399,Subscriptions,35,0,35
Resources,Legal & Democratic Services,67910,Democratic Representation,Supplies and Services,372009,Subscriptions,13-Mar-17,5852297667,WWW.ICO.GOV.UK,9399,Subscriptions,35,0,35
Resources,Legal & Democratic Services,67910,Democratic Representation,Supplies and Services,372009,Subscriptions,13-Mar-17,5852297669,WWW.ICO.GOV.UK,9399,Subscriptions,35,0,35
Resources,I.C.T. Services,69010,Administration,Supplies and Services,372009,Subscriptions,13-Mar-17,5852297671,WWW.ICO.GOV.UK,9399,Subscriptions,35,0,35
Resources,Legal & Democratic Services,67910,Democratic Representation,Supplies and Services,372009,Subscriptions,13-Mar-17,5852297673,WWW.ICO.GOV.UK,9399,Subscriptions,35,0,35
Resources,Legal & Democratic Services,67910,Democratic Representation,Supplies and Services,372009,Subscriptions,13-Mar-17,5852297677,WWW.ICO.GOV.UK,9399,Subscriptions,35,0,35
Resources,Legal & Democratic Services,67910,Democratic Representation,Supplies and Services,372009,Subscriptions,13-Mar-17,5852297679,WWW.ICO.GOV.UK,9399,Subscriptions,35,0,35
Resources,Legal & Democratic Services,67910,Democratic Representation,Supplies and Services,372009,Subscriptions,13-Mar-17,5852297681,WWW.ICO.GOV.UK,9399,Subscriptions,35,0,35
Regeneration and Local Services,Direct Services,21235,Catering - Wharton Park,Supplies and Services,324117,Provisions,13-Mar-17,5852297687,JR HOLLAND FOODSERVICE,5422,Catering costs - provisions,29.38,0,29.38
Regeneration and Local Services,Culture & Sport,10605,Woodhouse Close Leisure Complex,Supplies and Services,324117,Provisions,13-Mar-17,5852297701,JR HOLLAND FOODSERVICE,5422,Catering costs - provisions,20.4,0,20.4
Transformation and Partnerships,Partnerships & Community Engagement Div.,60472,Syrian Vulnerable Persons Scheme,Supplies and Services,308011,Furniture,13-Mar-17,5852297729,SCREWFIX,5211,Furniture repair and replacement,40.43,6.74,33.69
Regeneration and Local Services,Culture & Sport,11219,Office Services,Supplies and Services,336005,Advertising,13-Mar-17,5855637653,BANDSINTOWN LLC,7311,Advertising other than for staff,191.32,0,191.32
Adult and Health Services,Head of Adults,53816,Chester View Extra Care,Supplies and Services,304403,Equipment and Materials,13-Mar-17,5855637681,AMAZON.CO.UK,5999,Other consumables,49.5,0,49.5
Regeneration and Local Services,Culture & Sport,54604,Seven Hills Spennymoor,Supplies and Services,304403,Equipment and Materials,13-Mar-17,5855637851,AMAZON UK RETAIL AMAZO,5999,Other consumables,7.35,0,7.35
Regeneration and Local Services,Spatial Policy Planning Assets & Environment,31071,Sustainability and Climate Change,Supplies and Services,348037,Subsistence,14-Mar-17,5852297363,HOTEL NERIS Restoranas,5812,Subsistence,1.08,0,1.08
Children and Young Peoples Services,Education,71801,Selby Cottage Childcare Centre,Supplies and Services,304259,Equipment and Materials,14-Mar-17,5855637523,WILKO RETAIL LIMIT,5722,Equipment-purchase and rental,6,0,6
Children and Young Peoples Services,Education,71801,Selby Cottage Childcare Centre,Supplies and Services,304259,Equipment and Materials,14-Mar-17,5855637525,WILKO RETAIL LIMIT,5722,Equipment-purchase and rental,32,0,32
Regeneration and Local Services,Direct Services,10301,C&G - North Grounds Maintenance,Supplies and Services,304259,Equipment and Materials,14-Mar-17,5855637535,SCREWFIX CHESTER L,5211,Equipment-purchase and rental,179.98,30,149.98
Children and Young Peoples Services,Childrens Services,88033,Durham 0 - 5,Supplies and Services,312011,Newspapers Books and Periodicals,14-Mar-17,5855637537,Amazon EU,5969,Books-school library,13.5,0,13.5
Children and Young Peoples Services,Childrens Services,88033,Durham 0 - 5,Supplies and Services,328041,Clothing Uniforms and Laundry,14-Mar-17,5855637539,THE WORKS,5310,Clothing uniforms and laundry,37,6.17,30.83
Children and Young Peoples Services,Childrens Services,88033,Durham 0 - 5,Supplies and Services,304259,Equipment and Materials,14-Mar-17,5855637541,WILKO DURHAM 426,5722,Equipment-purchase and rental,12,0,12
Regeneration and Local Services,Culture & Sport,11215,Museums Heritage & Collections,Supplies and Services,372009,Subscriptions,14-Mar-17,5855637547,MUSEUMS ASCTN,5971,Subscriptions,155,0,155
Regeneration and Local Services,Direct Services,10383,C&G - South Street Cleansing,Supplies and Services,304259,Equipment and Materials,14-Mar-17,5855637549,JEWSON LTD,5211,Equipment-purchase and rental,81.91,13.65,68.26
Children and Young Peoples Services,Childrens Services,85957,Secure Management,Supplies and Services,342033,Computers and Communications,14-Mar-17,5855637553,VERY.CO.UK,5964,Computer hardware,52.5,0,52.5
Children and Young Peoples Services,Childrens Services,85957,Secure Management,Supplies and Services,342033,Computers and Communications,14-Mar-17,5855637555,VERY.CO.UK,5964,Computer hardware,48.75,0,48.75
Children and Young Peoples Services,Childrens Services,85957,Secure Management,Supplies and Services,342033,Computers and Communications,14-Mar-17,5855637557,VERY.CO.UK,5964,Computer hardware,3.99,0,3.99
Children and Young Peoples Services,Childrens Services,85957,Secure Management,Supplies and Services,384999,Miscellaneous Expenses,14-Mar-17,5855637559,ARGOS RETAIL GROUP,5310,Other expenses,12.94,2.16,10.78
Resources,Financial Services,52865,SF-Financial Services Team,Supplies and Services,308011,Furniture,14-Mar-17,5855637565,MAGUIRES,5713,Furniture repair and replacement,150,0,150
Regeneration and Local Services,Economic Development and Housing,30737,Durham Works Flexible Fund,Transport,230031,Contract Hire,14-Mar-17,5855637583,WWW.SIMPLYGO.COM,4131,Pupils-transport to play fields etc,5,0,5
Regeneration and Local Services,Direct Services,21242,Catering - County Hall,Supplies and Services,324117,Provisions,14-Mar-17,5855637585,JR HOLLAND FOODSERVICE,5422,Catering costs - provisions,105.38,0,105.38
Regeneration and Local Services,Direct Services,21242,Catering - County Hall,Supplies and Services,324117,Provisions,14-Mar-17,5855637623,JR HOLLAND FOODSERVICE,5422,Catering costs - provisions,6.58,0,6.58
Regeneration and Local Services,Culture & Sport,54812,Gala Theatre - Catering etc,Supplies and Services,324117,Provisions,14-Mar-17,5855637627,JR HOLLAND FOODSERVICE,5422,Catering costs - provisions,31.31,0,31.31
Regeneration and Local Services,Culture & Sport,54812,Gala Theatre - Catering etc,Supplies and Services,324117,Provisions,14-Mar-17,5855637631,BRAKE BROS LTD,5811,Catering costs - provisions,135.48,22.58,112.9
Regeneration and Local Services,Culture & Sport,54812,Gala Theatre - Catering etc,Supplies and Services,324117,Provisions,14-Mar-17,000005855637631 - 1,BRAKE BROS LTD,5811,Catering costs - provisions,105.51,,105.51
Regeneration and Local Services,Spatial Policy Planning Assets & Environment,31200,North Pennines Core,Supplies and Services,384999,Miscellaneous Expenses,14-Mar-17,5855637647,HIGH PENNINE ANIMAL FE,5995,Other expenses,13.5,0,13.5
Children and Young Peoples Services,Education,71903,EYDCP-Sustainability EDS,Supplies and Services,312011,Newspapers Books and Periodicals,14-Mar-17,5855637691,Amazon EU,5969,Books-school library,29.39,0,29.39
Regeneration and Local Services,Economic Development and Housing,30737,Durham Works Flexible Fund,Transport,230031,Contract Hire,14-Mar-17,5855637703,WWW.SIMPLYGO.COM,4131,Pupils-transport to play fields etc,5,0,5
Regeneration and Local Services,Culture & Sport,11060,Hardwick Park Catering,Supplies and Services,324117,Provisions,14-Mar-17,5855637733,JR HOLLAND FOODSERVICE,5422,Catering costs - provisions,118.71,0,118.71
Regeneration and Local Services,Culture & Sport,11060,Hardwick Park Catering,Supplies and Services,324117,Provisions,14-Mar-17,5855637737,JR HOLLAND FOODSERVICE,5422,Catering costs - provisions,32.67,0,32.67
Resources,I.C.T. Services,65335,Operations - System & Repairs Trading,Supplies and Services,304639,Equipment and Materials,14-Mar-17,5855637741,THE REPLACE BASE LTD,7699,Technicians-supplies,369.18,61.53,307.65
Regeneration and Local Services,Direct Services,21234,Catering - Locomotion,Supplies and Services,324117,Provisions,14-Mar-17,5855637747,JR HOLLAND FOODSERVICE,5422,Catering costs - provisions,27.93,0,27.93
Regeneration and Local Services,Spatial Policy Planning Assets & Environment,31071,Sustainability and Climate Change,Supplies and Services,348037,Subsistence,14-Mar-17,5855637751,BARAS REPUBLIC,5812,Subsistence,57.61,0,57.61
Regeneration and Local Services,Direct Services,10525,Catering - Green Lane,Supplies and Services,324117,Provisions,14-Mar-17,5855637783,BRAKE BROS LTD,5811,Catering costs - provisions,190.98,31.83,159.15
Regeneration and Local Services,Direct Services,10525,Catering - Green Lane,Supplies and Services,324117,Provisions,14-Mar-17,000005855637783 - 1,BRAKE BROS LTD,5811,Catering costs - provisions,110.03,,110.03
Regeneration and Local Services,Economic Development and Housing,30737,Durham Works Flexible Fund,Transport,230031,Contract Hire,14-Mar-17,5855637811,ARRIVA NORTH EAST,4131,Pupils-transport to play fields etc,17.2,0,17.2
Regeneration and Local Services,Economic Development and Housing,30749,Employability - Youth Contract,Transport,230031,Contract Hire,14-Mar-17,5855637815,ARRIVA NORTH EAST,4131,Pupils-transport to play fields etc,13.3,0,13.3
Regeneration and Local Services,Culture & Sport,11191,Wellbeing4Life,Supplies and Services,324117,Provisions,14-Mar-17,5855637829,ALDI,5411,Catering costs - provisions,12.06,0,12.06
Regeneration and Local Services,Culture & Sport,54604,Seven Hills Spennymoor,Supplies and Services,304999,Equipment and Materials,14-Mar-17,5855637849,Amazon Prime,5968,Misc equipment tools and materials,7.99,0,7.99
Regeneration and Local Services,Direct Services,21324,Catering - Meadowfield,Supplies and Services,324117,Provisions,14-Mar-17,5855637867,BRAKE BROS LTD,5811,Catering costs - provisions,70.39,0,70.39
Regeneration and Local Services,Direct Services,10301,C&G - North Grounds Maintenance,Supplies and Services,304403,Equipment and Materials,14-Mar-17,5855637877,FRED WILLIAMSON,5231,Other consumables,62.35,10.39,51.96
Children and Young Peoples Services,Childrens Services,85331,New Lea Childrens Home,Supplies and Services,324117,Provisions,14-Mar-17,5855637895,ASDA HOME SHOPPING,5411,Catering costs - provisions,195.06,0,195.06
Children and Young Peoples Services,Childrens Services,85331,New Lea Childrens Home,Supplies and Services,324117,Provisions,14-Mar-17,5855637897,ASDA HOME SHOPPING,5411,Catering costs - provisions,-0.34,0,-0.34
Children and Young Peoples Services,Childrens Services,85331,New Lea Childrens Home,Supplies and Services,324117,Provisions,14-Mar-17,5855637899,ASDA HOME SHOPPING,5411,Catering costs - provisions,-2,0,-2
Regeneration and Local Services,Economic Development and Housing,30737,Durham Works Flexible Fund,Supplies and Services,324117,Provisions,14-Mar-17,5855637901,ONE STOP 2969,5411,Catering costs - provisions,92,0,92
Children and Young Peoples Services,Childrens Services,74000,TTF-Attachment and Results,Supplies and Services,304403,Equipment and Materials,14-Mar-17,5855637913,TESCO - Bebeco,5999,Other consumables,9.95,0,9.95
Children and Young Peoples Services,Childrens Services,74000,TTF-Attachment and Results,Supplies and Services,304403,Equipment and Materials,14-Mar-17,5855637917,TESCO - EDPA,5999,Other consumables,45.22,0,45.22
Children and Young Peoples Services,Childrens Services,74000,TTF-Attachment and Results,Supplies and Services,304403,Equipment and Materials,14-Mar-17,5855637919,TESCO - PLO,5999,Other consumables,55.94,0,55.94
Children and Young Peoples Services,Childrens Services,74000,TTF-Attachment and Results,Supplies and Services,304403,Equipment and Materials,14-Mar-17,5855637923,TESCO DIRECT,5999,Other consumables,30,0,30
Regeneration and Local Services,Spatial Policy Planning Assets & Environment,31078,Portable Antiquities Scheme,Supplies and Services,332047,Printing Stationery and Gen Off Exps,14-Mar-17,5855637929,Amazon UK Marketplace,5942,Stationery,7.36,0,7.36
Regeneration and Local Services,Spatial Policy Planning Assets & Environment,31078,Portable Antiquities Scheme,Supplies and Services,332047,Printing Stationery and Gen Off Exps,14-Mar-17,5855637931,GOOGLE SERVICES,5732,Stationery,598,0,598
Resources,Legal & Democratic Services,67910,Democratic Representation,Supplies and Services,372009,Subscriptions,14-Mar-17,5855637933,WWW.ICO.GOV.UK,9399,Subscriptions,35,0,35
Resources,Legal & Democratic Services,67910,Democratic Representation,Supplies and Services,372009,Subscriptions,14-Mar-17,5855637937,WWW.ICO.GOV.UK,9399,Subscriptions,35,0,35
Resources,Legal & Democratic Services,67910,Democratic Representation,Supplies and Services,304259,Equipment and Materials,14-Mar-17,5855637939,WWW.ICO.GOV.UK,9399,Equipment-purchase and rental,35,0,35
Resources,Legal & Democratic Services,67910,Democratic Representation,Supplies and Services,372009,Subscriptions,14-Mar-17,5855637943,WWW.ICO.GOV.UK,9399,Subscriptions,35,0,35
Resources,Legal & Democratic Services,67910,Democratic Representation,Supplies and Services,372009,Subscriptions,14-Mar-17,5855637947,WWW.ICO.GOV.UK,9399,Subscriptions,35,0,35
Resources,Legal & Democratic Services,67910,Democratic Representation,Supplies and Services,372009,Subscriptions,14-Mar-17,5855637951,WWW.ICO.GOV.UK,9399,Subscriptions,35,0,35
Resources,Legal & Democratic Services,67910,Democratic Representation,Supplies and Services,372009,Subscriptions,14-Mar-17,5855637955,WWW.ICO.GOV.UK,9399,Subscriptions,35,0,35
Children and Young Peoples Services,Childrens Services,71404,Laurel Avenue Childrens Centre,Supplies and Services,324117,Provisions,14-Mar-17,5855637965,TESCO STORES 2916,5411,Catering costs - provisions,6.35,0,6.35
Regeneration and Local Services,Direct Services,21235,Catering - Wharton Park,Supplies and Services,324117,Provisions,14-Mar-17,5855637971,JR HOLLAND FOODSERVICE,5422,Catering costs - provisions,6.81,0,6.81
Regeneration and Local Services,Spatial Policy Planning Assets & Environment,31217,North Pennines - Cold Blooded & Spineless,Supplies and Services,324117,Provisions,14-Mar-17,5855637977,SCOTMID CO-OP STANHOPE,5411,Catering costs - provisions,7.53,0,7.53
Regeneration and Local Services,Culture & Sport,26591,Hardwick Park,Supplies and Services,304649,Equipment and Materials,14-Mar-17,5855637983,WWW.ANGELWHOLESALE.CO.,5641,Toys,83.7,13.95,69.75
Children and Young Peoples Services,Childrens Services,88011,Seaham Locality,Supplies and Services,304403,Equipment and Materials,14-Mar-17,5855638005,TESCO-Seller_IST_1_240,5999,Other consumables,23.99,0,23.99
Regeneration and Local Services,Economic Development and Housing,31500,Housing Solutions - Core Team,Supplies and Services,352001,Conference Expenses,14-Mar-17,5859702835,Park Head Hotel,7011,Conferencesseminars fees etc,48.5,0,48.5
Regeneration and Local Services,Economic Development and Housing,30699,Business Growth and Innovation General,Supplies and Services,342033,Computers and Communications,14-Mar-17,5859702875,WATCHFULPAYPAL,7379,Computer hardware,16.5,0,16.5
Regeneration and Local Services,Culture & Sport,54604,Seven Hills Spennymoor,Supplies and Services,304403,Equipment and Materials,14-Mar-17,5859703263,AMAZON UK RETAIL AMAZO,5999,Other consumables,8.03,0,8.03
Regeneration and Local Services,Spatial Policy Planning Assets & Environment,31078,Portable Antiquities Scheme,Supplies and Services,332047,Printing Stationery and Gen Off Exps,14-Mar-17,5859703379,AMAZON UK RETAIL AMAZO,5999,Stationery,93.98,0,93.98
Regeneration and Local Services,Culture & Sport,11219,Office Services,Supplies and Services,336005,Advertising,15-Mar-17,5855637657,BANDSINTOWN LLC,7311,Advertising other than for staff,5.26,0,5.26
Regeneration and Local Services,Spatial Policy Planning Assets & Environment,31071,Sustainability and Climate Change,Supplies and Services,348037,Subsistence,15-Mar-17,5855637755,BARAS REPUBLIC,5812,Subsistence,1.58,0,1.58
Children and Young Peoples Services,Education,71801,Selby Cottage Childcare Centre,Supplies and Services,324117,Provisions,15-Mar-17,5859702801,TESCO STORES 2278,5411,Catering costs - provisions,3.35,0,3.35
Children and Young Peoples Services,Childrens Services,71746,Newton Aycliffe Childrens Centre,Supplies and Services,324117,Provisions,15-Mar-17,5859702827,TESCO STORES 2916,5411,Catering costs - provisions,1.75,0,1.75
Regeneration and Local Services,Economic Development and Housing,31500,Housing Solutions - Core Team,Supplies and Services,352001,Conference Expenses,15-Mar-17,5859702839,Park Head Hotel,7011,Conferencesseminars fees etc,14.6,0,14.6
Adult and Health Services,Head of Adults,55302,Durham Pathways,Supplies and Services,304245,Equipment and Materials,15-Mar-17,5859702849,Amazon UK Marketplace,5942,Materials,49.99,0,49.99
Children and Young Peoples Services,Childrens Services,85957,Secure Management,Supplies and Services,324117,Provisions,15-Mar-17,5859702855,TESCO STORES 6329,5411,Catering costs - provisions,40.63,0,40.63
Children and Young Peoples Services,Childrens Services,85957,Secure Management,Supplies and Services,304245,Equipment and Materials,15-Mar-17,5859702859,SCREWFIX DIRECT,5211,Materials,34.98,5.83,29.15
Children and Young Peoples Services,Childrens Services,85342,9 Cedar Drive Aycliffe,Supplies and Services,324117,Provisions,15-Mar-17,5859702869,TESCO STORES 2916,5411,Catering costs - provisions,81.35,0,81.35
Regeneration and Local Services,Spatial Policy Planning Assets & Environment,31040,Building Control - Central/East Area,Income,720130,Fees and Charges,15-Mar-17,5859702887,WWW.MONEYCLAIM.GOV,9399,Fees-legal,77,0,77
Children and Young Peoples Services,Childrens Services,71440,Barnard Castle One Point Hub,Supplies and Services,312011,Newspapers Books and Periodicals,15-Mar-17,5859702899,Amazon UK Marketplace,5942,Books-school library,9.69,0,9.69
Children and Young Peoples Services,Childrens Services,71440,Barnard Castle One Point Hub,Supplies and Services,312011,Newspapers Books and Periodicals,15-Mar-17,5859702905,Amazon UK Marketplace,5942,Books-school library,16.94,0,16.94
Regeneration and Local Services,Direct Services,21242,Catering - County Hall,Supplies and Services,324117,Provisions,15-Mar-17,5859702909,WWW.ADELIEFOODS.CO.UK,5499,Catering costs - provisions,103.81,0,103.81
Regeneration and Local Services,Direct Services,21242,Catering - County Hall,Supplies and Services,324117,Provisions,15-Mar-17,5859702913,WWW.ADELIEFOODS.CO.UK,5499,Catering costs - provisions,71.18,0,71.18
Regeneration and Local Services,Direct Services,21242,Catering - County Hall,Supplies and Services,324117,Provisions,15-Mar-17,5859702917,JR HOLLAND FOODSERVICE,5422,Catering costs - provisions,133.96,0,133.96
Regeneration and Local Services,Direct Services,21242,Catering - County Hall,Supplies and Services,324117,Provisions,15-Mar-17,5859702925,JR HOLLAND FOODSERVICE,5422,Catering costs - provisions,56.3,0,56.3
Regeneration and Local Services,Direct Services,21242,Catering - County Hall,Supplies and Services,324117,Provisions,15-Mar-17,5859702933,JR HOLLAND FOODSERVICE,5422,Catering costs - provisions,31.35,0,31.35
Regeneration and Local Services,Direct Services,21242,Catering - County Hall,Supplies and Services,324117,Provisions,15-Mar-17,5859702935,BRAKE BROS LTD,5811,Catering costs - provisions,373.26,62.21,311.05
Regeneration and Local Services,Direct Services,21242,Catering - County Hall,Supplies and Services,324117,Provisions,15-Mar-17,000005859702935 - 1,BRAKE BROS LTD,5811,Catering costs - provisions,337.67,,337.67
Regeneration and Local Services,Direct Services,21242,Catering - County Hall,Supplies and Services,324117,Provisions,15-Mar-17,5859702947,BRAKE BROS LTD,5811,Catering costs - provisions,151.64,0,151.64
Children and Young Peoples Services,Childrens Services,85361,LAC & Permanence Team 1,Supplies and Services,304259,Equipment and Materials,15-Mar-17,5859702975,GRO HM PASSPORT OFFICE,9399,Equipment-purchase and rental,37,0,37
Regeneration and Local Services,Spatial Policy Planning Assets & Environment,31200,North Pennines Core,Supplies and Services,304221,Equipment and Materials,15-Mar-17,5859702979,F AND R JACKSON,7394,Direct materials,147.16,24.53,122.63
Regeneration and Local Services,Direct Services,10900,Fleet - Meadowfield Fleet,Transport,215013,Running Costs of Vehicles,15-Mar-17,5859702993,DVLA VEHICLE TAX,9399,Vehicle Excise Duty (VED),232.5,0,232.5
Children and Young Peoples Services,Childrens Services,88063,Bishop Auckland 0 - 5,Supplies and Services,324117,Provisions,15-Mar-17,5859702995,ASDA HOME SHOPPING,5411,Catering costs - provisions,25.29,0,25.29
Children and Young Peoples Services,Childrens Services,88063,Bishop Auckland 0 - 5,Supplies and Services,324117,Provisions,15-Mar-17,5859702999,ASDA HOME SHOPPING,5411,Catering costs - provisions,-0.23,0,-0.23
Children and Young Peoples Services,Education,71732,Dean Bank Childcare,Supplies and Services,312011,Newspapers Books and Periodicals,15-Mar-17,5859703019,HOME BARGAINS SPENNYMO,5251,Books-school library,11.28,0,11.28
Children and Young Peoples Services,Education,71732,Dean Bank Childcare,Supplies and Services,324117,Provisions,15-Mar-17,5859703021,ASDA SUPERSTORE 4987,5411,Catering costs - provisions,20.14,0,20.14
Children and Young Peoples Services,Education,71732,Dean Bank Childcare,Supplies and Services,328041,Clothing Uniforms and Laundry,15-Mar-17,5859703025,B&M RETAIL LTD,5310,Clothing uniforms and laundry,29.98,0,29.98
Children and Young Peoples Services,Education,71732,Dean Bank Childcare,Supplies and Services,328041,Clothing Uniforms and Laundry,15-Mar-17,5859703027,B&M RETAIL LTD,5310,Clothing uniforms and laundry,40.35,0,40.35
Children and Young Peoples Services,Childrens Services,88023,Chester Le Street 0 - 5,Supplies and Services,332047,Printing Stationery and Gen Off Exps,15-Mar-17,5859703057,AMAZON UK RETAIL AMAZO,5999,Stationery,50.97,0,50.97
Children and Young Peoples Services,Childrens Services,85958,Support Services,Supplies and Services,304259,Equipment and Materials,15-Mar-17,5859703061,WWW.FOOTASYLUM.COM,5941,Equipment-purchase and rental,39.98,0,39.98
Children and Young Peoples Services,Childrens Services,85958,Support Services,Supplies and Services,384999,Miscellaneous Expenses,15-Mar-17,5859703065,SOUTHPAW.CO.UK,5945,Other expenses,147.6,24.6,123
Children and Young Peoples Services,Childrens Services,85958,Support Services,Supplies and Services,304259,Equipment and Materials,15-Mar-17,5859703067,M and M Direct Ltd,5941,Equipment-purchase and rental,-19.99,0,-19.99
Regeneration and Local Services,Direct Services,10301,C&G - North Grounds Maintenance,Supplies and Services,304221,Equipment and Materials,15-Mar-17,5859703085,AZTEC CHEMICALS LTD,5169,Direct materials,134.64,22.44,112.2
Regeneration and Local Services,Culture & Sport,11060,Hardwick Park Catering,Supplies and Services,324117,Provisions,15-Mar-17,5859703091,JR HOLLAND FOODSERVICE,5422,Catering costs - provisions,70.89,0,70.89
Regeneration and Local Services,Culture & Sport,11060,Hardwick Park Catering,Supplies and Services,324117,Provisions,15-Mar-17,5859703095,JR HOLLAND FOODSERVICE,5422,Catering costs - provisions,60.63,0,60.63
Regeneration and Local Services,Culture & Sport,11060,Hardwick Park Catering,Supplies and Services,324117,Provisions,15-Mar-17,5859703103,BRAKE BROS LTD,5811,Catering costs - provisions,27.06,4.51,22.55
Regeneration and Local Services,Culture & Sport,11060,Hardwick Park Catering,Supplies and Services,324117,Provisions,15-Mar-17,000005859703103 - 1,BRAKE BROS LTD,5811,Catering costs - provisions,76.12,,76.12
Regeneration and Local Services,Culture & Sport,54815,Gala Theatre Stage School,Supplies and Services,384999,Miscellaneous Expenses,15-Mar-17,5859703113,HOBBYCRAFT,5970,Other expenses,58,0,58
Regeneration and Local Services,Culture & Sport,54815,Gala Theatre Stage School,Supplies and Services,328041,Clothing Uniforms and Laundry,15-Mar-17,5859703115,THE RANGE,5311,Clothing uniforms and laundry,6.99,0,6.99
Regeneration and Local Services,Economic Development and Housing,30762,Organisational Training & Development,Employees,40149,Recruitment Instruction and Training,15-Mar-17,5859703119,CITB,8220,Training-all costs,30,0,30
Regeneration and Local Services,Economic Development and Housing,30762,Organisational Training & Development,Employees,40149,Recruitment Instruction and Training,15-Mar-17,5859703123,CITB,8220,Training-all costs,30,0,30
Regeneration and Local Services,Direct Services,21234,Catering - Locomotion,Supplies and Services,324117,Provisions,15-Mar-17,5859703129,BRAKE BROS LTD,5811,Catering costs - provisions,153.48,25.58,127.9
Regeneration and Local Services,Direct Services,21234,Catering - Locomotion,Supplies and Services,324117,Provisions,15-Mar-17,000005859703129 - 1,BRAKE BROS LTD,5811,Catering costs - provisions,104.89,,104.89
Regeneration and Local Services,Direct Services,21234,Catering - Locomotion,Supplies and Services,324117,Provisions,15-Mar-17,5859703133,BRAKE BROS LTD,5811,Catering costs - provisions,24.6,4.1,20.5
Regeneration and Local Services,Direct Services,21234,Catering - Locomotion,Supplies and Services,324117,Provisions,15-Mar-17,000005859703133 - 1,BRAKE BROS LTD,5811,Catering costs - provisions,167.73,,167.73
Regeneration and Local Services,Spatial Policy Planning Assets & Environment,31071,Sustainability and Climate Change,Supplies and Services,348037,Subsistence,15-Mar-17,5859703143,HOTEL NERIS Baras,5813,Subsistence,40.52,0,40.52
Regeneration and Local Services,Direct Services,10525,Catering - Green Lane,Supplies and Services,324117,Provisions,15-Mar-17,5859703157,JR HOLLAND FOODSERVICE,5422,Catering costs - provisions,41.44,0,41.44
Regeneration and Local Services,Direct Services,10525,Catering - Green Lane,Supplies and Services,324117,Provisions,15-Mar-17,5859703161,JR HOLLAND FOODSERVICE,5422,Catering costs - provisions,2,0,2
Regeneration and Local Services,Direct Services,10525,Catering - Green Lane,Supplies and Services,324117,Provisions,15-Mar-17,5859703165,BRAKE BROS LTD,5811,Catering costs - provisions,57.73,0,57.73
Regeneration and Local Services,Direct Services,10525,Catering - Green Lane,Supplies and Services,324117,Provisions,15-Mar-17,5859703169,WWW.ADELIEFOODS.CO.UK,5499,Catering costs - provisions,-1.48,0,-1.48
Children and Young Peoples Services,Childrens Services,85352,Tow Law CU,Supplies and Services,308011,Furniture,15-Mar-17,5859703179,IKEA LIMITED,5712,Furniture repair and replacement,107.8,0,107.8
Children and Young Peoples Services,Childrens Services,85352,Tow Law CU,Supplies and Services,328041,Clothing Uniforms and Laundry,15-Mar-17,5859703183,THE RANGE,5311,Clothing uniforms and laundry,43.97,0,43.97
Regeneration and Local Services,Economic Development and Housing,30737,Durham Works Flexible Fund,Transport,235057,Public Transport,15-Mar-17,5859703231,ARRIVA NORTH EAST,4131,Staff travelling,25,0,25
Children and Young Peoples Services,Childrens Services,85333,Coxhoe Satelite Home,Supplies and Services,324117,Provisions,15-Mar-17,5859703235,TESCO STORES 2916,5411,Catering costs - provisions,134.43,0,134.43
Regeneration and Local Services,Culture & Sport,54604,Seven Hills Spennymoor,Supplies and Services,304403,Equipment and Materials,15-Mar-17,5859703265,AMAZON UK RETAIL AMAZO,5999,Other consumables,5,0,5
Regeneration and Local Services,Direct Services,10301,C&G - North Grounds Maintenance,Supplies and Services,304403,Equipment and Materials,15-Mar-17,5859703277,BESCOL,5231,Other consumables,58.86,9.81,49.05
Children and Young Peoples Services,Childrens Services,88001,Peterlee Locality,Supplies and Services,308011,Furniture,15-Mar-17,5859703287,WWW.OFFICEFURNITUREONL,5712,Furniture repair and replacement,372.06,62.01,310.05
Regeneration and Local Services,Culture & Sport,54235,Bp Auckland Town Hall Cafe,Supplies and Services,324117,Provisions,15-Mar-17,5859703291,JR HOLLAND FOODSERVICE,5422,Catering costs - provisions,38.75,0,38.75
Regeneration and Local Services,Direct Services,21324,Catering - Meadowfield,Supplies and Services,324117,Provisions,15-Mar-17,5859703295,JR HOLLAND FOODSERVICE,5422,Catering costs - provisions,56.32,0,56.32
Regeneration and Local Services,Direct Services,21324,Catering - Meadowfield,Supplies and Services,324117,Provisions,15-Mar-17,5859703299,JR HOLLAND FOODSERVICE,5422,Catering costs - provisions,13.87,0,13.87
Regeneration and Local Services,Direct Services,21324,Catering - Meadowfield,Supplies and Services,324117,Provisions,15-Mar-17,5859703303,BRAKE BROS LTD,5811,Catering costs - provisions,181.56,30.26,151.3
Regeneration and Local Services,Direct Services,21324,Catering - Meadowfield,Supplies and Services,324117,Provisions,15-Mar-17,000005859703303 - 1,BRAKE BROS LTD,5811,Catering costs - provisions,87.82,,87.82
Children and Young Peoples Services,Childrens Services,88083,Ferryhill 0 - 5,Supplies and Services,324117,Provisions,15-Mar-17,5859703335,TESCO STORES 2916,5411,Catering costs - provisions,106.57,0,106.57
Children and Young Peoples Services,Childrens Services,88083,Ferryhill 0 - 5,Supplies and Services,324117,Provisions,15-Mar-17,5859703339,TESCO STORES 2916,5411,Catering costs - provisions,24.8,0,24.8
Regeneration and Local Services,Spatial Policy Planning Assets & Environment,31078,Portable Antiquities Scheme,Supplies and Services,332047,Printing Stationery and Gen Off Exps,15-Mar-17,5859703371,Amazon UK Marketplace,5942,Stationery,728.75,0,728.75
Regeneration and Local Services,Technical Services,18700,Highways Services - Management and Administration,Supplies and Services,304335,Equipment and Materials,15-Mar-17,5859703373,PAYPAL HUIZHOUSHIX,5732,ICT supplies etc,52.97,0,52.97
Resources,I.C.T. Services,65482,Data Centres,Supplies and Services,332047,Printing Stationery and Gen Off Exps,15-Mar-17,5859703377,Amazon EU,5969,Stationery,20.54,0,20.54
Resources,I.C.T. Services,69010,Administration,Transport,235057,Public Transport,15-Mar-17,5859703381,OYSTER ISSUE WEB,4112,Staff travelling,55,0,55
Resources,Legal & Democratic Services,67910,Democratic Representation,Supplies and Services,372009,Subscriptions,15-Mar-17,5859703385,WWW.ICO.GOV.UK,9399,Subscriptions,35,0,35
Resources,Legal & Democratic Services,67910,Democratic Representation,Supplies and Services,372009,Subscriptions,15-Mar-17,5859703389,WWW.ICO.GOV.UK,9399,Subscriptions,35,0,35
Resources,Legal & Democratic Services,67910,Democratic Representation,Supplies and Services,372009,Subscriptions,15-Mar-17,5859703393,WWW.ICO.GOV.UK,9399,Subscriptions,35,0,35
Resources,Legal & Democratic Services,67910,Democratic Representation,Supplies and Services,372009,Subscriptions,15-Mar-17,5859703395,WWW.ICO.GOV.UK,9399,Subscriptions,35,0,35
Resources,Legal & Democratic Services,67910,Democratic Representation,Supplies and Services,372009,Subscriptions,15-Mar-17,5859703397,WWW.ICO.GOV.UK,9399,Subscriptions,35,0,35
Regeneration and Local Services,Culture & Sport,10605,Woodhouse Close Leisure Complex,Supplies and Services,324117,Provisions,15-Mar-17,5859703409,JR HOLLAND FOODSERVICE,5422,Catering costs - provisions,25.66,0,25.66
Children and Young Peoples Services,Childrens Services,88037,One Point YEI,Supplies and Services,304259,Equipment and Materials,15-Mar-17,5859703451,SUNDERLAND CC,9399,Equipment-purchase and rental,10,0,10
Regeneration and Local Services,Economic Development and Housing,31500,Housing Solutions - Core Team,Supplies and Services,352001,Conference Expenses,15-Mar-17,5863945103,Park Head Hotel,7011,Conferencesseminars fees etc,48.5,0,48.5
Children and Young Peoples Services,Education,71732,Dean Bank Childcare,Supplies and Services,304403,Equipment and Materials,15-Mar-17,5863945245,AMAZON UK RETAIL AMAZO,5999,Other consumables,5.49,0,5.49
Regeneration and Local Services,Economic Development and Housing,31500,Housing Solutions - Core Team,Supplies and Services,384999,Miscellaneous Expenses,15-Mar-17,5863945333,WWW.VOUCHEREXPRESS.CO.,5947,Other expenses,50,0,50
Children and Young Peoples Services,Childrens Services,85361,LAC & Permanence Team 1,Supplies and Services,304259,Equipment and Materials,15-Mar-17,5932886959,GRO HM PASSPORT OFFICE,9399,Equipment-purchase and rental,-9.25,0,-9.25
Children and Young Peoples Services,Childrens Services,85361,LAC & Permanence Team 1,Supplies and Services,304259,Equipment and Materials,15-Mar-17,5937428403,GRO HM PASSPORT OFFICE,9399,Equipment-purchase and rental,-9.25,0,-9.25
Regeneration and Local Services,Economic Development and Housing,30699,Business Growth and Innovation General,Supplies and Services,342033,Computers and Communications,16-Mar-17,5859702879,WATCHFULPAYPAL,7379,Computer hardware,0.45,0,0.45
Regeneration and Local Services,Spatial Policy Planning Assets & Environment,31071,Sustainability and Climate Change,Supplies and Services,348037,Subsistence,16-Mar-17,5859703145,HOTEL NERIS Baras,5813,Subsistence,1.11,0,1.11
Children and Young Peoples Services,Education,71801,Selby Cottage Childcare Centre,Supplies and Services,324117,Provisions,16-Mar-17,5863945087,TESCO STORES 2278,5411,Catering costs - provisions,8.89,0,8.89
Regeneration and Local Services,Economic Development and Housing,31500,Housing Solutions - Core Team,Supplies and Services,352001,Conference Expenses,16-Mar-17,5863945101,TRAVELODGE,3615,Conferencesseminars fees etc,45,0,45
Children and Young Peoples Services,Childrens Services,85957,Secure Management,Supplies and Services,304649,Equipment and Materials,16-Mar-17,5863945111,TOYS R US,5311,Toys,18.94,0,18.94
Children and Young Peoples Services,Education,78554,Adult Skills-Main,Supplies and Services,304259,Equipment and Materials,16-Mar-17,5863945153,Amazon UK Marketplace,5942,Equipment-purchase and rental,11.99,0,11.99
Regeneration and Local Services,Economic Development and Housing,30737,Durham Works Flexible Fund,Supplies and Services,384999,Miscellaneous Expenses,16-Mar-17,5863945179,GRO HM PASSPORT OFFICE,9399,Other expenses,23.4,0,23.4
Regeneration and Local Services,Direct Services,21242,Catering - County Hall,Supplies and Services,324117,Provisions,16-Mar-17,5863945183,JR HOLLAND FOODSERVICE,5422,Catering costs - provisions,51.15,0,51.15
Regeneration and Local Services,Direct Services,21242,Catering - County Hall,Supplies and Services,324117,Provisions,16-Mar-17,5863945187,JR HOLLAND FOODSERVICE,5422,Catering costs - provisions,13.16,0,13.16
Regeneration and Local Services,Direct Services,10367,C&G - South Grounds Maintenance,Supplies and Services,304259,Equipment and Materials,16-Mar-17,5863945197,JT ATKINSON & SONS LTD,5211,Equipment-purchase and rental,68.59,0,68.59
Regeneration and Local Services,Culture & Sport,54812,Gala Theatre - Catering etc,Supplies and Services,324117,Provisions,16-Mar-17,5863945203,JR HOLLAND FOODSERVICE,5422,Catering costs - provisions,97.4,0,97.4
Children and Young Peoples Services,Education,71903,EYDCP-Sustainability EDS,Third Party Payments,430100,Rendered by Private Contractors,16-Mar-17,5863945267,EB CIPD NORTH EAST BR,7399,Payments to sub-contractors,19.5,0,19.5
Regeneration and Local Services,Direct Services,10301,C&G - North Grounds Maintenance,Supplies and Services,304259,Equipment and Materials,16-Mar-17,5863945279,SCREWFIX,5211,Equipment-purchase and rental,269.97,45,224.97
Children and Young Peoples Services,Childrens Services,85958,Support Services,Supplies and Services,324117,Provisions,16-Mar-17,5863945283,TESCO STORES 6329,5411,Catering costs - provisions,119.1,0,119.1
Children and Young Peoples Services,Childrens Services,85958,Support Services,Supplies and Services,342033,Computers and Communications,16-Mar-17,5863945289,VERY.CO.UK,5964,Computer hardware,-45,0,-45
Regeneration and Local Services,Culture & Sport,11060,Hardwick Park Catering,Supplies and Services,324117,Provisions,16-Mar-17,5863945301,JR HOLLAND FOODSERVICE,5422,Catering costs - provisions,13.62,0,13.62
Children and Young Peoples Services,Childrens Services,85352,Tow Law CU,Supplies and Services,324117,Provisions,16-Mar-17,5863945321,TESCO STORES 2371,5411,Catering costs - provisions,207.98,0,207.98
Children and Young Peoples Services,Childrens Services,88001,Peterlee Locality,Supplies and Services,338048,Services,16-Mar-17,5863945365,HMCOURTS-SERVICE.G,9222,Court Costs,20,0,20
Regeneration and Local Services,Transport and Contracted Services,31701,Care Connect All Localities,Supplies and Services,344033,Telephones,16-Mar-17,5863945367,BT BILL PAYMENT 2,4812,Telephones general-all costs,67.07,0,67.07
Regeneration and Local Services,Direct Services,10301,C&G - North Grounds Maintenance,Supplies and Services,304403,Equipment and Materials,16-Mar-17,5863945375,FRED WILLIAMSON,5231,Other consumables,76.94,12.82,64.12
Regeneration and Local Services,Technical Services,10984,Training and Development,Supplies and Services,312011,Newspapers Books and Periodicals,16-Mar-17,5863945387,STATIONERY OFFICE BOOK,5942,Books-school library,141.64,0,141.64
Children and Young Peoples Services,Childrens Services,88083,Ferryhill 0 - 5,Supplies and Services,312011,Newspapers Books and Periodicals,16-Mar-17,5863945389,HOME BARGAINS,5251,Books-school library,18.17,0,18.17
Children and Young Peoples Services,Childrens Services,85363,LAC & Permanence Team 3,Supplies and Services,348037,Subsistence,16-Mar-17,5863945413,HARRY JOHNSON,7011,Subsistence,275,0,275
Resources,I.C.T. Services,69010,Administration,Transport,235057,Public Transport,16-Mar-17,5863945415,OYSTER RENEW WEB,4112,Staff travelling,50,0,50
Regeneration and Local Services,Culture & Sport,10605,Woodhouse Close Leisure Complex,Supplies and Services,324117,Provisions,16-Mar-17,5863945425,BRAKE BROS LTD,5811,Catering costs - provisions,74.04,12.34,61.7
Regeneration and Local Services,Culture & Sport,10605,Woodhouse Close Leisure Complex,Supplies and Services,324117,Provisions,16-Mar-17,000005863945425 - 1,BRAKE BROS LTD,5811,Catering costs - provisions,140.29,,140.29
Regeneration and Local Services,Economic Development and Housing,31500,Housing Solutions - Core Team,Supplies and Services,352001,Conference Expenses,16-Mar-17,5868965497,Park Head Hotel,7011,Conferencesseminars fees etc,15,0,15
Children and Young Peoples Services,Childrens Services,85500,First Contact & Intervention Manager,Supplies and Services,352001,Conference Expenses,16-Mar-17,5868965703,SCARMAN,7011,Conferencesseminars fees etc,109.99,0,109.99
Regeneration and Local Services,Direct Services,11067,Nei.Prot - Pest Control,Supplies and Services,304259,Equipment and Materials,16-Mar-17,5868965705,HALFORDS ON LINE,5940,Equipment-purchase and rental,160,0,160
Regeneration and Local Services,Culture & Sport,54604,Seven Hills Spennymoor,Supplies and Services,304403,Equipment and Materials,16-Mar-17,5868965861,AMAZON UK RETAIL AMAZO,5999,Other consumables,24.18,0,24.18
Regeneration and Local Services,Culture & Sport,54813,Gala Theatre - Technical,Supplies and Services,304403,Equipment and Materials,16-Mar-17,5875794725,CPC,5065,Other consumables,38.21,6.37,31.84
Children and Young Peoples Services,Childrens Services,85958,Support Services,Supplies and Services,312011,Newspapers Books and Periodicals,17-Mar-17,5863945287,Amazon UK Marketplace,5942,Books-school library,24.99,0,24.99
Children and Young Peoples Services,Education,71801,Selby Cottage Childcare Centre,Supplies and Services,324117,Provisions,17-Mar-17,5868965465,TESCO STORES 2278,5411,Catering costs - provisions,4.5,0,4.5
Children and Young Peoples Services,Childrens Services,85957,Secure Management,Supplies and Services,384999,Miscellaneous Expenses,17-Mar-17,5868965503,Amazon UK Marketplace,5942,Other expenses,101.6,0,101.6
Children and Young Peoples Services,Childrens Services,85957,Secure Management,Supplies and Services,324117,Provisions,17-Mar-17,5868965507,TESCO STORES 6329,5411,Catering costs - provisions,64.69,0,64.69
Regeneration and Local Services,Economic Development and Housing,30699,Business Growth and Innovation General,Supplies and Services,304999,Equipment and Materials,17-Mar-17,5868965541,PatentInspirationEU,5817,Misc equipment tools and materials,86.51,0,86.51
Regeneration and Local Services,Direct Services,10367,C&G - South Grounds Maintenance,Supplies and Services,304259,Equipment and Materials,17-Mar-17,5868965567,SCREWFIX,5211,Equipment-purchase and rental,55.98,9.33,46.65
Regeneration and Local Services,Economic Development and Housing,30737,Durham Works Flexible Fund,Supplies and Services,328041,Clothing Uniforms and Laundry,17-Mar-17,5868965607,ASDA STORES LTD,5411,Clothing uniforms and laundry,10,0,10
Children and Young Peoples Services,Childrens Services,88063,Bishop Auckland 0 - 5,Supplies and Services,324117,Provisions,17-Mar-17,5868965617,TESCO STORES 6329,5411,Catering costs - provisions,7.68,0,7.68
Children and Young Peoples Services,Childrens Services,85361,LAC & Permanence Team 1,Supplies and Services,304259,Equipment and Materials,17-Mar-17,5868965635,DURHAM COUNTY COUNCIL,9399,Equipment-purchase and rental,12,0,12
Regeneration and Local Services,Economic Development and Housing,30737,Durham Works Flexible Fund,Transport,235057,Public Transport,17-Mar-17,5868965657,ARRIVA NORTH EAST,4131,Staff travelling,25,0,25
Regeneration and Local Services,Culture & Sport,54813,Gala Theatre - Technical,Supplies and Services,340001,Postages,17-Mar-17,5868965683,PARCEL2GO.COM LTD,4215,Postages,3.05,0.51,2.54
Regeneration and Local Services,Economic Development and Housing,30554,International Relations,Transport,235057,Public Transport,17-Mar-17,5868965709,NCL STN VTEC SST,4112,Staff travelling,6.4,0,6.4
Regeneration and Local Services,Economic Development and Housing,30737,Durham Works Flexible Fund,Transport,230031,Contract Hire,17-Mar-17,5868965719,WWW.SIMPLYGO.COM,4131,Pupils-transport to play fields etc,12.8,0,12.8
Regeneration and Local Services,Economic Development and Housing,30737,Durham Works Flexible Fund,Transport,230031,Contract Hire,17-Mar-17,5868965723,WWW.SIMPLYGO.COM,4131,Pupils-transport to play fields etc,89,0,89
Regeneration and Local Services,Economic Development and Housing,30737,Durham Works Flexible Fund,Transport,230031,Contract Hire,17-Mar-17,5868965727,WWW.SIMPLYGO.COM,4131,Pupils-transport to play fields etc,24.9,0,24.9
Children and Young Peoples Services,Childrens Services,88024,Chester Le Street 5 - 19,Supplies and Services,304649,Equipment and Materials,17-Mar-17,5868965729,WWW.ARGOS.CO.UK,5310,Toys,64.93,0,64.93
Regeneration and Local Services,Culture & Sport,10919,Countryside Management - Site Management,Supplies and Services,304259,Equipment and Materials,17-Mar-17,5868965737,SCREWFIX DIRECT,5211,Equipment-purchase and rental,67.48,0,67.48
Regeneration and Local Services,Culture & Sport,11060,Hardwick Park Catering,Supplies and Services,324117,Provisions,17-Mar-17,5868965753,BRAKE BROS LTD,5811,Catering costs - provisions,132,22,110
Regeneration and Local Services,Culture & Sport,11060,Hardwick Park Catering,Supplies and Services,324117,Provisions,17-Mar-17,000005868965753 - 1,BRAKE BROS LTD,5811,Catering costs - provisions,211.76,,211.76
Regeneration and Local Services,Culture & Sport,11060,Hardwick Park Catering,Supplies and Services,324117,Provisions,17-Mar-17,5868965757,BRAKE BROS LTD,5811,Catering costs - provisions,24.6,4.1,20.5
Regeneration and Local Services,Culture & Sport,11060,Hardwick Park Catering,Supplies and Services,324117,Provisions,17-Mar-17,000005868965757 - 1,BRAKE BROS LTD,5811,Catering costs - provisions,142.04,,142.04
Regeneration and Local Services,Direct Services,21234,Catering - Locomotion,Supplies and Services,324117,Provisions,17-Mar-17,5868965781,BRAKE BROS LTD,5811,Catering costs - provisions,25.48,0,25.48
Regeneration and Local Services,Direct Services,21234,Catering - Locomotion,Supplies and Services,324117,Provisions,17-Mar-17,5868965785,JR HOLLAND FOODSERVICE,5422,Catering costs - provisions,-14.98,0,-14.98
Regeneration and Local Services,Economic Development and Housing,31576,B& B - Temp Accom,Supplies and Services,364320,Grants to Voluntary Organisations,17-Mar-17,5868965789,Park Head Hotel,7011,Accommodation assistance,48.5,0,48.5
Resources,I.C.T. Services,65481,Technical Services,Supplies and Services,372009,Subscriptions,17-Mar-17,5868965805,WPY ITProTV,7392,Subscriptions,"3,160.98",0,3160.98
Resources,I.C.T. Services,65481,Technical Services,Supplies and Services,372009,Subscriptions,17-Mar-17,5868965807,WPY ITProTV,7392,Subscriptions,"2,771.93",0,2771.93
Regeneration and Local Services,Economic Development and Housing,31576,B& B - Temp Accom,Supplies and Services,384985,Miscellaneous Expenses,17-Mar-17,5868965829,DURHAM COUNTY COUNCIL,9399,Miscellaneous-special facilities,20,0,20
Regeneration and Local Services,Economic Development and Housing,30749,Employability - Youth Contract,Employees,40149,Recruitment Instruction and Training,17-Mar-17,5868965835,ELECTRICAL CONTRACTORS,1731,Training-all costs,48,0,48
Children and Young Peoples Services,Childrens Services,85333,Coxhoe Satelite Home,Supplies and Services,324117,Provisions,17-Mar-17,5868965843,ASDA SUPERSTORE 4987,5411,Catering costs - provisions,76.01,0,76.01
Regeneration and Local Services,Transport and Contracted Services,31704,Care Connect - CCTV Countywide,Supplies and Services,384956,Miscellaneous Expenses,17-Mar-17,5868965891,SECURITY INDUSTRY,7393,Licences,220,0,220
Children and Young Peoples Services,Childrens Services,88083,Ferryhill 0 - 5,Supplies and Services,328041,Clothing Uniforms and Laundry,17-Mar-17,5868965917,B&M RETAIL LTD,5310,Clothing uniforms and laundry,18.97,0,18.97
Children and Young Peoples Services,Childrens Services,88083,Ferryhill 0 - 5,Supplies and Services,328041,Clothing Uniforms and Laundry,17-Mar-17,5868965921,B&M RETAIL LTD,5310,Clothing uniforms and laundry,8.97,0,8.97
